{"text_format":"1","workbook":"xlsx","n_sheets":7,"sheets":["Leirat","Urlap","Korábbi napló","Munkanaplo","Elemzés","Adattár","Háttér"],"not_rendered":{"charts":4,"images":0,"macros":1,"external_links":0,"defined_names":1,"comments":0,"pivot_tables":0},"unopened":[],"bounds":{"document_bytes":16777216,"sheet_cells":100000,"rows_first":2000,"rows_last":500,"rows_between":2000,"halvings":0,"cell_chars":16384,"cell_head_chars":4096},"cells_cut":0,"cells_raw":0,"read":"whole","date_system":"1900"}

{"sheet":"Leirat","index":0,"n_rows":21,"n_cols":1,"rows_kept":21,"cut":false,"hidden":false,"merged":[[0,0,1,0]]}
["Mentori napló használati útmutató"]
[]
["A rehabilitációs mentori napló használata segítséget nyújthat az MMK munkavállalóval történt mentori találkozáson kinyert legfontosabb információk eltárolásához, előhívásához, majd a tendenciák követéséhez, a mentorált állapotának monitorozásához, a kockázatok azonosítása és a szükséges munkahelymegtartást elősegítő beavatkozások megvalósítása érdekében."]
[]
["A rehabilitációs mentori napló megfelelő használatához engedélyezni kell a Makró használatát!"]
["A naplót célirányosan 1-1 MMK munkavállaló nyomonkövetésére lehet használni."]
["1 napra csak 1 mentori napló bejegyzést lehet rögzíteni az Elemés diagramjainak használhatósága érdekében."]
[]
["A mentori találkozó adatait az Űrlapon szükséges rögzíteni, majd a bevitt adatokat az alkalmazás a Munkanapló lapra menti a Mentés gomb megnyomását követően, majd üríti a bevitt adatokat."]
["Az Űrlap 6-8. (szolgáltatás tartalma) és 34-40. (beavatkozások) sorai a Háttér lapon lévő választéklistát használják, ezen választéklistákat kedv (és a mentor által alkalmazott eszközök) szerint lehet szűkíteni (sor törlésével) vagy bővíteni (az új elem oszlop aljára történő beírásával)."]
[]
["A Munkanaplóban rögzített adatok változásait az Elemzés lapon, 4 kezdeti diagrammon lehet követni. \nAz elemzés az Adattár lapról nyeri ki az adatokat, új diagram készítéséhez ott érdemes létrehozni a kívánt diagramot, majd áthelyezni az Elemzés munkalapra."]
[]
["A Korábbi napló lapon dátumra szűrve elő lehet hívni az űrlapon elmentett, mentori munkanaplóban eltárolt információkat a korábbi naplókból"]
["A Munkanapló 100 sorig (azaz 100 alkalom rögzítéséig) működik megfelelően, ezt követően új naplót érdemes kezdeni."]
["A leírás munkalapot érdemes elrejteni az elolvasása után."]
[]
["A mentori napló nincs levédve/zárolva, emiatt a képletek és a makró elállítódása esetén érdemes előről kezdeni a naplót egy \"szűz\" fájlban. Ilyen esetben a korábbi napló adattartalmát (Munkanapló) könnyedén át lehet másolni az új fájl Munkanapló lapjára."]
[]
["Továbbfejlesztési javaslatokat a daczi.peter@nszi.gov.hu e-mail címre lehet küldeni."]
["Verziószám: 1.4"]

{"sheet":"Urlap","index":1,"n_rows":43,"n_cols":4,"rows_kept":43,"cut":false,"hidden":false,"merged":[[42,1,42,3],[31,1,31,3],[8,1,10,3],[8,0,10,0],[0,0,0,3],[31,0,32,0],[32,1,39,3],[40,1,40,3],[41,1,41,3]]}
["Rehabilitációs \nMENTORI NAPLÓ"]
[]
["Mentorált munkavállaló neve","Gipsz Jakab"]
["Munkakör","takarító"]
["Mentori szolgáltatás formája"]
["Szolgáltatás tartalma 1"]
["Szolgáltatás tartalma 2"]
["Szolgáltatás tartalma 3"]
["Elmúlt időszak rövid értékelése\n (szabadszöveges)"]
[]
[]
["Szolgáltatás dátuma",{"$f":"NOW()","v":"2025-11-25T00:21:58.790"}]
["Utolsó találkozó óta eltelt idő (nap)",{"$f":"IF((+Urlap!B12-MAX(Munkanaplo!E:E))>1000,0,((+Urlap!B12-MAX(Munkanaplo!E:E))))","v":0}]
["Szolgáltatási alkalom sorszáma",{"$f":"+MAX(Munkanaplo!A:A)+1","v":1}]
[]
["Szempont","Megállapítás, értékelés (szabadszöveges)","Önértékelés \n(1-5)","Kockázati szint (1–5)"]
["Egészségi állapot"]
["Családi, támogató közeg"]
["Beilleszkedés, kollegiális kapcsolatok"]
["Felettessel való viszony"]
["Munkakörnyezet akadálymentessége"]
["Munkaköri feladatok ellátása"]
["Munkavállalói teljesítmény"]
["Munkából való hiányzás"]
["Egyéb problémák, nehézségek"]
["Egyéb …"]
[]
["Összesített kockázati szint (max)",{"$f":"MAX(D17:D26)","v":0}]
["Kritikus helyzet?",{"$f":"IF(B28>=4,\"KRITIKUS\",\"nem kritikus\")","v":"nem kritikus"}]
["Kockázat szint",{"$f":"SUM(D17:D26)/(COUNT(D17:D26)*5)","v":{"$error":"#DIV/0!"}}]
["Megfelelőségi szint átlaga",{"$f":"SUM(C17:C26)/50","v":0}]
["Szükséges beavatkozások, kimenetek\n(értékkészlet)","Azonosított, megoldandó problémák és javaslatok (szabadszöveges)"]
[]
[]
[]
[]
[]
[]
[]
[]
["Mentorált által vállalt feladatok:"]
["Egyéb, kiegészítő információk"]
["Következő alkalom:"]

{"sheet":"Korábbi napló","index":2,"n_rows":43,"n_cols":4,"rows_kept":43,"cut":false,"hidden":false,"merged":[[40,1,40,3],[41,1,41,3],[42,1,42,3],[5,1,7,1],[11,2,11,3],[0,0,0,3],[8,0,10,0],[8,1,10,3],[31,0,32,0],[31,1,31,3],[32,1,39,3]]}
["KORÁBBI rehabilitációs mentori naplók\nmegtekintése"]
[]
["Mentorált munkavállaló neve","Gipsz Jakab"]
["Munkakör","takarító"]
["Mentori szolgáltatás formája"]
["Szolgáltatás tartalma 1",{"$f":"VLOOKUP(B12,Munkanaplo!E:BB,3,FALSE)","v":{"$error":"#N/A"}}]
["Szolgáltatás tartalma 2"]
["Szolgáltatás tartalma 3"]
["Elmúlt időszak rövid értékelése",{"$f":"VLOOKUP(B12,Munkanaplo!E:BB,16,FALSE)","v":{"$error":"#N/A"}}]
[]
[]
["Szolgáltatás dátuma",null,"- VÁLASZD KI A DÁTUMOT!"]
["Találkozó óta eltelt idő (nap)",{"$f":"NOW()-B12","v":45986.015263773152}]
["Szolgáltatási alkalom sorszáma",{"$f":"VLOOKUP(B12,Munkanaplo!E:BC,51,FALSE)","v":{"$error":"#N/A"}}]
[]
["Szempont","Megállapítás, értékelés","Önértékelés \n(1-5)","Kockázati szint (1–5)"]
["Egészségi állapot",{"$f":"VLOOKUP(B12,Munkanaplo!E:BB,30,FALSE)","v":{"$error":"#N/A"}},{"$f":"VLOOKUP(B12,Munkanaplo!E:BB,18,FALSE)","v":{"$error":"#N/A"}},{"$f":"VLOOKUP(B12,Munkanaplo!E:BB,4,FALSE)","v":{"$error":"#N/A"}}]
["Családi, támogató közeg",{"$f":"VLOOKUP(B12,Munkanaplo!E:BB,31,FALSE)","v":{"$error":"#N/A"}},{"$f":"VLOOKUP(B12,Munkanaplo!E:BB,19,FALSE)","v":{"$error":"#N/A"}},{"$f":"VLOOKUP(B12,Munkanaplo!E:BB,5,FALSE)","v":{"$error":"#N/A"}}]
["Beilleszkedés, kollegiális kapcsolatok",{"$f":"VLOOKUP(B12,Munkanaplo!E:BB,32,FALSE)","v":{"$error":"#N/A"}},{"$f":"VLOOKUP(B12,Munkanaplo!E:BB,20,FALSE)","v":{"$error":"#N/A"}},{"$f":"VLOOKUP(B12,Munkanaplo!E:BB,6,FALSE)","v":{"$error":"#N/A"}}]
["Felettessel való viszony",{"$f":"VLOOKUP(B12,Munkanaplo!E:BB,33,FALSE)","v":{"$error":"#N/A"}},{"$f":"VLOOKUP(B12,Munkanaplo!E:BB,21,FALSE)","v":{"$error":"#N/A"}},{"$f":"VLOOKUP(B12,Munkanaplo!E:BB,7,FALSE)","v":{"$error":"#N/A"}}]
["Munkakörnyezet akadálymentessége",{"$f":"VLOOKUP(B12,Munkanaplo!E:BB,34,FALSE)","v":{"$error":"#N/A"}},{"$f":"VLOOKUP(B12,Munkanaplo!E:BB,22,FALSE)","v":{"$error":"#N/A"}},{"$f":"VLOOKUP(B12,Munkanaplo!E:BB,8,FALSE)","v":{"$error":"#N/A"}}]
["Munkaköri feladatok ellátása",{"$f":"VLOOKUP(B12,Munkanaplo!E:BB,35,FALSE)","v":{"$error":"#N/A"}},{"$f":"VLOOKUP(B12,Munkanaplo!E:BB,23,FALSE)","v":{"$error":"#N/A"}},{"$f":"VLOOKUP(B12,Munkanaplo!E:BB,9,FALSE)","v":{"$error":"#N/A"}}]
["Munkavállalói teljesítmény",{"$f":"VLOOKUP(B12,Munkanaplo!E:BB,36,FALSE)","v":{"$error":"#N/A"}},{"$f":"VLOOKUP(B12,Munkanaplo!E:BB,24,FALSE)","v":{"$error":"#N/A"}},{"$f":"VLOOKUP(B12,Munkanaplo!E:BB,10,FALSE)","v":{"$error":"#N/A"}}]
["Munkából való hiányzás",{"$f":"VLOOKUP(B12,Munkanaplo!E:BB,37,FALSE)","v":{"$error":"#N/A"}},{"$f":"VLOOKUP(B12,Munkanaplo!E:BB,25,FALSE)","v":{"$error":"#N/A"}},{"$f":"VLOOKUP(B12,Munkanaplo!E:BB,11,FALSE)","v":{"$error":"#N/A"}}]
["Egyéb problémák, nehézségek",{"$f":"VLOOKUP(B12,Munkanaplo!E:BB,38,FALSE)","v":{"$error":"#N/A"}},{"$f":"VLOOKUP(B12,Munkanaplo!E:BB,26,FALSE)","v":{"$error":"#N/A"}},{"$f":"VLOOKUP(B12,Munkanaplo!E:BB,12,FALSE)","v":{"$error":"#N/A"}}]
["Egyéb …",{"$f":"VLOOKUP(B12,Munkanaplo!E:BB,39,FALSE)","v":{"$error":"#N/A"}},{"$f":"VLOOKUP(B12,Munkanaplo!E:BB,27,FALSE)","v":{"$error":"#N/A"}},{"$f":"VLOOKUP(B12,Munkanaplo!E:BB,13,FALSE)","v":{"$error":"#N/A"}}]
[]
["Összesített kockázati szint (max)",{"$f":"MAX(D17:D26)","v":{"$error":"#N/A"}}]
["Kritikus helyzet?",{"$f":"IF(B28>=4,\"KRITIKUS\",\"nem kritikus\")","v":{"$error":"#N/A"}}]
["Kockázat szint",{"$f":"SUM(D17:D26)/(COUNT(D17:D26)*5)","v":{"$error":"#N/A"}}]
["Megfelelőségi szint átlaga",{"$f":"SUM(C18:C26)/50","v":{"$error":"#N/A"}}]
["Szükséges beavatkozások, kimenetek\n(értékkészlet)","Azonosított, megoldandó problémák és javaslatok (szabadszöveges)"]
[null,{"$f":"VLOOKUP(B12,Munkanaplo!E:BB,17,FALSE)","v":{"$error":"#N/A"}}]
[{"$f":"VLOOKUP(B12,Munkanaplo!E:BB,41,FALSE)","v":{"$error":"#N/A"}}]
[{"$f":"VLOOKUP(B12,Munkanaplo!E:BB,42,FALSE)","v":{"$error":"#N/A"}}]
[{"$f":"VLOOKUP(B12,Munkanaplo!E:BB,43,FALSE)","v":{"$error":"#N/A"}}]
[{"$f":"VLOOKUP(B12,Munkanaplo!E:BB,44,FALSE)","v":{"$error":"#N/A"}}]
[{"$f":"VLOOKUP(B12,Munkanaplo!E:BB,45,FALSE)","v":{"$error":"#N/A"}}]
[{"$f":"VLOOKUP(B12,Munkanaplo!E:BB,46,FALSE)","v":{"$error":"#N/A"}}]
[{"$f":"VLOOKUP(B12,Munkanaplo!E:BB,47,FALSE)","v":{"$error":"#N/A"}}]
["Mentorált által vállalt feladatok:",{"$f":"VLOOKUP(B12,Munkanaplo!E:BB,48,FALSE)","v":{"$error":"#N/A"}}]
["Egyéb, kiegészítő információk",{"$f":"VLOOKUP(B12,Munkanaplo!E:BB,49,FALSE)","v":{"$error":"#N/A"}}]
["Következő alkalom:",{"$f":"VLOOKUP(B12,Munkanaplo!E:BB,50,FALSE)","v":{"$error":"#N/A"}}]

{"sheet":"Munkanaplo","index":3,"n_rows":97,"n_cols":55,"rows_kept":97,"cut":false,"hidden":false,"merged":[[0,54,1,54],[0,0,1,0],[0,18,1,18],[0,17,1,17],[0,7,0,16],[0,1,1,1],[0,2,1,2],[0,3,1,3],[0,4,1,4],[0,5,1,5],[0,6,1,6],[0,31,1,31],[0,32,1,32],[0,20,1,20],[0,19,1,19],[0,53,1,53],[0,44,0,50],[0,51,1,51],[0,52,1,52],[0,33,0,42],[0,21,0,30]]}
["Szolgáltatási alkalom sorszáma","Mentorált munkavállaló neve","Munkakör","Mentori szolgáltatás formája","Szolgáltatás dátuma","Értékelt időszak (nap)","Szolgáltatás tartalma","Kockázatok (1-5)",null,null,null,null,null,null,null,null,null,"Összesített kockázati szint (max)","Kritikus helyzet?","Elmúlt időszak rövid értékelése","Azonosított, megoldandó problémák és javaslatok (szabadszöveges)","ÖNÉRTÉKELÉS - Megállapítás, értékelés (1-5)",null,null,null,null,null,null,null,null,null,"Kockázat szint átlaga","Megfelelőségi szint átlaga","Megállapítás, értékelés (szöveges)",null,null,null,null,null,null,null,null,null,null,"Szükséges beavatkozások, kimenetek",null,null,null,null,null,null,"Mentorált által vállalt feladatok:","Egyéb, kiegészítő információk","Következő alkalom:","Sorszám"]
[null,null,null,null,null,null,null,"Egészségi állapot","Családi, támogató közeg","Beilleszkedés, kollegiális kapcsolatok","Felettessel való viszony","Munkakörnyezet akadálymentessége","Munkaköri feladatok ellátása","Munkavállalói teljesítmény","Munkából való hiányzás","Egyéb problémák, nehézségek","Egyéb …",null,null,null,null,"Egészségi állapot","Családi, támogató közeg","Beilleszkedés, kollegiális kapcsolatok","Felettessel való viszony","Munkakörnyezet akadálymentessége","Munkaköri feladatok ellátása","Munkavállalói teljesítmény","Munkából való hiányzás","Egyéb problémák, nehézségek","Egyéb …",null,null,"Egészségi állapot","Családi, támogató közeg","Beilleszkedés, kollegiális kapcsolatok","Felettessel való viszony","Munkakörnyezet akadálymentessége","Munkaköri feladatok ellátása","Munkavállalói teljesítmény","Munkából való hiányzás","Egyéb problémák, nehézségek","Egyéb …",null,1,2,3,4,5,6,7]
[null,null,null,null,null,null,null,null,null,null,null,null,null,null,null,null,null,null,null,null,null,null,null,null,null,null,null,null,null,null,null,null,null,null,null,null,null,null,null,null,null,null,null,null,null,null,null,null,null,null,null,null,null,null,{"$f":"A3","v":0}]
[null,null,null,null,null,null,null,null,null,null,null,null,null,null,null,null,null,null,null,null,null,null,null,null,null,null,null,null,null,null,null,null,null,null,null,null,null,null,null,null,null,null,null,null,null,null,null,null,null,null,null,null,null,null,0]
[null,null,null,null,null,null,null,null,null,null,null,null,null,null,null,null,null,null,null,null,null,null,null,null,null,null,null,null,null,null,null,null,null,null,null,null,null,null,null,null,null,null,null,null,null,null,null,null,null,null,null,null,null,null,0]
[null,null,null,null,null,null,null,null,null,null,null,null,null,null,null,null,null,null,null,null,null,null,null,null,null,null,null,null,null,null,null,null,null,null,null,null,null,null,null,null,null,null,null,null,null,null,null,null,null,null,null,null,null,null,0]
[null,null,null,null,null,null,null,null,null,null,null,null,null,null,null,null,null,null,null,null,null,null,null,null,null,null,null,null,null,null,null,null,null,null,null,null,null,null,null,null,null,null,null,null,null,null,null,null,null,null,null,null,null,null,0]
[null,null,null,null,null,null,null,null,null,null,null,null,null,null,null,null,null,null,null,null,null,null,null,null,null,null,null,null,null,null,null,null,null,null,null,null,null,null,null,null,null,null,null,null,null,null,null,null,null,null,null,null,null,null,0]
[null,null,null,null,null,null,null,null,null,null,null,null,null,null,null,null,null,null,null,null,null,null,null,null,null,null,null,null,null,null,null,null,null,null,null,null,null,null,null,null,null,null,null,null,null,null,null,null,null,null,null,null,null,null,0]
[null,null,null,null,null,null,null,null,null,null,null,null,null,null,null,null,null,null,null,null,null,null,null,null,null,null,null,null,null,null,null,null,null,null,null,null,null,null,null,null,null,null,null,null,null,null,null,null,null,null,null,null,null,null,0]
[null,null,null,null,null,null,null,null,null,null,null,null,null,null,null,null,null,null,null,null,null,null,null,null,null,null,null,null,null,null,null,null,null,null,null,null,null,null,null,null,null,null,null,null,null,null,null,null,null,null,null,null,null,null,0]
[null,null,null,null,null,null,null,null,null,null,null,null,null,null,null,null,null,null,null,null,null,null,null,null,null,null,null,null,null,null,null,null,null,null,null,null,null,null,null,null,null,null,null,null,null,null,null,null,null,null,null,null,null,null,0]
[null,null,null,null,null,null,null,null,null,null,null,null,null,null,null,null,null,null,null,null,null,null,null,null,null,null,null,null,null,null,null,null,null,null,null,null,null,null,null,null,null,null,null,null,null,null,null,null,null,null,null,null,null,null,0]
[null,null,null,null,null,null,null,null,null,null,null,null,null,null,null,null,null,null,null,null,null,null,null,null,null,null,null,null,null,null,null,null,null,null,null,null,null,null,null,null,null,null,null,null,null,null,null,null,null,null,null,null,null,null,0]
[null,null,null,null,null,null,null,null,null,null,null,null,null,null,null,null,null,null,null,null,null,null,null,null,null,null,null,null,null,null,null,null,null,null,null,null,null,null,null,null,null,null,null,null,null,null,null,null,null,null,null,null,null,null,0]
[null,null,null,null,null,null,null,null,null,null,null,null,null,null,null,null,null,null,null,null,null,null,null,null,null,null,null,null,null,null,null,null,null,null,null,null,null,null,null,null,null,null,null,null,null,null,null,null,null,null,null,null,null,null,0]
[null,null,null,null,null,null,null,null,null,null,null,null,null,null,null,null,null,null,null,null,null,null,null,null,null,null,null,null,null,null,null,null,null,null,null,null,null,null,null,null,null,null,null,null,null,null,null,null,null,null,null,null,null,null,0]
[null,null,null,null,null,null,null,null,null,null,null,null,null,null,null,null,null,null,null,null,null,null,null,null,null,null,null,null,null,null,null,null,null,null,null,null,null,null,null,null,null,null,null,null,null,null,null,null,null,null,null,null,null,null,0]
[null,null,null,null,null,null,null,null,null,null,null,null,null,null,null,null,null,null,null,null,null,null,null,null,null,null,null,null,null,null,null,null,null,null,null,null,null,null,null,null,null,null,null,null,null,null,null,null,null,null,null,null,null,null,0]
[null,null,null,null,null,null,null,null,null,null,null,null,null,null,null,null,null,null,null,null,null,null,null,null,null,null,null,null,null,null,null,null,null,null,null,null,null,null,null,null,null,null,null,null,null,null,null,null,null,null,null,null,null,null,0]
[null,null,null,null,null,null,null,null,null,null,null,null,null,null,null,null,null,null,null,null,null,null,null,null,null,null,null,null,null,null,null,null,null,null,null,null,null,null,null,null,null,null,null,null,null,null,null,null,null,null,null,null,null,null,0]
[null,null,null,null,null,null,null,null,null,null,null,null,null,null,null,null,null,null,null,null,null,null,null,null,null,null,null,null,null,null,null,null,null,null,null,null,null,null,null,null,null,null,null,null,null,null,null,null,null,null,null,null,null,null,0]
[null,null,null,null,null,null,null,null,null,null,null,null,null,null,null,null,null,null,null,null,null,null,null,null,null,null,null,null,null,null,null,null,null,null,null,null,null,null,null,null,null,null,null,null,null,null,null,null,null,null,null,null,null,null,0]
[null,null,null,null,null,null,null,null,null,null,null,null,null,null,null,null,null,null,null,null,null,null,null,null,null,null,null,null,null,null,null,null,null,null,null,null,null,null,null,null,null,null,null,null,null,null,null,null,null,null,null,null,null,null,0]
[null,null,null,null,null,null,null,null,null,null,null,null,null,null,null,null,null,null,null,null,null,null,null,null,null,null,null,null,null,null,null,null,null,null,null,null,null,null,null,null,null,null,null,null,null,null,null,null,null,null,null,null,null,null,0]
[null,null,null,null,null,null,null,null,null,null,null,null,null,null,null,null,null,null,null,null,null,null,null,null,null,null,null,null,null,null,null,null,null,null,null,null,null,null,null,null,null,null,null,null,null,null,null,null,null,null,null,null,null,null,0]
[null,null,null,null,null,null,null,null,null,null,null,null,null,null,null,null,null,null,null,null,null,null,null,null,null,null,null,null,null,null,null,null,null,null,null,null,null,null,null,null,null,null,null,null,null,null,null,null,null,null,null,null,null,null,0]
[null,null,null,null,null,null,null,null,null,null,null,null,null,null,null,null,null,null,null,null,null,null,null,null,null,null,null,null,null,null,null,null,null,null,null,null,null,null,null,null,null,null,null,null,null,null,null,null,null,null,null,null,null,null,0]
[null,null,null,null,null,null,null,null,null,null,null,null,null,null,null,null,null,null,null,null,null,null,null,null,null,null,null,null,null,null,null,null,null,null,null,null,null,null,null,null,null,null,null,null,null,null,null,null,null,null,null,null,null,null,0]
[null,null,null,null,null,null,null,null,null,null,null,null,null,null,null,null,null,null,null,null,null,null,null,null,null,null,null,null,null,null,null,null,null,null,null,null,null,null,null,null,null,null,null,null,null,null,null,null,null,null,null,null,null,null,0]
[null,null,null,null,null,null,null,null,null,null,null,null,null,null,null,null,null,null,null,null,null,null,null,null,null,null,null,null,null,null,null,null,null,null,null,null,null,null,null,null,null,null,null,null,null,null,null,null,null,null,null,null,null,null,0]
[null,null,null,null,null,null,null,null,null,null,null,null,null,null,null,null,null,null,null,null,null,null,null,null,null,null,null,null,null,null,null,null,null,null,null,null,null,null,null,null,null,null,null,null,null,null,null,null,null,null,null,null,null,null,0]
[null,null,null,null,null,null,null,null,null,null,null,null,null,null,null,null,null,null,null,null,null,null,null,null,null,null,null,null,null,null,null,null,null,null,null,null,null,null,null,null,null,null,null,null,null,null,null,null,null,null,null,null,null,null,0]
[null,null,null,null,null,null,null,null,null,null,null,null,null,null,null,null,null,null,null,null,null,null,null,null,null,null,null,null,null,null,null,null,null,null,null,null,null,null,null,null,null,null,null,null,null,null,null,null,null,null,null,null,null,null,0]
[null,null,null,null,null,null,null,null,null,null,null,null,null,null,null,null,null,null,null,null,null,null,null,null,null,null,null,null,null,null,null,null,null,null,null,null,null,null,null,null,null,null,null,null,null,null,null,null,null,null,null,null,null,null,0]
[null,null,null,null,null,null,null,null,null,null,null,null,null,null,null,null,null,null,null,null,null,null,null,null,null,null,null,null,null,null,null,null,null,null,null,null,null,null,null,null,null,null,null,null,null,null,null,null,null,null,null,null,null,null,0]
[null,null,null,null,null,null,null,null,null,null,null,null,null,null,null,null,null,null,null,null,null,null,null,null,null,null,null,null,null,null,null,null,null,null,null,null,null,null,null,null,null,null,null,null,null,null,null,null,null,null,null,null,null,null,0]
[null,null,null,null,null,null,null,null,null,null,null,null,null,null,null,null,null,null,null,null,null,null,null,null,null,null,null,null,null,null,null,null,null,null,null,null,null,null,null,null,null,null,null,null,null,null,null,null,null,null,null,null,null,null,0]
[null,null,null,null,null,null,null,null,null,null,null,null,null,null,null,null,null,null,null,null,null,null,null,null,null,null,null,null,null,null,null,null,null,null,null,null,null,null,null,null,null,null,null,null,null,null,null,null,null,null,null,null,null,null,0]
[null,null,null,null,null,null,null,null,null,null,null,null,null,null,null,null,null,null,null,null,null,null,null,null,null,null,null,null,null,null,null,null,null,null,null,null,null,null,null,null,null,null,null,null,null,null,null,null,null,null,null,null,null,null,0]
[null,null,null,null,null,null,null,null,null,null,null,null,null,null,null,null,null,null,null,null,null,null,null,null,null,null,null,null,null,null,null,null,null,null,null,null,null,null,null,null,null,null,null,null,null,null,null,null,null,null,null,null,null,null,0]
[null,null,null,null,null,null,null,null,null,null,null,null,null,null,null,null,null,null,null,null,null,null,null,null,null,null,null,null,null,null,null,null,null,null,null,null,null,null,null,null,null,null,null,null,null,null,null,null,null,null,null,null,null,null,0]
[null,null,null,null,null,null,null,null,null,null,null,null,null,null,null,null,null,null,null,null,null,null,null,null,null,null,null,null,null,null,null,null,null,null,null,null,null,null,null,null,null,null,null,null,null,null,null,null,null,null,null,null,null,null,0]
[null,null,null,null,null,null,null,null,null,null,null,null,null,null,null,null,null,null,null,null,null,null,null,null,null,null,null,null,null,null,null,null,null,null,null,null,null,null,null,null,null,null,null,null,null,null,null,null,null,null,null,null,null,null,0]
[null,null,null,null,null,null,null,null,null,null,null,null,null,null,null,null,null,null,null,null,null,null,null,null,null,null,null,null,null,null,null,null,null,null,null,null,null,null,null,null,null,null,null,null,null,null,null,null,null,null,null,null,null,null,0]
[null,null,null,null,null,null,null,null,null,null,null,null,null,null,null,null,null,null,null,null,null,null,null,null,null,null,null,null,null,null,null,null,null,null,null,null,null,null,null,null,null,null,null,null,null,null,null,null,null,null,null,null,null,null,0]
[null,null,null,null,null,null,null,null,null,null,null,null,null,null,null,null,null,null,null,null,null,null,null,null,null,null,null,null,null,null,null,null,null,null,null,null,null,null,null,null,null,null,null,null,null,null,null,null,null,null,null,null,null,null,0]
[null,null,null,null,null,null,null,null,null,null,null,null,null,null,null,null,null,null,null,null,null,null,null,null,null,null,null,null,null,null,null,null,null,null,null,null,null,null,null,null,null,null,null,null,null,null,null,null,null,null,null,null,null,null,0]
[null,null,null,null,null,null,null,null,null,null,null,null,null,null,null,null,null,null,null,null,null,null,null,null,null,null,null,null,null,null,null,null,null,null,null,null,null,null,null,null,null,null,null,null,null,null,null,null,null,null,null,null,null,null,0]
[null,null,null,null,null,null,null,null,null,null,null,null,null,null,null,null,null,null,null,null,null,null,null,null,null,null,null,null,null,null,null,null,null,null,null,null,null,null,null,null,null,null,null,null,null,null,null,null,null,null,null,null,null,null,0]
[null,null,null,null,null,null,null,null,null,null,null,null,null,null,null,null,null,null,null,null,null,null,null,null,null,null,null,null,null,null,null,null,null,null,null,null,null,null,null,null,null,null,null,null,null,null,null,null,null,null,null,null,null,null,0]
[null,null,null,null,null,null,null,null,null,null,null,null,null,null,null,null,null,null,null,null,null,null,null,null,null,null,null,null,null,null,null,null,null,null,null,null,null,null,null,null,null,null,null,null,null,null,null,null,null,null,null,null,null,null,0]
[null,null,null,null,null,null,null,null,null,null,null,null,null,null,null,null,null,null,null,null,null,null,null,null,null,null,null,null,null,null,null,null,null,null,null,null,null,null,null,null,null,null,null,null,null,null,null,null,null,null,null,null,null,null,0]
[null,null,null,null,null,null,null,null,null,null,null,null,null,null,null,null,null,null,null,null,null,null,null,null,null,null,null,null,null,null,null,null,null,null,null,null,null,null,null,null,null,null,null,null,null,null,null,null,null,null,null,null,null,null,0]
[null,null,null,null,null,null,null,null,null,null,null,null,null,null,null,null,null,null,null,null,null,null,null,null,null,null,null,null,null,null,null,null,null,null,null,null,null,null,null,null,null,null,null,null,null,null,null,null,null,null,null,null,null,null,0]
[null,null,null,null,null,null,null,null,null,null,null,null,null,null,null,null,null,null,null,null,null,null,null,null,null,null,null,null,null,null,null,null,null,null,null,null,null,null,null,null,null,null,null,null,null,null,null,null,null,null,null,null,null,null,0]
[null,null,null,null,null,null,null,null,null,null,null,null,null,null,null,null,null,null,null,null,null,null,null,null,null,null,null,null,null,null,null,null,null,null,null,null,null,null,null,null,null,null,null,null,null,null,null,null,null,null,null,null,null,null,0]
[null,null,null,null,null,null,null,null,null,null,null,null,null,null,null,null,null,null,null,null,null,null,null,null,null,null,null,null,null,null,null,null,null,null,null,null,null,null,null,null,null,null,null,null,null,null,null,null,null,null,null,null,null,null,0]
[null,null,null,null,null,null,null,null,null,null,null,null,null,null,null,null,null,null,null,null,null,null,null,null,null,null,null,null,null,null,null,null,null,null,null,null,null,null,null,null,null,null,null,null,null,null,null,null,null,null,null,null,null,null,0]
[null,null,null,null,null,null,null,null,null,null,null,null,null,null,null,null,null,null,null,null,null,null,null,null,null,null,null,null,null,null,null,null,null,null,null,null,null,null,null,null,null,null,null,null,null,null,null,null,null,null,null,null,null,null,0]
[null,null,null,null,null,null,null,null,null,null,null,null,null,null,null,null,null,null,null,null,null,null,null,null,null,null,null,null,null,null,null,null,null,null,null,null,null,null,null,null,null,null,null,null,null,null,null,null,null,null,null,null,null,null,0]
[null,null,null,null,null,null,null,null,null,null,null,null,null,null,null,null,null,null,null,null,null,null,null,null,null,null,null,null,null,null,null,null,null,null,null,null,null,null,null,null,null,null,null,null,null,null,null,null,null,null,null,null,null,null,0]
[null,null,null,null,null,null,null,null,null,null,null,null,null,null,null,null,null,null,null,null,null,null,null,null,null,null,null,null,null,null,null,null,null,null,null,null,null,null,null,null,null,null,null,null,null,null,null,null,null,null,null,null,null,null,0]
[null,null,null,null,null,null,null,null,null,null,null,null,null,null,null,null,null,null,null,null,null,null,null,null,null,null,null,null,null,null,null,null,null,null,null,null,null,null,null,null,null,null,null,null,null,null,null,null,null,null,null,null,null,null,0]
[null,null,null,null,null,null,null,null,null,null,null,null,null,null,null,null,null,null,null,null,null,null,null,null,null,null,null,null,null,null,null,null,null,null,null,null,null,null,null,null,null,null,null,null,null,null,null,null,null,null,null,null,null,null,0]
[null,null,null,null,null,null,null,null,null,null,null,null,null,null,null,null,null,null,null,null,null,null,null,null,null,null,null,null,null,null,null,null,null,null,null,null,null,null,null,null,null,null,null,null,null,null,null,null,null,null,null,null,null,null,{"$f":"A66","v":0}]
[null,null,null,null,null,null,null,null,null,null,null,null,null,null,null,null,null,null,null,null,null,null,null,null,null,null,null,null,null,null,null,null,null,null,null,null,null,null,null,null,null,null,null,null,null,null,null,null,null,null,null,null,null,null,0]
[null,null,null,null,null,null,null,null,null,null,null,null,null,null,null,null,null,null,null,null,null,null,null,null,null,null,null,null,null,null,null,null,null,null,null,null,null,null,null,null,null,null,null,null,null,null,null,null,null,null,null,null,null,null,0]
[null,null,null,null,null,null,null,null,null,null,null,null,null,null,null,null,null,null,null,null,null,null,null,null,null,null,null,null,null,null,null,null,null,null,null,null,null,null,null,null,null,null,null,null,null,null,null,null,null,null,null,null,null,null,0]
[null,null,null,null,null,null,null,null,null,null,null,null,null,null,null,null,null,null,null,null,null,null,null,null,null,null,null,null,null,null,null,null,null,null,null,null,null,null,null,null,null,null,null,null,null,null,null,null,null,null,null,null,null,null,0]
[null,null,null,null,null,null,null,null,null,null,null,null,null,null,null,null,null,null,null,null,null,null,null,null,null,null,null,null,null,null,null,null,null,null,null,null,null,null,null,null,null,null,null,null,null,null,null,null,null,null,null,null,null,null,0]
[null,null,null,null,null,null,null,null,null,null,null,null,null,null,null,null,null,null,null,null,null,null,null,null,null,null,null,null,null,null,null,null,null,null,null,null,null,null,null,null,null,null,null,null,null,null,null,null,null,null,null,null,null,null,0]
[null,null,null,null,null,null,null,null,null,null,null,null,null,null,null,null,null,null,null,null,null,null,null,null,null,null,null,null,null,null,null,null,null,null,null,null,null,null,null,null,null,null,null,null,null,null,null,null,null,null,null,null,null,null,0]
[null,null,null,null,null,null,null,null,null,null,null,null,null,null,null,null,null,null,null,null,null,null,null,null,null,null,null,null,null,null,null,null,null,null,null,null,null,null,null,null,null,null,null,null,null,null,null,null,null,null,null,null,null,null,0]
[null,null,null,null,null,null,null,null,null,null,null,null,null,null,null,null,null,null,null,null,null,null,null,null,null,null,null,null,null,null,null,null,null,null,null,null,null,null,null,null,null,null,null,null,null,null,null,null,null,null,null,null,null,null,0]
[null,null,null,null,null,null,null,null,null,null,null,null,null,null,null,null,null,null,null,null,null,null,null,null,null,null,null,null,null,null,null,null,null,null,null,null,null,null,null,null,null,null,null,null,null,null,null,null,null,null,null,null,null,null,0]
[null,null,null,null,null,null,null,null,null,null,null,null,null,null,null,null,null,null,null,null,null,null,null,null,null,null,null,null,null,null,null,null,null,null,null,null,null,null,null,null,null,null,null,null,null,null,null,null,null,null,null,null,null,null,0]
[null,null,null,null,null,null,null,null,null,null,null,null,null,null,null,null,null,null,null,null,null,null,null,null,null,null,null,null,null,null,null,null,null,null,null,null,null,null,null,null,null,null,null,null,null,null,null,null,null,null,null,null,null,null,0]
[null,null,null,null,null,null,null,null,null,null,null,null,null,null,null,null,null,null,null,null,null,null,null,null,null,null,null,null,null,null,null,null,null,null,null,null,null,null,null,null,null,null,null,null,null,null,null,null,null,null,null,null,null,null,0]
[null,null,null,null,null,null,null,null,null,null,null,null,null,null,null,null,null,null,null,null,null,null,null,null,null,null,null,null,null,null,null,null,null,null,null,null,null,null,null,null,null,null,null,null,null,null,null,null,null,null,null,null,null,null,0]
[null,null,null,null,null,null,null,null,null,null,null,null,null,null,null,null,null,null,null,null,null,null,null,null,null,null,null,null,null,null,null,null,null,null,null,null,null,null,null,null,null,null,null,null,null,null,null,null,null,null,null,null,null,null,0]
[null,null,null,null,null,null,null,null,null,null,null,null,null,null,null,null,null,null,null,null,null,null,null,null,null,null,null,null,null,null,null,null,null,null,null,null,null,null,null,null,null,null,null,null,null,null,null,null,null,null,null,null,null,null,0]
[null,null,null,null,null,null,null,null,null,null,null,null,null,null,null,null,null,null,null,null,null,null,null,null,null,null,null,null,null,null,null,null,null,null,null,null,null,null,null,null,null,null,null,null,null,null,null,null,null,null,null,null,null,null,0]
[null,null,null,null,null,null,null,null,null,null,null,null,null,null,null,null,null,null,null,null,null,null,null,null,null,null,null,null,null,null,null,null,null,null,null,null,null,null,null,null,null,null,null,null,null,null,null,null,null,null,null,null,null,null,0]
[null,null,null,null,null,null,null,null,null,null,null,null,null,null,null,null,null,null,null,null,null,null,null,null,null,null,null,null,null,null,null,null,null,null,null,null,null,null,null,null,null,null,null,null,null,null,null,null,null,null,null,null,null,null,0]
[null,null,null,null,null,null,null,null,null,null,null,null,null,null,null,null,null,null,null,null,null,null,null,null,null,null,null,null,null,null,null,null,null,null,null,null,null,null,null,null,null,null,null,null,null,null,null,null,null,null,null,null,null,null,0]
[null,null,null,null,null,null,null,null,null,null,null,null,null,null,null,null,null,null,null,null,null,null,null,null,null,null,null,null,null,null,null,null,null,null,null,null,null,null,null,null,null,null,null,null,null,null,null,null,null,null,null,null,null,null,0]
[null,null,null,null,null,null,null,null,null,null,null,null,null,null,null,null,null,null,null,null,null,null,null,null,null,null,null,null,null,null,null,null,null,null,null,null,null,null,null,null,null,null,null,null,null,null,null,null,null,null,null,null,null,null,0]
[null,null,null,null,null,null,null,null,null,null,null,null,null,null,null,null,null,null,null,null,null,null,null,null,null,null,null,null,null,null,null,null,null,null,null,null,null,null,null,null,null,null,null,null,null,null,null,null,null,null,null,null,null,null,0]
[null,null,null,null,null,null,null,null,null,null,null,null,null,null,null,null,null,null,null,null,null,null,null,null,null,null,null,null,null,null,null,null,null,null,null,null,null,null,null,null,null,null,null,null,null,null,null,null,null,null,null,null,null,null,0]
[null,null,null,null,null,null,null,null,null,null,null,null,null,null,null,null,null,null,null,null,null,null,null,null,null,null,null,null,null,null,null,null,null,null,null,null,null,null,null,null,null,null,null,null,null,null,null,null,null,null,null,null,null,null,0]
[null,null,null,null,null,null,null,null,null,null,null,null,null,null,null,null,null,null,null,null,null,null,null,null,null,null,null,null,null,null,null,null,null,null,null,null,null,null,null,null,null,null,null,null,null,null,null,null,null,null,null,null,null,null,0]
[null,null,null,null,null,null,null,null,null,null,null,null,null,null,null,null,null,null,null,null,null,null,null,null,null,null,null,null,null,null,null,null,null,null,null,null,null,null,null,null,null,null,null,null,null,null,null,null,null,null,null,null,null,null,0]
[null,null,null,null,null,null,null,null,null,null,null,null,null,null,null,null,null,null,null,null,null,null,null,null,null,null,null,null,null,null,null,null,null,null,null,null,null,null,null,null,null,null,null,null,null,null,null,null,null,null,null,null,null,null,0]
[null,null,null,null,null,null,null,null,null,null,null,null,null,null,null,null,null,null,null,null,null,null,null,null,null,null,null,null,null,null,null,null,null,null,null,null,null,null,null,null,null,null,null,null,null,null,null,null,null,null,null,null,null,null,0]
[null,null,null,null,null,null,null,null,null,null,null,null,null,null,null,null,null,null,null,null,null,null,null,null,null,null,null,null,null,null,null,null,null,null,null,null,null,null,null,null,null,null,null,null,null,null,null,null,null,null,null,null,null,null,0]
[null,null,null,null,null,null,null,null,null,null,null,null,null,null,null,null,null,null,null,null,null,null,null,null,null,null,null,null,null,null,null,null,null,null,null,null,null,null,null,null,null,null,null,null,null,null,null,null,null,null,null,null,null,null,0]

{"sheet":"Elemzés","index":4,"n_rows":2,"n_cols":11,"rows_kept":2,"cut":false,"hidden":false,"merged":[]}
[]
[null,null,null,null,null,null,null,null,null,null,"Önértékelés és kockázatok időbeli alakulása"]

{"sheet":"Adattár","index":5,"n_rows":101,"n_cols":24,"rows_kept":101,"cut":false,"hidden":false,"merged":[[0,13,0,22],[0,23,1,23],[0,1,0,10]]}
[null,null,null,null,null,null,null,null,null,null,null,null,null,"Megállapítás, értékelés (1-5)",null,null,null,null,null,null,null,null,null,"Megfelelőségi szint átlaga"]
["Szolgáltatás dátuma","Egészségi állapot","Családi, támogató közeg","Beilleszkedés, kollegiális kapcsolatok","Felettessel való viszony","Munkakörnyezet akadálymentessége","Munkaköri feladatok ellátása","Munkavállalói teljesítmény","Munkából való hiányzás","Egyéb problémák, nehézségek","Egyéb …","Összesített kockázati szint (max)","Kockázat szint átlaga","Egészségi állapot","Családi, támogató közeg","Beilleszkedés, kollegiális kapcsolatok","Felettessel való viszony","Munkakörnyezet akadálymentessége","Munkaköri feladatok ellátása","Munkavállalói teljesítmény","Munkából való hiányzás","Egyéb problémák, nehézségek","Egyéb …"]
[{"$f":"IF(Munkanaplo!E3>0,Munkanaplo!E3,\"\")","v":""},{"$f":"IF(Munkanaplo!H3>0,Munkanaplo!H3,\"\")","v":""},{"$f":"IF(Munkanaplo!I3>0,Munkanaplo!I3,\"\")","v":""},{"$f":"IF(Munkanaplo!J3>0,Munkanaplo!J3,\"\")","v":""},{"$f":"IF(Munkanaplo!K3>0,Munkanaplo!K3,\"\")","v":""},{"$f":"IF(Munkanaplo!L3>0,Munkanaplo!L3,\"\")","v":""},{"$f":"IF(Munkanaplo!M3>0,Munkanaplo!M3,\"\")","v":""},{"$f":"IF(Munkanaplo!N3>0,Munkanaplo!N3,\"\")","v":""},{"$f":"IF(Munkanaplo!O3>0,Munkanaplo!O3,\"\")","v":""},{"$f":"IF(Munkanaplo!P3>0,Munkanaplo!P3,\"\")","v":""},{"$f":"IF(Munkanaplo!Q3>0,Munkanaplo!Q3,\"\")","v":""},{"$f":"IFERROR(IF(Munkanaplo!R3>0,Munkanaplo!R3,\"\")/5,\"\")","v":""},{"$f":"IF(Munkanaplo!AF3>0,Munkanaplo!AF3,\"\")","v":""},{"$f":"IF(Munkanaplo!V3>0,Munkanaplo!V3,\"\")","v":""},{"$f":"IF(Munkanaplo!W3>0,Munkanaplo!W3,\"\")","v":""},{"$f":"IF(Munkanaplo!X3>0,Munkanaplo!X3,\"\")","v":""},{"$f":"IF(Munkanaplo!Y3>0,Munkanaplo!Y3,\"\")","v":""},{"$f":"IF(Munkanaplo!Z3>0,Munkanaplo!Z3,\"\")","v":""},{"$f":"IF(Munkanaplo!AA3>0,Munkanaplo!AA3,\"\")","v":""},{"$f":"IF(Munkanaplo!AB3>0,Munkanaplo!AB3,\"\")","v":""},{"$f":"IF(Munkanaplo!AC3>0,Munkanaplo!AC3,\"\")","v":""},{"$f":"IF(Munkanaplo!AD3>0,Munkanaplo!AD3,\"\")","v":""},{"$f":"IF(Munkanaplo!AE3>0,Munkanaplo!AE3,\"\")","v":""},{"$f":"IF(Munkanaplo!AG3>0,Munkanaplo!AG3,\"\")","v":""}]
[{"$f":"IF(Munkanaplo!E4>0,Munkanaplo!E4,\"\")","v":""},{"$f":"IF(Munkanaplo!H4>0,Munkanaplo!H4,\"\")","v":""},{"$f":"IF(Munkanaplo!I4>0,Munkanaplo!I4,\"\")","v":""},{"$f":"IF(Munkanaplo!J4>0,Munkanaplo!J4,\"\")","v":""},{"$f":"IF(Munkanaplo!K4>0,Munkanaplo!K4,\"\")","v":""},{"$f":"IF(Munkanaplo!L4>0,Munkanaplo!L4,\"\")","v":""},{"$f":"IF(Munkanaplo!M4>0,Munkanaplo!M4,\"\")","v":""},{"$f":"IF(Munkanaplo!N4>0,Munkanaplo!N4,\"\")","v":""},{"$f":"IF(Munkanaplo!O4>0,Munkanaplo!O4,\"\")","v":""},{"$f":"IF(Munkanaplo!P4>0,Munkanaplo!P4,\"\")","v":""},{"$f":"IF(Munkanaplo!Q4>0,Munkanaplo!Q4,\"\")","v":""},{"$f":"IFERROR(IF(Munkanaplo!R4>0,Munkanaplo!R4,\"\")/5,\"\")","v":""},{"$f":"IF(Munkanaplo!AF4>0,Munkanaplo!AF4,\"\")","v":""},{"$f":"IF(Munkanaplo!V4>0,Munkanaplo!V4,\"\")","v":""},{"$f":"IF(Munkanaplo!W4>0,Munkanaplo!W4,\"\")","v":""},{"$f":"IF(Munkanaplo!X4>0,Munkanaplo!X4,\"\")","v":""},{"$f":"IF(Munkanaplo!Y4>0,Munkanaplo!Y4,\"\")","v":""},{"$f":"IF(Munkanaplo!Z4>0,Munkanaplo!Z4,\"\")","v":""},{"$f":"IF(Munkanaplo!AA4>0,Munkanaplo!AA4,\"\")","v":""},{"$f":"IF(Munkanaplo!AB4>0,Munkanaplo!AB4,\"\")","v":""},{"$f":"IF(Munkanaplo!AC4>0,Munkanaplo!AC4,\"\")","v":""},{"$f":"IF(Munkanaplo!AD4>0,Munkanaplo!AD4,\"\")","v":""},{"$f":"IF(Munkanaplo!AE4>0,Munkanaplo!AE4,\"\")","v":""},{"$f":"IF(Munkanaplo!AG4>0,Munkanaplo!AG4,\"\")","v":""}]
[{"$f":"IF(Munkanaplo!E5>0,Munkanaplo!E5,\"\")","v":""},{"$f":"IF(Munkanaplo!H5>0,Munkanaplo!H5,\"\")","v":""},{"$f":"IF(Munkanaplo!I5>0,Munkanaplo!I5,\"\")","v":""},{"$f":"IF(Munkanaplo!J5>0,Munkanaplo!J5,\"\")","v":""},{"$f":"IF(Munkanaplo!K5>0,Munkanaplo!K5,\"\")","v":""},{"$f":"IF(Munkanaplo!L5>0,Munkanaplo!L5,\"\")","v":""},{"$f":"IF(Munkanaplo!M5>0,Munkanaplo!M5,\"\")","v":""},{"$f":"IF(Munkanaplo!N5>0,Munkanaplo!N5,\"\")","v":""},{"$f":"IF(Munkanaplo!O5>0,Munkanaplo!O5,\"\")","v":""},{"$f":"IF(Munkanaplo!P5>0,Munkanaplo!P5,\"\")","v":""},{"$f":"IF(Munkanaplo!Q5>0,Munkanaplo!Q5,\"\")","v":""},{"$f":"IFERROR(IF(Munkanaplo!R5>0,Munkanaplo!R5,\"\")/5,\"\")","v":""},{"$f":"IF(Munkanaplo!AF5>0,Munkanaplo!AF5,\"\")","v":""},{"$f":"IF(Munkanaplo!V5>0,Munkanaplo!V5,\"\")","v":""},{"$f":"IF(Munkanaplo!W5>0,Munkanaplo!W5,\"\")","v":""},{"$f":"IF(Munkanaplo!X5>0,Munkanaplo!X5,\"\")","v":""},{"$f":"IF(Munkanaplo!Y5>0,Munkanaplo!Y5,\"\")","v":""},{"$f":"IF(Munkanaplo!Z5>0,Munkanaplo!Z5,\"\")","v":""},{"$f":"IF(Munkanaplo!AA5>0,Munkanaplo!AA5,\"\")","v":""},{"$f":"IF(Munkanaplo!AB5>0,Munkanaplo!AB5,\"\")","v":""},{"$f":"IF(Munkanaplo!AC5>0,Munkanaplo!AC5,\"\")","v":""},{"$f":"IF(Munkanaplo!AD5>0,Munkanaplo!AD5,\"\")","v":""},{"$f":"IF(Munkanaplo!AE5>0,Munkanaplo!AE5,\"\")","v":""},{"$f":"IF(Munkanaplo!AG5>0,Munkanaplo!AG5,\"\")","v":""}]
[{"$f":"IF(Munkanaplo!E6>0,Munkanaplo!E6,\"\")","v":""},{"$f":"IF(Munkanaplo!H6>0,Munkanaplo!H6,\"\")","v":""},{"$f":"IF(Munkanaplo!I6>0,Munkanaplo!I6,\"\")","v":""},{"$f":"IF(Munkanaplo!J6>0,Munkanaplo!J6,\"\")","v":""},{"$f":"IF(Munkanaplo!K6>0,Munkanaplo!K6,\"\")","v":""},{"$f":"IF(Munkanaplo!L6>0,Munkanaplo!L6,\"\")","v":""},{"$f":"IF(Munkanaplo!M6>0,Munkanaplo!M6,\"\")","v":""},{"$f":"IF(Munkanaplo!N6>0,Munkanaplo!N6,\"\")","v":""},{"$f":"IF(Munkanaplo!O6>0,Munkanaplo!O6,\"\")","v":""},{"$f":"IF(Munkanaplo!P6>0,Munkanaplo!P6,\"\")","v":""},{"$f":"IF(Munkanaplo!Q6>0,Munkanaplo!Q6,\"\")","v":""},{"$f":"IFERROR(IF(Munkanaplo!R6>0,Munkanaplo!R6,\"\")/5,\"\")","v":""},{"$f":"IF(Munkanaplo!AF6>0,Munkanaplo!AF6,\"\")","v":""},{"$f":"IF(Munkanaplo!V6>0,Munkanaplo!V6,\"\")","v":""},{"$f":"IF(Munkanaplo!W6>0,Munkanaplo!W6,\"\")","v":""},{"$f":"IF(Munkanaplo!X6>0,Munkanaplo!X6,\"\")","v":""},{"$f":"IF(Munkanaplo!Y6>0,Munkanaplo!Y6,\"\")","v":""},{"$f":"IF(Munkanaplo!Z6>0,Munkanaplo!Z6,\"\")","v":""},{"$f":"IF(Munkanaplo!AA6>0,Munkanaplo!AA6,\"\")","v":""},{"$f":"IF(Munkanaplo!AB6>0,Munkanaplo!AB6,\"\")","v":""},{"$f":"IF(Munkanaplo!AC6>0,Munkanaplo!AC6,\"\")","v":""},{"$f":"IF(Munkanaplo!AD6>0,Munkanaplo!AD6,\"\")","v":""},{"$f":"IF(Munkanaplo!AE6>0,Munkanaplo!AE6,\"\")","v":""},{"$f":"IF(Munkanaplo!AG6>0,Munkanaplo!AG6,\"\")","v":""}]
[{"$f":"IF(Munkanaplo!E7>0,Munkanaplo!E7,\"\")","v":""},{"$f":"IF(Munkanaplo!H7>0,Munkanaplo!H7,\"\")","v":""},{"$f":"IF(Munkanaplo!I7>0,Munkanaplo!I7,\"\")","v":""},{"$f":"IF(Munkanaplo!J7>0,Munkanaplo!J7,\"\")","v":""},{"$f":"IF(Munkanaplo!K7>0,Munkanaplo!K7,\"\")","v":""},{"$f":"IF(Munkanaplo!L7>0,Munkanaplo!L7,\"\")","v":""},{"$f":"IF(Munkanaplo!M7>0,Munkanaplo!M7,\"\")","v":""},{"$f":"IF(Munkanaplo!N7>0,Munkanaplo!N7,\"\")","v":""},{"$f":"IF(Munkanaplo!O7>0,Munkanaplo!O7,\"\")","v":""},{"$f":"IF(Munkanaplo!P7>0,Munkanaplo!P7,\"\")","v":""},{"$f":"IF(Munkanaplo!Q7>0,Munkanaplo!Q7,\"\")","v":""},{"$f":"IFERROR(IF(Munkanaplo!R7>0,Munkanaplo!R7,\"\")/5,\"\")","v":""},{"$f":"IF(Munkanaplo!AF7>0,Munkanaplo!AF7,\"\")","v":""},{"$f":"IF(Munkanaplo!V7>0,Munkanaplo!V7,\"\")","v":""},{"$f":"IF(Munkanaplo!W7>0,Munkanaplo!W7,\"\")","v":""},{"$f":"IF(Munkanaplo!X7>0,Munkanaplo!X7,\"\")","v":""},{"$f":"IF(Munkanaplo!Y7>0,Munkanaplo!Y7,\"\")","v":""},{"$f":"IF(Munkanaplo!Z7>0,Munkanaplo!Z7,\"\")","v":""},{"$f":"IF(Munkanaplo!AA7>0,Munkanaplo!AA7,\"\")","v":""},{"$f":"IF(Munkanaplo!AB7>0,Munkanaplo!AB7,\"\")","v":""},{"$f":"IF(Munkanaplo!AC7>0,Munkanaplo!AC7,\"\")","v":""},{"$f":"IF(Munkanaplo!AD7>0,Munkanaplo!AD7,\"\")","v":""},{"$f":"IF(Munkanaplo!AE7>0,Munkanaplo!AE7,\"\")","v":""},{"$f":"IF(Munkanaplo!AG7>0,Munkanaplo!AG7,\"\")","v":""}]
[{"$f":"IF(Munkanaplo!E8>0,Munkanaplo!E8,\"\")","v":""},{"$f":"IF(Munkanaplo!H8>0,Munkanaplo!H8,\"\")","v":""},{"$f":"IF(Munkanaplo!I8>0,Munkanaplo!I8,\"\")","v":""},{"$f":"IF(Munkanaplo!J8>0,Munkanaplo!J8,\"\")","v":""},{"$f":"IF(Munkanaplo!K8>0,Munkanaplo!K8,\"\")","v":""},{"$f":"IF(Munkanaplo!L8>0,Munkanaplo!L8,\"\")","v":""},{"$f":"IF(Munkanaplo!M8>0,Munkanaplo!M8,\"\")","v":""},{"$f":"IF(Munkanaplo!N8>0,Munkanaplo!N8,\"\")","v":""},{"$f":"IF(Munkanaplo!O8>0,Munkanaplo!O8,\"\")","v":""},{"$f":"IF(Munkanaplo!P8>0,Munkanaplo!P8,\"\")","v":""},{"$f":"IF(Munkanaplo!Q8>0,Munkanaplo!Q8,\"\")","v":""},{"$f":"IFERROR(IF(Munkanaplo!R8>0,Munkanaplo!R8,\"\")/5,\"\")","v":""},{"$f":"IF(Munkanaplo!AF8>0,Munkanaplo!AF8,\"\")","v":""},{"$f":"IF(Munkanaplo!V8>0,Munkanaplo!V8,\"\")","v":""},{"$f":"IF(Munkanaplo!W8>0,Munkanaplo!W8,\"\")","v":""},{"$f":"IF(Munkanaplo!X8>0,Munkanaplo!X8,\"\")","v":""},{"$f":"IF(Munkanaplo!Y8>0,Munkanaplo!Y8,\"\")","v":""},{"$f":"IF(Munkanaplo!Z8>0,Munkanaplo!Z8,\"\")","v":""},{"$f":"IF(Munkanaplo!AA8>0,Munkanaplo!AA8,\"\")","v":""},{"$f":"IF(Munkanaplo!AB8>0,Munkanaplo!AB8,\"\")","v":""},{"$f":"IF(Munkanaplo!AC8>0,Munkanaplo!AC8,\"\")","v":""},{"$f":"IF(Munkanaplo!AD8>0,Munkanaplo!AD8,\"\")","v":""},{"$f":"IF(Munkanaplo!AE8>0,Munkanaplo!AE8,\"\")","v":""},{"$f":"IF(Munkanaplo!AG8>0,Munkanaplo!AG8,\"\")","v":""}]
[{"$f":"IF(Munkanaplo!E9>0,Munkanaplo!E9,\"\")","v":""},{"$f":"IF(Munkanaplo!H9>0,Munkanaplo!H9,\"\")","v":""},{"$f":"IF(Munkanaplo!I9>0,Munkanaplo!I9,\"\")","v":""},{"$f":"IF(Munkanaplo!J9>0,Munkanaplo!J9,\"\")","v":""},{"$f":"IF(Munkanaplo!K9>0,Munkanaplo!K9,\"\")","v":""},{"$f":"IF(Munkanaplo!L9>0,Munkanaplo!L9,\"\")","v":""},{"$f":"IF(Munkanaplo!M9>0,Munkanaplo!M9,\"\")","v":""},{"$f":"IF(Munkanaplo!N9>0,Munkanaplo!N9,\"\")","v":""},{"$f":"IF(Munkanaplo!O9>0,Munkanaplo!O9,\"\")","v":""},{"$f":"IF(Munkanaplo!P9>0,Munkanaplo!P9,\"\")","v":""},{"$f":"IF(Munkanaplo!Q9>0,Munkanaplo!Q9,\"\")","v":""},{"$f":"IFERROR(IF(Munkanaplo!R9>0,Munkanaplo!R9,\"\")/5,\"\")","v":""},{"$f":"IF(Munkanaplo!AF9>0,Munkanaplo!AF9,\"\")","v":""},{"$f":"IF(Munkanaplo!V9>0,Munkanaplo!V9,\"\")","v":""},{"$f":"IF(Munkanaplo!W9>0,Munkanaplo!W9,\"\")","v":""},{"$f":"IF(Munkanaplo!X9>0,Munkanaplo!X9,\"\")","v":""},{"$f":"IF(Munkanaplo!Y9>0,Munkanaplo!Y9,\"\")","v":""},{"$f":"IF(Munkanaplo!Z9>0,Munkanaplo!Z9,\"\")","v":""},{"$f":"IF(Munkanaplo!AA9>0,Munkanaplo!AA9,\"\")","v":""},{"$f":"IF(Munkanaplo!AB9>0,Munkanaplo!AB9,\"\")","v":""},{"$f":"IF(Munkanaplo!AC9>0,Munkanaplo!AC9,\"\")","v":""},{"$f":"IF(Munkanaplo!AD9>0,Munkanaplo!AD9,\"\")","v":""},{"$f":"IF(Munkanaplo!AE9>0,Munkanaplo!AE9,\"\")","v":""},{"$f":"IF(Munkanaplo!AG9>0,Munkanaplo!AG9,\"\")","v":""}]
[{"$f":"IF(Munkanaplo!E10>0,Munkanaplo!E10,\"\")","v":""},{"$f":"IF(Munkanaplo!H10>0,Munkanaplo!H10,\"\")","v":""},{"$f":"IF(Munkanaplo!I10>0,Munkanaplo!I10,\"\")","v":""},{"$f":"IF(Munkanaplo!J10>0,Munkanaplo!J10,\"\")","v":""},{"$f":"IF(Munkanaplo!K10>0,Munkanaplo!K10,\"\")","v":""},{"$f":"IF(Munkanaplo!L10>0,Munkanaplo!L10,\"\")","v":""},{"$f":"IF(Munkanaplo!M10>0,Munkanaplo!M10,\"\")","v":""},{"$f":"IF(Munkanaplo!N10>0,Munkanaplo!N10,\"\")","v":""},{"$f":"IF(Munkanaplo!O10>0,Munkanaplo!O10,\"\")","v":""},{"$f":"IF(Munkanaplo!P10>0,Munkanaplo!P10,\"\")","v":""},{"$f":"IF(Munkanaplo!Q10>0,Munkanaplo!Q10,\"\")","v":""},{"$f":"IFERROR(IF(Munkanaplo!R10>0,Munkanaplo!R10,\"\")/5,\"\")","v":""},{"$f":"IF(Munkanaplo!AF10>0,Munkanaplo!AF10,\"\")","v":""},{"$f":"IF(Munkanaplo!V10>0,Munkanaplo!V10,\"\")","v":""},{"$f":"IF(Munkanaplo!W10>0,Munkanaplo!W10,\"\")","v":""},{"$f":"IF(Munkanaplo!X10>0,Munkanaplo!X10,\"\")","v":""},{"$f":"IF(Munkanaplo!Y10>0,Munkanaplo!Y10,\"\")","v":""},{"$f":"IF(Munkanaplo!Z10>0,Munkanaplo!Z10,\"\")","v":""},{"$f":"IF(Munkanaplo!AA10>0,Munkanaplo!AA10,\"\")","v":""},{"$f":"IF(Munkanaplo!AB10>0,Munkanaplo!AB10,\"\")","v":""},{"$f":"IF(Munkanaplo!AC10>0,Munkanaplo!AC10,\"\")","v":""},{"$f":"IF(Munkanaplo!AD10>0,Munkanaplo!AD10,\"\")","v":""},{"$f":"IF(Munkanaplo!AE10>0,Munkanaplo!AE10,\"\")","v":""},{"$f":"IF(Munkanaplo!AG10>0,Munkanaplo!AG10,\"\")","v":""}]
[{"$f":"IF(Munkanaplo!E11>0,Munkanaplo!E11,\"\")","v":""},{"$f":"IF(Munkanaplo!H11>0,Munkanaplo!H11,\"\")","v":""},{"$f":"IF(Munkanaplo!I11>0,Munkanaplo!I11,\"\")","v":""},{"$f":"IF(Munkanaplo!J11>0,Munkanaplo!J11,\"\")","v":""},{"$f":"IF(Munkanaplo!K11>0,Munkanaplo!K11,\"\")","v":""},{"$f":"IF(Munkanaplo!L11>0,Munkanaplo!L11,\"\")","v":""},{"$f":"IF(Munkanaplo!M11>0,Munkanaplo!M11,\"\")","v":""},{"$f":"IF(Munkanaplo!N11>0,Munkanaplo!N11,\"\")","v":""},{"$f":"IF(Munkanaplo!O11>0,Munkanaplo!O11,\"\")","v":""},{"$f":"IF(Munkanaplo!P11>0,Munkanaplo!P11,\"\")","v":""},{"$f":"IF(Munkanaplo!Q11>0,Munkanaplo!Q11,\"\")","v":""},{"$f":"IFERROR(IF(Munkanaplo!R11>0,Munkanaplo!R11,\"\")/5,\"\")","v":""},{"$f":"IF(Munkanaplo!AF11>0,Munkanaplo!AF11,\"\")","v":""},{"$f":"IF(Munkanaplo!V11>0,Munkanaplo!V11,\"\")","v":""},{"$f":"IF(Munkanaplo!W11>0,Munkanaplo!W11,\"\")","v":""},{"$f":"IF(Munkanaplo!X11>0,Munkanaplo!X11,\"\")","v":""},{"$f":"IF(Munkanaplo!Y11>0,Munkanaplo!Y11,\"\")","v":""},{"$f":"IF(Munkanaplo!Z11>0,Munkanaplo!Z11,\"\")","v":""},{"$f":"IF(Munkanaplo!AA11>0,Munkanaplo!AA11,\"\")","v":""},{"$f":"IF(Munkanaplo!AB11>0,Munkanaplo!AB11,\"\")","v":""},{"$f":"IF(Munkanaplo!AC11>0,Munkanaplo!AC11,\"\")","v":""},{"$f":"IF(Munkanaplo!AD11>0,Munkanaplo!AD11,\"\")","v":""},{"$f":"IF(Munkanaplo!AE11>0,Munkanaplo!AE11,\"\")","v":""},{"$f":"IF(Munkanaplo!AG11>0,Munkanaplo!AG11,\"\")","v":""}]
[{"$f":"IF(Munkanaplo!E12>0,Munkanaplo!E12,\"\")","v":""},{"$f":"IF(Munkanaplo!H12>0,Munkanaplo!H12,\"\")","v":""},{"$f":"IF(Munkanaplo!I12>0,Munkanaplo!I12,\"\")","v":""},{"$f":"IF(Munkanaplo!J12>0,Munkanaplo!J12,\"\")","v":""},{"$f":"IF(Munkanaplo!K12>0,Munkanaplo!K12,\"\")","v":""},{"$f":"IF(Munkanaplo!L12>0,Munkanaplo!L12,\"\")","v":""},{"$f":"IF(Munkanaplo!M12>0,Munkanaplo!M12,\"\")","v":""},{"$f":"IF(Munkanaplo!N12>0,Munkanaplo!N12,\"\")","v":""},{"$f":"IF(Munkanaplo!O12>0,Munkanaplo!O12,\"\")","v":""},{"$f":"IF(Munkanaplo!P12>0,Munkanaplo!P12,\"\")","v":""},{"$f":"IF(Munkanaplo!Q12>0,Munkanaplo!Q12,\"\")","v":""},{"$f":"IFERROR(IF(Munkanaplo!R12>0,Munkanaplo!R12,\"\")/5,\"\")","v":""},{"$f":"IF(Munkanaplo!AF12>0,Munkanaplo!AF12,\"\")","v":""},{"$f":"IF(Munkanaplo!V12>0,Munkanaplo!V12,\"\")","v":""},{"$f":"IF(Munkanaplo!W12>0,Munkanaplo!W12,\"\")","v":""},{"$f":"IF(Munkanaplo!X12>0,Munkanaplo!X12,\"\")","v":""},{"$f":"IF(Munkanaplo!Y12>0,Munkanaplo!Y12,\"\")","v":""},{"$f":"IF(Munkanaplo!Z12>0,Munkanaplo!Z12,\"\")","v":""},{"$f":"IF(Munkanaplo!AA12>0,Munkanaplo!AA12,\"\")","v":""},{"$f":"IF(Munkanaplo!AB12>0,Munkanaplo!AB12,\"\")","v":""},{"$f":"IF(Munkanaplo!AC12>0,Munkanaplo!AC12,\"\")","v":""},{"$f":"IF(Munkanaplo!AD12>0,Munkanaplo!AD12,\"\")","v":""},{"$f":"IF(Munkanaplo!AE12>0,Munkanaplo!AE12,\"\")","v":""},{"$f":"IF(Munkanaplo!AG12>0,Munkanaplo!AG12,\"\")","v":""}]
[{"$f":"IF(Munkanaplo!E13>0,Munkanaplo!E13,\"\")","v":""},{"$f":"IF(Munkanaplo!H13>0,Munkanaplo!H13,\"\")","v":""},{"$f":"IF(Munkanaplo!I13>0,Munkanaplo!I13,\"\")","v":""},{"$f":"IF(Munkanaplo!J13>0,Munkanaplo!J13,\"\")","v":""},{"$f":"IF(Munkanaplo!K13>0,Munkanaplo!K13,\"\")","v":""},{"$f":"IF(Munkanaplo!L13>0,Munkanaplo!L13,\"\")","v":""},{"$f":"IF(Munkanaplo!M13>0,Munkanaplo!M13,\"\")","v":""},{"$f":"IF(Munkanaplo!N13>0,Munkanaplo!N13,\"\")","v":""},{"$f":"IF(Munkanaplo!O13>0,Munkanaplo!O13,\"\")","v":""},{"$f":"IF(Munkanaplo!P13>0,Munkanaplo!P13,\"\")","v":""},{"$f":"IF(Munkanaplo!Q13>0,Munkanaplo!Q13,\"\")","v":""},{"$f":"IFERROR(IF(Munkanaplo!R13>0,Munkanaplo!R13,\"\")/5,\"\")","v":""},{"$f":"IF(Munkanaplo!AF13>0,Munkanaplo!AF13,\"\")","v":""},{"$f":"IF(Munkanaplo!V13>0,Munkanaplo!V13,\"\")","v":""},{"$f":"IF(Munkanaplo!W13>0,Munkanaplo!W13,\"\")","v":""},{"$f":"IF(Munkanaplo!X13>0,Munkanaplo!X13,\"\")","v":""},{"$f":"IF(Munkanaplo!Y13>0,Munkanaplo!Y13,\"\")","v":""},{"$f":"IF(Munkanaplo!Z13>0,Munkanaplo!Z13,\"\")","v":""},{"$f":"IF(Munkanaplo!AA13>0,Munkanaplo!AA13,\"\")","v":""},{"$f":"IF(Munkanaplo!AB13>0,Munkanaplo!AB13,\"\")","v":""},{"$f":"IF(Munkanaplo!AC13>0,Munkanaplo!AC13,\"\")","v":""},{"$f":"IF(Munkanaplo!AD13>0,Munkanaplo!AD13,\"\")","v":""},{"$f":"IF(Munkanaplo!AE13>0,Munkanaplo!AE13,\"\")","v":""},{"$f":"IF(Munkanaplo!AG13>0,Munkanaplo!AG13,\"\")","v":""}]
[{"$f":"IF(Munkanaplo!E14>0,Munkanaplo!E14,\"\")","v":""},{"$f":"IF(Munkanaplo!H14>0,Munkanaplo!H14,\"\")","v":""},{"$f":"IF(Munkanaplo!I14>0,Munkanaplo!I14,\"\")","v":""},{"$f":"IF(Munkanaplo!J14>0,Munkanaplo!J14,\"\")","v":""},{"$f":"IF(Munkanaplo!K14>0,Munkanaplo!K14,\"\")","v":""},{"$f":"IF(Munkanaplo!L14>0,Munkanaplo!L14,\"\")","v":""},{"$f":"IF(Munkanaplo!M14>0,Munkanaplo!M14,\"\")","v":""},{"$f":"IF(Munkanaplo!N14>0,Munkanaplo!N14,\"\")","v":""},{"$f":"IF(Munkanaplo!O14>0,Munkanaplo!O14,\"\")","v":""},{"$f":"IF(Munkanaplo!P14>0,Munkanaplo!P14,\"\")","v":""},{"$f":"IF(Munkanaplo!Q14>0,Munkanaplo!Q14,\"\")","v":""},{"$f":"IFERROR(IF(Munkanaplo!R14>0,Munkanaplo!R14,\"\")/5,\"\")","v":""},{"$f":"IF(Munkanaplo!AF14>0,Munkanaplo!AF14,\"\")","v":""},{"$f":"IF(Munkanaplo!V14>0,Munkanaplo!V14,\"\")","v":""},{"$f":"IF(Munkanaplo!W14>0,Munkanaplo!W14,\"\")","v":""},{"$f":"IF(Munkanaplo!X14>0,Munkanaplo!X14,\"\")","v":""},{"$f":"IF(Munkanaplo!Y14>0,Munkanaplo!Y14,\"\")","v":""},{"$f":"IF(Munkanaplo!Z14>0,Munkanaplo!Z14,\"\")","v":""},{"$f":"IF(Munkanaplo!AA14>0,Munkanaplo!AA14,\"\")","v":""},{"$f":"IF(Munkanaplo!AB14>0,Munkanaplo!AB14,\"\")","v":""},{"$f":"IF(Munkanaplo!AC14>0,Munkanaplo!AC14,\"\")","v":""},{"$f":"IF(Munkanaplo!AD14>0,Munkanaplo!AD14,\"\")","v":""},{"$f":"IF(Munkanaplo!AE14>0,Munkanaplo!AE14,\"\")","v":""},{"$f":"IF(Munkanaplo!AG14>0,Munkanaplo!AG14,\"\")","v":""}]
[{"$f":"IF(Munkanaplo!E15>0,Munkanaplo!E15,\"\")","v":""},{"$f":"IF(Munkanaplo!H15>0,Munkanaplo!H15,\"\")","v":""},{"$f":"IF(Munkanaplo!I15>0,Munkanaplo!I15,\"\")","v":""},{"$f":"IF(Munkanaplo!J15>0,Munkanaplo!J15,\"\")","v":""},{"$f":"IF(Munkanaplo!K15>0,Munkanaplo!K15,\"\")","v":""},{"$f":"IF(Munkanaplo!L15>0,Munkanaplo!L15,\"\")","v":""},{"$f":"IF(Munkanaplo!M15>0,Munkanaplo!M15,\"\")","v":""},{"$f":"IF(Munkanaplo!N15>0,Munkanaplo!N15,\"\")","v":""},{"$f":"IF(Munkanaplo!O15>0,Munkanaplo!O15,\"\")","v":""},{"$f":"IF(Munkanaplo!P15>0,Munkanaplo!P15,\"\")","v":""},{"$f":"IF(Munkanaplo!Q15>0,Munkanaplo!Q15,\"\")","v":""},{"$f":"IFERROR(IF(Munkanaplo!R15>0,Munkanaplo!R15,\"\")/5,\"\")","v":""},{"$f":"IF(Munkanaplo!AF15>0,Munkanaplo!AF15,\"\")","v":""},{"$f":"IF(Munkanaplo!V15>0,Munkanaplo!V15,\"\")","v":""},{"$f":"IF(Munkanaplo!W15>0,Munkanaplo!W15,\"\")","v":""},{"$f":"IF(Munkanaplo!X15>0,Munkanaplo!X15,\"\")","v":""},{"$f":"IF(Munkanaplo!Y15>0,Munkanaplo!Y15,\"\")","v":""},{"$f":"IF(Munkanaplo!Z15>0,Munkanaplo!Z15,\"\")","v":""},{"$f":"IF(Munkanaplo!AA15>0,Munkanaplo!AA15,\"\")","v":""},{"$f":"IF(Munkanaplo!AB15>0,Munkanaplo!AB15,\"\")","v":""},{"$f":"IF(Munkanaplo!AC15>0,Munkanaplo!AC15,\"\")","v":""},{"$f":"IF(Munkanaplo!AD15>0,Munkanaplo!AD15,\"\")","v":""},{"$f":"IF(Munkanaplo!AE15>0,Munkanaplo!AE15,\"\")","v":""},{"$f":"IF(Munkanaplo!AG15>0,Munkanaplo!AG15,\"\")","v":""}]
[{"$f":"IF(Munkanaplo!E16>0,Munkanaplo!E16,\"\")","v":""},{"$f":"IF(Munkanaplo!H16>0,Munkanaplo!H16,\"\")","v":""},{"$f":"IF(Munkanaplo!I16>0,Munkanaplo!I16,\"\")","v":""},{"$f":"IF(Munkanaplo!J16>0,Munkanaplo!J16,\"\")","v":""},{"$f":"IF(Munkanaplo!K16>0,Munkanaplo!K16,\"\")","v":""},{"$f":"IF(Munkanaplo!L16>0,Munkanaplo!L16,\"\")","v":""},{"$f":"IF(Munkanaplo!M16>0,Munkanaplo!M16,\"\")","v":""},{"$f":"IF(Munkanaplo!N16>0,Munkanaplo!N16,\"\")","v":""},{"$f":"IF(Munkanaplo!O16>0,Munkanaplo!O16,\"\")","v":""},{"$f":"IF(Munkanaplo!P16>0,Munkanaplo!P16,\"\")","v":""},{"$f":"IF(Munkanaplo!Q16>0,Munkanaplo!Q16,\"\")","v":""},{"$f":"IFERROR(IF(Munkanaplo!R16>0,Munkanaplo!R16,\"\")/5,\"\")","v":""},{"$f":"IF(Munkanaplo!AF16>0,Munkanaplo!AF16,\"\")","v":""},{"$f":"IF(Munkanaplo!V16>0,Munkanaplo!V16,\"\")","v":""},{"$f":"IF(Munkanaplo!W16>0,Munkanaplo!W16,\"\")","v":""},{"$f":"IF(Munkanaplo!X16>0,Munkanaplo!X16,\"\")","v":""},{"$f":"IF(Munkanaplo!Y16>0,Munkanaplo!Y16,\"\")","v":""},{"$f":"IF(Munkanaplo!Z16>0,Munkanaplo!Z16,\"\")","v":""},{"$f":"IF(Munkanaplo!AA16>0,Munkanaplo!AA16,\"\")","v":""},{"$f":"IF(Munkanaplo!AB16>0,Munkanaplo!AB16,\"\")","v":""},{"$f":"IF(Munkanaplo!AC16>0,Munkanaplo!AC16,\"\")","v":""},{"$f":"IF(Munkanaplo!AD16>0,Munkanaplo!AD16,\"\")","v":""},{"$f":"IF(Munkanaplo!AE16>0,Munkanaplo!AE16,\"\")","v":""},{"$f":"IF(Munkanaplo!AG16>0,Munkanaplo!AG16,\"\")","v":""}]
[{"$f":"IF(Munkanaplo!E17>0,Munkanaplo!E17,\"\")","v":""},{"$f":"IF(Munkanaplo!H17>0,Munkanaplo!H17,\"\")","v":""},{"$f":"IF(Munkanaplo!I17>0,Munkanaplo!I17,\"\")","v":""},{"$f":"IF(Munkanaplo!J17>0,Munkanaplo!J17,\"\")","v":""},{"$f":"IF(Munkanaplo!K17>0,Munkanaplo!K17,\"\")","v":""},{"$f":"IF(Munkanaplo!L17>0,Munkanaplo!L17,\"\")","v":""},{"$f":"IF(Munkanaplo!M17>0,Munkanaplo!M17,\"\")","v":""},{"$f":"IF(Munkanaplo!N17>0,Munkanaplo!N17,\"\")","v":""},{"$f":"IF(Munkanaplo!O17>0,Munkanaplo!O17,\"\")","v":""},{"$f":"IF(Munkanaplo!P17>0,Munkanaplo!P17,\"\")","v":""},{"$f":"IF(Munkanaplo!Q17>0,Munkanaplo!Q17,\"\")","v":""},{"$f":"IFERROR(IF(Munkanaplo!R17>0,Munkanaplo!R17,\"\")/5,\"\")","v":""},{"$f":"IF(Munkanaplo!AF17>0,Munkanaplo!AF17,\"\")","v":""},{"$f":"IF(Munkanaplo!V17>0,Munkanaplo!V17,\"\")","v":""},{"$f":"IF(Munkanaplo!W17>0,Munkanaplo!W17,\"\")","v":""},{"$f":"IF(Munkanaplo!X17>0,Munkanaplo!X17,\"\")","v":""},{"$f":"IF(Munkanaplo!Y17>0,Munkanaplo!Y17,\"\")","v":""},{"$f":"IF(Munkanaplo!Z17>0,Munkanaplo!Z17,\"\")","v":""},{"$f":"IF(Munkanaplo!AA17>0,Munkanaplo!AA17,\"\")","v":""},{"$f":"IF(Munkanaplo!AB17>0,Munkanaplo!AB17,\"\")","v":""},{"$f":"IF(Munkanaplo!AC17>0,Munkanaplo!AC17,\"\")","v":""},{"$f":"IF(Munkanaplo!AD17>0,Munkanaplo!AD17,\"\")","v":""},{"$f":"IF(Munkanaplo!AE17>0,Munkanaplo!AE17,\"\")","v":""},{"$f":"IF(Munkanaplo!AG17>0,Munkanaplo!AG17,\"\")","v":""}]
[{"$f":"IF(Munkanaplo!E18>0,Munkanaplo!E18,\"\")","v":""},{"$f":"IF(Munkanaplo!H18>0,Munkanaplo!H18,\"\")","v":""},{"$f":"IF(Munkanaplo!I18>0,Munkanaplo!I18,\"\")","v":""},{"$f":"IF(Munkanaplo!J18>0,Munkanaplo!J18,\"\")","v":""},{"$f":"IF(Munkanaplo!K18>0,Munkanaplo!K18,\"\")","v":""},{"$f":"IF(Munkanaplo!L18>0,Munkanaplo!L18,\"\")","v":""},{"$f":"IF(Munkanaplo!M18>0,Munkanaplo!M18,\"\")","v":""},{"$f":"IF(Munkanaplo!N18>0,Munkanaplo!N18,\"\")","v":""},{"$f":"IF(Munkanaplo!O18>0,Munkanaplo!O18,\"\")","v":""},{"$f":"IF(Munkanaplo!P18>0,Munkanaplo!P18,\"\")","v":""},{"$f":"IF(Munkanaplo!Q18>0,Munkanaplo!Q18,\"\")","v":""},{"$f":"IFERROR(IF(Munkanaplo!R18>0,Munkanaplo!R18,\"\")/5,\"\")","v":""},{"$f":"IF(Munkanaplo!AF18>0,Munkanaplo!AF18,\"\")","v":""},{"$f":"IF(Munkanaplo!V18>0,Munkanaplo!V18,\"\")","v":""},{"$f":"IF(Munkanaplo!W18>0,Munkanaplo!W18,\"\")","v":""},{"$f":"IF(Munkanaplo!X18>0,Munkanaplo!X18,\"\")","v":""},{"$f":"IF(Munkanaplo!Y18>0,Munkanaplo!Y18,\"\")","v":""},{"$f":"IF(Munkanaplo!Z18>0,Munkanaplo!Z18,\"\")","v":""},{"$f":"IF(Munkanaplo!AA18>0,Munkanaplo!AA18,\"\")","v":""},{"$f":"IF(Munkanaplo!AB18>0,Munkanaplo!AB18,\"\")","v":""},{"$f":"IF(Munkanaplo!AC18>0,Munkanaplo!AC18,\"\")","v":""},{"$f":"IF(Munkanaplo!AD18>0,Munkanaplo!AD18,\"\")","v":""},{"$f":"IF(Munkanaplo!AE18>0,Munkanaplo!AE18,\"\")","v":""},{"$f":"IF(Munkanaplo!AG18>0,Munkanaplo!AG18,\"\")","v":""}]
[{"$f":"IF(Munkanaplo!E19>0,Munkanaplo!E19,\"\")","v":""},{"$f":"IF(Munkanaplo!H19>0,Munkanaplo!H19,\"\")","v":""},{"$f":"IF(Munkanaplo!I19>0,Munkanaplo!I19,\"\")","v":""},{"$f":"IF(Munkanaplo!J19>0,Munkanaplo!J19,\"\")","v":""},{"$f":"IF(Munkanaplo!K19>0,Munkanaplo!K19,\"\")","v":""},{"$f":"IF(Munkanaplo!L19>0,Munkanaplo!L19,\"\")","v":""},{"$f":"IF(Munkanaplo!M19>0,Munkanaplo!M19,\"\")","v":""},{"$f":"IF(Munkanaplo!N19>0,Munkanaplo!N19,\"\")","v":""},{"$f":"IF(Munkanaplo!O19>0,Munkanaplo!O19,\"\")","v":""},{"$f":"IF(Munkanaplo!P19>0,Munkanaplo!P19,\"\")","v":""},{"$f":"IF(Munkanaplo!Q19>0,Munkanaplo!Q19,\"\")","v":""},{"$f":"IFERROR(IF(Munkanaplo!R19>0,Munkanaplo!R19,\"\")/5,\"\")","v":""},{"$f":"IF(Munkanaplo!AF19>0,Munkanaplo!AF19,\"\")","v":""},{"$f":"IF(Munkanaplo!V19>0,Munkanaplo!V19,\"\")","v":""},{"$f":"IF(Munkanaplo!W19>0,Munkanaplo!W19,\"\")","v":""},{"$f":"IF(Munkanaplo!X19>0,Munkanaplo!X19,\"\")","v":""},{"$f":"IF(Munkanaplo!Y19>0,Munkanaplo!Y19,\"\")","v":""},{"$f":"IF(Munkanaplo!Z19>0,Munkanaplo!Z19,\"\")","v":""},{"$f":"IF(Munkanaplo!AA19>0,Munkanaplo!AA19,\"\")","v":""},{"$f":"IF(Munkanaplo!AB19>0,Munkanaplo!AB19,\"\")","v":""},{"$f":"IF(Munkanaplo!AC19>0,Munkanaplo!AC19,\"\")","v":""},{"$f":"IF(Munkanaplo!AD19>0,Munkanaplo!AD19,\"\")","v":""},{"$f":"IF(Munkanaplo!AE19>0,Munkanaplo!AE19,\"\")","v":""},{"$f":"IF(Munkanaplo!AG19>0,Munkanaplo!AG19,\"\")","v":""}]
[{"$f":"IF(Munkanaplo!E20>0,Munkanaplo!E20,\"\")","v":""},{"$f":"IF(Munkanaplo!H20>0,Munkanaplo!H20,\"\")","v":""},{"$f":"IF(Munkanaplo!I20>0,Munkanaplo!I20,\"\")","v":""},{"$f":"IF(Munkanaplo!J20>0,Munkanaplo!J20,\"\")","v":""},{"$f":"IF(Munkanaplo!K20>0,Munkanaplo!K20,\"\")","v":""},{"$f":"IF(Munkanaplo!L20>0,Munkanaplo!L20,\"\")","v":""},{"$f":"IF(Munkanaplo!M20>0,Munkanaplo!M20,\"\")","v":""},{"$f":"IF(Munkanaplo!N20>0,Munkanaplo!N20,\"\")","v":""},{"$f":"IF(Munkanaplo!O20>0,Munkanaplo!O20,\"\")","v":""},{"$f":"IF(Munkanaplo!P20>0,Munkanaplo!P20,\"\")","v":""},{"$f":"IF(Munkanaplo!Q20>0,Munkanaplo!Q20,\"\")","v":""},{"$f":"IFERROR(IF(Munkanaplo!R20>0,Munkanaplo!R20,\"\")/5,\"\")","v":""},{"$f":"IF(Munkanaplo!AF20>0,Munkanaplo!AF20,\"\")","v":""},{"$f":"IF(Munkanaplo!V20>0,Munkanaplo!V20,\"\")","v":""},{"$f":"IF(Munkanaplo!W20>0,Munkanaplo!W20,\"\")","v":""},{"$f":"IF(Munkanaplo!X20>0,Munkanaplo!X20,\"\")","v":""},{"$f":"IF(Munkanaplo!Y20>0,Munkanaplo!Y20,\"\")","v":""},{"$f":"IF(Munkanaplo!Z20>0,Munkanaplo!Z20,\"\")","v":""},{"$f":"IF(Munkanaplo!AA20>0,Munkanaplo!AA20,\"\")","v":""},{"$f":"IF(Munkanaplo!AB20>0,Munkanaplo!AB20,\"\")","v":""},{"$f":"IF(Munkanaplo!AC20>0,Munkanaplo!AC20,\"\")","v":""},{"$f":"IF(Munkanaplo!AD20>0,Munkanaplo!AD20,\"\")","v":""},{"$f":"IF(Munkanaplo!AE20>0,Munkanaplo!AE20,\"\")","v":""},{"$f":"IF(Munkanaplo!AG20>0,Munkanaplo!AG20,\"\")","v":""}]
[{"$f":"IF(Munkanaplo!E21>0,Munkanaplo!E21,\"\")","v":""},{"$f":"IF(Munkanaplo!H21>0,Munkanaplo!H21,\"\")","v":""},{"$f":"IF(Munkanaplo!I21>0,Munkanaplo!I21,\"\")","v":""},{"$f":"IF(Munkanaplo!J21>0,Munkanaplo!J21,\"\")","v":""},{"$f":"IF(Munkanaplo!K21>0,Munkanaplo!K21,\"\")","v":""},{"$f":"IF(Munkanaplo!L21>0,Munkanaplo!L21,\"\")","v":""},{"$f":"IF(Munkanaplo!M21>0,Munkanaplo!M21,\"\")","v":""},{"$f":"IF(Munkanaplo!N21>0,Munkanaplo!N21,\"\")","v":""},{"$f":"IF(Munkanaplo!O21>0,Munkanaplo!O21,\"\")","v":""},{"$f":"IF(Munkanaplo!P21>0,Munkanaplo!P21,\"\")","v":""},{"$f":"IF(Munkanaplo!Q21>0,Munkanaplo!Q21,\"\")","v":""},{"$f":"IFERROR(IF(Munkanaplo!R21>0,Munkanaplo!R21,\"\")/5,\"\")","v":""},{"$f":"IF(Munkanaplo!AF21>0,Munkanaplo!AF21,\"\")","v":""},{"$f":"IF(Munkanaplo!V21>0,Munkanaplo!V21,\"\")","v":""},{"$f":"IF(Munkanaplo!W21>0,Munkanaplo!W21,\"\")","v":""},{"$f":"IF(Munkanaplo!X21>0,Munkanaplo!X21,\"\")","v":""},{"$f":"IF(Munkanaplo!Y21>0,Munkanaplo!Y21,\"\")","v":""},{"$f":"IF(Munkanaplo!Z21>0,Munkanaplo!Z21,\"\")","v":""},{"$f":"IF(Munkanaplo!AA21>0,Munkanaplo!AA21,\"\")","v":""},{"$f":"IF(Munkanaplo!AB21>0,Munkanaplo!AB21,\"\")","v":""},{"$f":"IF(Munkanaplo!AC21>0,Munkanaplo!AC21,\"\")","v":""},{"$f":"IF(Munkanaplo!AD21>0,Munkanaplo!AD21,\"\")","v":""},{"$f":"IF(Munkanaplo!AE21>0,Munkanaplo!AE21,\"\")","v":""},{"$f":"IF(Munkanaplo!AG21>0,Munkanaplo!AG21,\"\")","v":""}]
[{"$f":"IF(Munkanaplo!E22>0,Munkanaplo!E22,\"\")","v":""},{"$f":"IF(Munkanaplo!H22>0,Munkanaplo!H22,\"\")","v":""},{"$f":"IF(Munkanaplo!I22>0,Munkanaplo!I22,\"\")","v":""},{"$f":"IF(Munkanaplo!J22>0,Munkanaplo!J22,\"\")","v":""},{"$f":"IF(Munkanaplo!K22>0,Munkanaplo!K22,\"\")","v":""},{"$f":"IF(Munkanaplo!L22>0,Munkanaplo!L22,\"\")","v":""},{"$f":"IF(Munkanaplo!M22>0,Munkanaplo!M22,\"\")","v":""},{"$f":"IF(Munkanaplo!N22>0,Munkanaplo!N22,\"\")","v":""},{"$f":"IF(Munkanaplo!O22>0,Munkanaplo!O22,\"\")","v":""},{"$f":"IF(Munkanaplo!P22>0,Munkanaplo!P22,\"\")","v":""},{"$f":"IF(Munkanaplo!Q22>0,Munkanaplo!Q22,\"\")","v":""},{"$f":"IFERROR(IF(Munkanaplo!R22>0,Munkanaplo!R22,\"\")/5,\"\")","v":""},{"$f":"IF(Munkanaplo!AF22>0,Munkanaplo!AF22,\"\")","v":""},{"$f":"IF(Munkanaplo!V22>0,Munkanaplo!V22,\"\")","v":""},{"$f":"IF(Munkanaplo!W22>0,Munkanaplo!W22,\"\")","v":""},{"$f":"IF(Munkanaplo!X22>0,Munkanaplo!X22,\"\")","v":""},{"$f":"IF(Munkanaplo!Y22>0,Munkanaplo!Y22,\"\")","v":""},{"$f":"IF(Munkanaplo!Z22>0,Munkanaplo!Z22,\"\")","v":""},{"$f":"IF(Munkanaplo!AA22>0,Munkanaplo!AA22,\"\")","v":""},{"$f":"IF(Munkanaplo!AB22>0,Munkanaplo!AB22,\"\")","v":""},{"$f":"IF(Munkanaplo!AC22>0,Munkanaplo!AC22,\"\")","v":""},{"$f":"IF(Munkanaplo!AD22>0,Munkanaplo!AD22,\"\")","v":""},{"$f":"IF(Munkanaplo!AE22>0,Munkanaplo!AE22,\"\")","v":""},{"$f":"IF(Munkanaplo!AG22>0,Munkanaplo!AG22,\"\")","v":""}]
[{"$f":"IF(Munkanaplo!E23>0,Munkanaplo!E23,\"\")","v":""},{"$f":"IF(Munkanaplo!H23>0,Munkanaplo!H23,\"\")","v":""},{"$f":"IF(Munkanaplo!I23>0,Munkanaplo!I23,\"\")","v":""},{"$f":"IF(Munkanaplo!J23>0,Munkanaplo!J23,\"\")","v":""},{"$f":"IF(Munkanaplo!K23>0,Munkanaplo!K23,\"\")","v":""},{"$f":"IF(Munkanaplo!L23>0,Munkanaplo!L23,\"\")","v":""},{"$f":"IF(Munkanaplo!M23>0,Munkanaplo!M23,\"\")","v":""},{"$f":"IF(Munkanaplo!N23>0,Munkanaplo!N23,\"\")","v":""},{"$f":"IF(Munkanaplo!O23>0,Munkanaplo!O23,\"\")","v":""},{"$f":"IF(Munkanaplo!P23>0,Munkanaplo!P23,\"\")","v":""},{"$f":"IF(Munkanaplo!Q23>0,Munkanaplo!Q23,\"\")","v":""},{"$f":"IFERROR(IF(Munkanaplo!R23>0,Munkanaplo!R23,\"\")/5,\"\")","v":""},{"$f":"IF(Munkanaplo!AF23>0,Munkanaplo!AF23,\"\")","v":""},{"$f":"IF(Munkanaplo!V23>0,Munkanaplo!V23,\"\")","v":""},{"$f":"IF(Munkanaplo!W23>0,Munkanaplo!W23,\"\")","v":""},{"$f":"IF(Munkanaplo!X23>0,Munkanaplo!X23,\"\")","v":""},{"$f":"IF(Munkanaplo!Y23>0,Munkanaplo!Y23,\"\")","v":""},{"$f":"IF(Munkanaplo!Z23>0,Munkanaplo!Z23,\"\")","v":""},{"$f":"IF(Munkanaplo!AA23>0,Munkanaplo!AA23,\"\")","v":""},{"$f":"IF(Munkanaplo!AB23>0,Munkanaplo!AB23,\"\")","v":""},{"$f":"IF(Munkanaplo!AC23>0,Munkanaplo!AC23,\"\")","v":""},{"$f":"IF(Munkanaplo!AD23>0,Munkanaplo!AD23,\"\")","v":""},{"$f":"IF(Munkanaplo!AE23>0,Munkanaplo!AE23,\"\")","v":""},{"$f":"IF(Munkanaplo!AG23>0,Munkanaplo!AG23,\"\")","v":""}]
[{"$f":"IF(Munkanaplo!E24>0,Munkanaplo!E24,\"\")","v":""},{"$f":"IF(Munkanaplo!H24>0,Munkanaplo!H24,\"\")","v":""},{"$f":"IF(Munkanaplo!I24>0,Munkanaplo!I24,\"\")","v":""},{"$f":"IF(Munkanaplo!J24>0,Munkanaplo!J24,\"\")","v":""},{"$f":"IF(Munkanaplo!K24>0,Munkanaplo!K24,\"\")","v":""},{"$f":"IF(Munkanaplo!L24>0,Munkanaplo!L24,\"\")","v":""},{"$f":"IF(Munkanaplo!M24>0,Munkanaplo!M24,\"\")","v":""},{"$f":"IF(Munkanaplo!N24>0,Munkanaplo!N24,\"\")","v":""},{"$f":"IF(Munkanaplo!O24>0,Munkanaplo!O24,\"\")","v":""},{"$f":"IF(Munkanaplo!P24>0,Munkanaplo!P24,\"\")","v":""},{"$f":"IF(Munkanaplo!Q24>0,Munkanaplo!Q24,\"\")","v":""},{"$f":"IFERROR(IF(Munkanaplo!R24>0,Munkanaplo!R24,\"\")/5,\"\")","v":""},{"$f":"IF(Munkanaplo!AF24>0,Munkanaplo!AF24,\"\")","v":""},{"$f":"IF(Munkanaplo!V24>0,Munkanaplo!V24,\"\")","v":""},{"$f":"IF(Munkanaplo!W24>0,Munkanaplo!W24,\"\")","v":""},{"$f":"IF(Munkanaplo!X24>0,Munkanaplo!X24,\"\")","v":""},{"$f":"IF(Munkanaplo!Y24>0,Munkanaplo!Y24,\"\")","v":""},{"$f":"IF(Munkanaplo!Z24>0,Munkanaplo!Z24,\"\")","v":""},{"$f":"IF(Munkanaplo!AA24>0,Munkanaplo!AA24,\"\")","v":""},{"$f":"IF(Munkanaplo!AB24>0,Munkanaplo!AB24,\"\")","v":""},{"$f":"IF(Munkanaplo!AC24>0,Munkanaplo!AC24,\"\")","v":""},{"$f":"IF(Munkanaplo!AD24>0,Munkanaplo!AD24,\"\")","v":""},{"$f":"IF(Munkanaplo!AE24>0,Munkanaplo!AE24,\"\")","v":""},{"$f":"IF(Munkanaplo!AG24>0,Munkanaplo!AG24,\"\")","v":""}]
[{"$f":"IF(Munkanaplo!E25>0,Munkanaplo!E25,\"\")","v":""},{"$f":"IF(Munkanaplo!H25>0,Munkanaplo!H25,\"\")","v":""},{"$f":"IF(Munkanaplo!I25>0,Munkanaplo!I25,\"\")","v":""},{"$f":"IF(Munkanaplo!J25>0,Munkanaplo!J25,\"\")","v":""},{"$f":"IF(Munkanaplo!K25>0,Munkanaplo!K25,\"\")","v":""},{"$f":"IF(Munkanaplo!L25>0,Munkanaplo!L25,\"\")","v":""},{"$f":"IF(Munkanaplo!M25>0,Munkanaplo!M25,\"\")","v":""},{"$f":"IF(Munkanaplo!N25>0,Munkanaplo!N25,\"\")","v":""},{"$f":"IF(Munkanaplo!O25>0,Munkanaplo!O25,\"\")","v":""},{"$f":"IF(Munkanaplo!P25>0,Munkanaplo!P25,\"\")","v":""},{"$f":"IF(Munkanaplo!Q25>0,Munkanaplo!Q25,\"\")","v":""},{"$f":"IFERROR(IF(Munkanaplo!R25>0,Munkanaplo!R25,\"\")/5,\"\")","v":""},{"$f":"IF(Munkanaplo!AF25>0,Munkanaplo!AF25,\"\")","v":""},{"$f":"IF(Munkanaplo!V25>0,Munkanaplo!V25,\"\")","v":""},{"$f":"IF(Munkanaplo!W25>0,Munkanaplo!W25,\"\")","v":""},{"$f":"IF(Munkanaplo!X25>0,Munkanaplo!X25,\"\")","v":""},{"$f":"IF(Munkanaplo!Y25>0,Munkanaplo!Y25,\"\")","v":""},{"$f":"IF(Munkanaplo!Z25>0,Munkanaplo!Z25,\"\")","v":""},{"$f":"IF(Munkanaplo!AA25>0,Munkanaplo!AA25,\"\")","v":""},{"$f":"IF(Munkanaplo!AB25>0,Munkanaplo!AB25,\"\")","v":""},{"$f":"IF(Munkanaplo!AC25>0,Munkanaplo!AC25,\"\")","v":""},{"$f":"IF(Munkanaplo!AD25>0,Munkanaplo!AD25,\"\")","v":""},{"$f":"IF(Munkanaplo!AE25>0,Munkanaplo!AE25,\"\")","v":""},{"$f":"IF(Munkanaplo!AG25>0,Munkanaplo!AG25,\"\")","v":""}]
[{"$f":"IF(Munkanaplo!E26>0,Munkanaplo!E26,\"\")","v":""},{"$f":"IF(Munkanaplo!H26>0,Munkanaplo!H26,\"\")","v":""},{"$f":"IF(Munkanaplo!I26>0,Munkanaplo!I26,\"\")","v":""},{"$f":"IF(Munkanaplo!J26>0,Munkanaplo!J26,\"\")","v":""},{"$f":"IF(Munkanaplo!K26>0,Munkanaplo!K26,\"\")","v":""},{"$f":"IF(Munkanaplo!L26>0,Munkanaplo!L26,\"\")","v":""},{"$f":"IF(Munkanaplo!M26>0,Munkanaplo!M26,\"\")","v":""},{"$f":"IF(Munkanaplo!N26>0,Munkanaplo!N26,\"\")","v":""},{"$f":"IF(Munkanaplo!O26>0,Munkanaplo!O26,\"\")","v":""},{"$f":"IF(Munkanaplo!P26>0,Munkanaplo!P26,\"\")","v":""},{"$f":"IF(Munkanaplo!Q26>0,Munkanaplo!Q26,\"\")","v":""},{"$f":"IFERROR(IF(Munkanaplo!R26>0,Munkanaplo!R26,\"\")/5,\"\")","v":""},{"$f":"IF(Munkanaplo!AF26>0,Munkanaplo!AF26,\"\")","v":""},{"$f":"IF(Munkanaplo!V26>0,Munkanaplo!V26,\"\")","v":""},{"$f":"IF(Munkanaplo!W26>0,Munkanaplo!W26,\"\")","v":""},{"$f":"IF(Munkanaplo!X26>0,Munkanaplo!X26,\"\")","v":""},{"$f":"IF(Munkanaplo!Y26>0,Munkanaplo!Y26,\"\")","v":""},{"$f":"IF(Munkanaplo!Z26>0,Munkanaplo!Z26,\"\")","v":""},{"$f":"IF(Munkanaplo!AA26>0,Munkanaplo!AA26,\"\")","v":""},{"$f":"IF(Munkanaplo!AB26>0,Munkanaplo!AB26,\"\")","v":""},{"$f":"IF(Munkanaplo!AC26>0,Munkanaplo!AC26,\"\")","v":""},{"$f":"IF(Munkanaplo!AD26>0,Munkanaplo!AD26,\"\")","v":""},{"$f":"IF(Munkanaplo!AE26>0,Munkanaplo!AE26,\"\")","v":""},{"$f":"IF(Munkanaplo!AG26>0,Munkanaplo!AG26,\"\")","v":""}]
[{"$f":"IF(Munkanaplo!E27>0,Munkanaplo!E27,\"\")","v":""},{"$f":"IF(Munkanaplo!H27>0,Munkanaplo!H27,\"\")","v":""},{"$f":"IF(Munkanaplo!I27>0,Munkanaplo!I27,\"\")","v":""},{"$f":"IF(Munkanaplo!J27>0,Munkanaplo!J27,\"\")","v":""},{"$f":"IF(Munkanaplo!K27>0,Munkanaplo!K27,\"\")","v":""},{"$f":"IF(Munkanaplo!L27>0,Munkanaplo!L27,\"\")","v":""},{"$f":"IF(Munkanaplo!M27>0,Munkanaplo!M27,\"\")","v":""},{"$f":"IF(Munkanaplo!N27>0,Munkanaplo!N27,\"\")","v":""},{"$f":"IF(Munkanaplo!O27>0,Munkanaplo!O27,\"\")","v":""},{"$f":"IF(Munkanaplo!P27>0,Munkanaplo!P27,\"\")","v":""},{"$f":"IF(Munkanaplo!Q27>0,Munkanaplo!Q27,\"\")","v":""},{"$f":"IFERROR(IF(Munkanaplo!R27>0,Munkanaplo!R27,\"\")/5,\"\")","v":""},{"$f":"IF(Munkanaplo!AF27>0,Munkanaplo!AF27,\"\")","v":""},{"$f":"IF(Munkanaplo!V27>0,Munkanaplo!V27,\"\")","v":""},{"$f":"IF(Munkanaplo!W27>0,Munkanaplo!W27,\"\")","v":""},{"$f":"IF(Munkanaplo!X27>0,Munkanaplo!X27,\"\")","v":""},{"$f":"IF(Munkanaplo!Y27>0,Munkanaplo!Y27,\"\")","v":""},{"$f":"IF(Munkanaplo!Z27>0,Munkanaplo!Z27,\"\")","v":""},{"$f":"IF(Munkanaplo!AA27>0,Munkanaplo!AA27,\"\")","v":""},{"$f":"IF(Munkanaplo!AB27>0,Munkanaplo!AB27,\"\")","v":""},{"$f":"IF(Munkanaplo!AC27>0,Munkanaplo!AC27,\"\")","v":""},{"$f":"IF(Munkanaplo!AD27>0,Munkanaplo!AD27,\"\")","v":""},{"$f":"IF(Munkanaplo!AE27>0,Munkanaplo!AE27,\"\")","v":""},{"$f":"IF(Munkanaplo!AG27>0,Munkanaplo!AG27,\"\")","v":""}]
[{"$f":"IF(Munkanaplo!E28>0,Munkanaplo!E28,\"\")","v":""},{"$f":"IF(Munkanaplo!H28>0,Munkanaplo!H28,\"\")","v":""},{"$f":"IF(Munkanaplo!I28>0,Munkanaplo!I28,\"\")","v":""},{"$f":"IF(Munkanaplo!J28>0,Munkanaplo!J28,\"\")","v":""},{"$f":"IF(Munkanaplo!K28>0,Munkanaplo!K28,\"\")","v":""},{"$f":"IF(Munkanaplo!L28>0,Munkanaplo!L28,\"\")","v":""},{"$f":"IF(Munkanaplo!M28>0,Munkanaplo!M28,\"\")","v":""},{"$f":"IF(Munkanaplo!N28>0,Munkanaplo!N28,\"\")","v":""},{"$f":"IF(Munkanaplo!O28>0,Munkanaplo!O28,\"\")","v":""},{"$f":"IF(Munkanaplo!P28>0,Munkanaplo!P28,\"\")","v":""},{"$f":"IF(Munkanaplo!Q28>0,Munkanaplo!Q28,\"\")","v":""},{"$f":"IFERROR(IF(Munkanaplo!R28>0,Munkanaplo!R28,\"\")/5,\"\")","v":""},{"$f":"IF(Munkanaplo!AF28>0,Munkanaplo!AF28,\"\")","v":""},{"$f":"IF(Munkanaplo!V28>0,Munkanaplo!V28,\"\")","v":""},{"$f":"IF(Munkanaplo!W28>0,Munkanaplo!W28,\"\")","v":""},{"$f":"IF(Munkanaplo!X28>0,Munkanaplo!X28,\"\")","v":""},{"$f":"IF(Munkanaplo!Y28>0,Munkanaplo!Y28,\"\")","v":""},{"$f":"IF(Munkanaplo!Z28>0,Munkanaplo!Z28,\"\")","v":""},{"$f":"IF(Munkanaplo!AA28>0,Munkanaplo!AA28,\"\")","v":""},{"$f":"IF(Munkanaplo!AB28>0,Munkanaplo!AB28,\"\")","v":""},{"$f":"IF(Munkanaplo!AC28>0,Munkanaplo!AC28,\"\")","v":""},{"$f":"IF(Munkanaplo!AD28>0,Munkanaplo!AD28,\"\")","v":""},{"$f":"IF(Munkanaplo!AE28>0,Munkanaplo!AE28,\"\")","v":""},{"$f":"IF(Munkanaplo!AG28>0,Munkanaplo!AG28,\"\")","v":""}]
[{"$f":"IF(Munkanaplo!E29>0,Munkanaplo!E29,\"\")","v":""},{"$f":"IF(Munkanaplo!H29>0,Munkanaplo!H29,\"\")","v":""},{"$f":"IF(Munkanaplo!I29>0,Munkanaplo!I29,\"\")","v":""},{"$f":"IF(Munkanaplo!J29>0,Munkanaplo!J29,\"\")","v":""},{"$f":"IF(Munkanaplo!K29>0,Munkanaplo!K29,\"\")","v":""},{"$f":"IF(Munkanaplo!L29>0,Munkanaplo!L29,\"\")","v":""},{"$f":"IF(Munkanaplo!M29>0,Munkanaplo!M29,\"\")","v":""},{"$f":"IF(Munkanaplo!N29>0,Munkanaplo!N29,\"\")","v":""},{"$f":"IF(Munkanaplo!O29>0,Munkanaplo!O29,\"\")","v":""},{"$f":"IF(Munkanaplo!P29>0,Munkanaplo!P29,\"\")","v":""},{"$f":"IF(Munkanaplo!Q29>0,Munkanaplo!Q29,\"\")","v":""},{"$f":"IFERROR(IF(Munkanaplo!R29>0,Munkanaplo!R29,\"\")/5,\"\")","v":""},{"$f":"IF(Munkanaplo!AF29>0,Munkanaplo!AF29,\"\")","v":""},{"$f":"IF(Munkanaplo!V29>0,Munkanaplo!V29,\"\")","v":""},{"$f":"IF(Munkanaplo!W29>0,Munkanaplo!W29,\"\")","v":""},{"$f":"IF(Munkanaplo!X29>0,Munkanaplo!X29,\"\")","v":""},{"$f":"IF(Munkanaplo!Y29>0,Munkanaplo!Y29,\"\")","v":""},{"$f":"IF(Munkanaplo!Z29>0,Munkanaplo!Z29,\"\")","v":""},{"$f":"IF(Munkanaplo!AA29>0,Munkanaplo!AA29,\"\")","v":""},{"$f":"IF(Munkanaplo!AB29>0,Munkanaplo!AB29,\"\")","v":""},{"$f":"IF(Munkanaplo!AC29>0,Munkanaplo!AC29,\"\")","v":""},{"$f":"IF(Munkanaplo!AD29>0,Munkanaplo!AD29,\"\")","v":""},{"$f":"IF(Munkanaplo!AE29>0,Munkanaplo!AE29,\"\")","v":""},{"$f":"IF(Munkanaplo!AG29>0,Munkanaplo!AG29,\"\")","v":""}]
[{"$f":"IF(Munkanaplo!E30>0,Munkanaplo!E30,\"\")","v":""},{"$f":"IF(Munkanaplo!H30>0,Munkanaplo!H30,\"\")","v":""},{"$f":"IF(Munkanaplo!I30>0,Munkanaplo!I30,\"\")","v":""},{"$f":"IF(Munkanaplo!J30>0,Munkanaplo!J30,\"\")","v":""},{"$f":"IF(Munkanaplo!K30>0,Munkanaplo!K30,\"\")","v":""},{"$f":"IF(Munkanaplo!L30>0,Munkanaplo!L30,\"\")","v":""},{"$f":"IF(Munkanaplo!M30>0,Munkanaplo!M30,\"\")","v":""},{"$f":"IF(Munkanaplo!N30>0,Munkanaplo!N30,\"\")","v":""},{"$f":"IF(Munkanaplo!O30>0,Munkanaplo!O30,\"\")","v":""},{"$f":"IF(Munkanaplo!P30>0,Munkanaplo!P30,\"\")","v":""},{"$f":"IF(Munkanaplo!Q30>0,Munkanaplo!Q30,\"\")","v":""},{"$f":"IFERROR(IF(Munkanaplo!R30>0,Munkanaplo!R30,\"\")/5,\"\")","v":""},{"$f":"IF(Munkanaplo!AF30>0,Munkanaplo!AF30,\"\")","v":""},{"$f":"IF(Munkanaplo!V30>0,Munkanaplo!V30,\"\")","v":""},{"$f":"IF(Munkanaplo!W30>0,Munkanaplo!W30,\"\")","v":""},{"$f":"IF(Munkanaplo!X30>0,Munkanaplo!X30,\"\")","v":""},{"$f":"IF(Munkanaplo!Y30>0,Munkanaplo!Y30,\"\")","v":""},{"$f":"IF(Munkanaplo!Z30>0,Munkanaplo!Z30,\"\")","v":""},{"$f":"IF(Munkanaplo!AA30>0,Munkanaplo!AA30,\"\")","v":""},{"$f":"IF(Munkanaplo!AB30>0,Munkanaplo!AB30,\"\")","v":""},{"$f":"IF(Munkanaplo!AC30>0,Munkanaplo!AC30,\"\")","v":""},{"$f":"IF(Munkanaplo!AD30>0,Munkanaplo!AD30,\"\")","v":""},{"$f":"IF(Munkanaplo!AE30>0,Munkanaplo!AE30,\"\")","v":""},{"$f":"IF(Munkanaplo!AG30>0,Munkanaplo!AG30,\"\")","v":""}]
[{"$f":"IF(Munkanaplo!E31>0,Munkanaplo!E31,\"\")","v":""},{"$f":"IF(Munkanaplo!H31>0,Munkanaplo!H31,\"\")","v":""},{"$f":"IF(Munkanaplo!I31>0,Munkanaplo!I31,\"\")","v":""},{"$f":"IF(Munkanaplo!J31>0,Munkanaplo!J31,\"\")","v":""},{"$f":"IF(Munkanaplo!K31>0,Munkanaplo!K31,\"\")","v":""},{"$f":"IF(Munkanaplo!L31>0,Munkanaplo!L31,\"\")","v":""},{"$f":"IF(Munkanaplo!M31>0,Munkanaplo!M31,\"\")","v":""},{"$f":"IF(Munkanaplo!N31>0,Munkanaplo!N31,\"\")","v":""},{"$f":"IF(Munkanaplo!O31>0,Munkanaplo!O31,\"\")","v":""},{"$f":"IF(Munkanaplo!P31>0,Munkanaplo!P31,\"\")","v":""},{"$f":"IF(Munkanaplo!Q31>0,Munkanaplo!Q31,\"\")","v":""},{"$f":"IFERROR(IF(Munkanaplo!R31>0,Munkanaplo!R31,\"\")/5,\"\")","v":""},{"$f":"IF(Munkanaplo!AF31>0,Munkanaplo!AF31,\"\")","v":""},{"$f":"IF(Munkanaplo!V31>0,Munkanaplo!V31,\"\")","v":""},{"$f":"IF(Munkanaplo!W31>0,Munkanaplo!W31,\"\")","v":""},{"$f":"IF(Munkanaplo!X31>0,Munkanaplo!X31,\"\")","v":""},{"$f":"IF(Munkanaplo!Y31>0,Munkanaplo!Y31,\"\")","v":""},{"$f":"IF(Munkanaplo!Z31>0,Munkanaplo!Z31,\"\")","v":""},{"$f":"IF(Munkanaplo!AA31>0,Munkanaplo!AA31,\"\")","v":""},{"$f":"IF(Munkanaplo!AB31>0,Munkanaplo!AB31,\"\")","v":""},{"$f":"IF(Munkanaplo!AC31>0,Munkanaplo!AC31,\"\")","v":""},{"$f":"IF(Munkanaplo!AD31>0,Munkanaplo!AD31,\"\")","v":""},{"$f":"IF(Munkanaplo!AE31>0,Munkanaplo!AE31,\"\")","v":""},{"$f":"IF(Munkanaplo!AG31>0,Munkanaplo!AG31,\"\")","v":""}]
[{"$f":"IF(Munkanaplo!E32>0,Munkanaplo!E32,\"\")","v":""},{"$f":"IF(Munkanaplo!H32>0,Munkanaplo!H32,\"\")","v":""},{"$f":"IF(Munkanaplo!I32>0,Munkanaplo!I32,\"\")","v":""},{"$f":"IF(Munkanaplo!J32>0,Munkanaplo!J32,\"\")","v":""},{"$f":"IF(Munkanaplo!K32>0,Munkanaplo!K32,\"\")","v":""},{"$f":"IF(Munkanaplo!L32>0,Munkanaplo!L32,\"\")","v":""},{"$f":"IF(Munkanaplo!M32>0,Munkanaplo!M32,\"\")","v":""},{"$f":"IF(Munkanaplo!N32>0,Munkanaplo!N32,\"\")","v":""},{"$f":"IF(Munkanaplo!O32>0,Munkanaplo!O32,\"\")","v":""},{"$f":"IF(Munkanaplo!P32>0,Munkanaplo!P32,\"\")","v":""},{"$f":"IF(Munkanaplo!Q32>0,Munkanaplo!Q32,\"\")","v":""},{"$f":"IFERROR(IF(Munkanaplo!R32>0,Munkanaplo!R32,\"\")/5,\"\")","v":""},{"$f":"IF(Munkanaplo!AF32>0,Munkanaplo!AF32,\"\")","v":""},{"$f":"IF(Munkanaplo!V32>0,Munkanaplo!V32,\"\")","v":""},{"$f":"IF(Munkanaplo!W32>0,Munkanaplo!W32,\"\")","v":""},{"$f":"IF(Munkanaplo!X32>0,Munkanaplo!X32,\"\")","v":""},{"$f":"IF(Munkanaplo!Y32>0,Munkanaplo!Y32,\"\")","v":""},{"$f":"IF(Munkanaplo!Z32>0,Munkanaplo!Z32,\"\")","v":""},{"$f":"IF(Munkanaplo!AA32>0,Munkanaplo!AA32,\"\")","v":""},{"$f":"IF(Munkanaplo!AB32>0,Munkanaplo!AB32,\"\")","v":""},{"$f":"IF(Munkanaplo!AC32>0,Munkanaplo!AC32,\"\")","v":""},{"$f":"IF(Munkanaplo!AD32>0,Munkanaplo!AD32,\"\")","v":""},{"$f":"IF(Munkanaplo!AE32>0,Munkanaplo!AE32,\"\")","v":""},{"$f":"IF(Munkanaplo!AG32>0,Munkanaplo!AG32,\"\")","v":""}]
[{"$f":"IF(Munkanaplo!E33>0,Munkanaplo!E33,\"\")","v":""},{"$f":"IF(Munkanaplo!H33>0,Munkanaplo!H33,\"\")","v":""},{"$f":"IF(Munkanaplo!I33>0,Munkanaplo!I33,\"\")","v":""},{"$f":"IF(Munkanaplo!J33>0,Munkanaplo!J33,\"\")","v":""},{"$f":"IF(Munkanaplo!K33>0,Munkanaplo!K33,\"\")","v":""},{"$f":"IF(Munkanaplo!L33>0,Munkanaplo!L33,\"\")","v":""},{"$f":"IF(Munkanaplo!M33>0,Munkanaplo!M33,\"\")","v":""},{"$f":"IF(Munkanaplo!N33>0,Munkanaplo!N33,\"\")","v":""},{"$f":"IF(Munkanaplo!O33>0,Munkanaplo!O33,\"\")","v":""},{"$f":"IF(Munkanaplo!P33>0,Munkanaplo!P33,\"\")","v":""},{"$f":"IF(Munkanaplo!Q33>0,Munkanaplo!Q33,\"\")","v":""},{"$f":"IFERROR(IF(Munkanaplo!R33>0,Munkanaplo!R33,\"\")/5,\"\")","v":""},{"$f":"IF(Munkanaplo!AF33>0,Munkanaplo!AF33,\"\")","v":""},{"$f":"IF(Munkanaplo!V33>0,Munkanaplo!V33,\"\")","v":""},{"$f":"IF(Munkanaplo!W33>0,Munkanaplo!W33,\"\")","v":""},{"$f":"IF(Munkanaplo!X33>0,Munkanaplo!X33,\"\")","v":""},{"$f":"IF(Munkanaplo!Y33>0,Munkanaplo!Y33,\"\")","v":""},{"$f":"IF(Munkanaplo!Z33>0,Munkanaplo!Z33,\"\")","v":""},{"$f":"IF(Munkanaplo!AA33>0,Munkanaplo!AA33,\"\")","v":""},{"$f":"IF(Munkanaplo!AB33>0,Munkanaplo!AB33,\"\")","v":""},{"$f":"IF(Munkanaplo!AC33>0,Munkanaplo!AC33,\"\")","v":""},{"$f":"IF(Munkanaplo!AD33>0,Munkanaplo!AD33,\"\")","v":""},{"$f":"IF(Munkanaplo!AE33>0,Munkanaplo!AE33,\"\")","v":""},{"$f":"IF(Munkanaplo!AG33>0,Munkanaplo!AG33,\"\")","v":""}]
[{"$f":"IF(Munkanaplo!E34>0,Munkanaplo!E34,\"\")","v":""},{"$f":"IF(Munkanaplo!H34>0,Munkanaplo!H34,\"\")","v":""},{"$f":"IF(Munkanaplo!I34>0,Munkanaplo!I34,\"\")","v":""},{"$f":"IF(Munkanaplo!J34>0,Munkanaplo!J34,\"\")","v":""},{"$f":"IF(Munkanaplo!K34>0,Munkanaplo!K34,\"\")","v":""},{"$f":"IF(Munkanaplo!L34>0,Munkanaplo!L34,\"\")","v":""},{"$f":"IF(Munkanaplo!M34>0,Munkanaplo!M34,\"\")","v":""},{"$f":"IF(Munkanaplo!N34>0,Munkanaplo!N34,\"\")","v":""},{"$f":"IF(Munkanaplo!O34>0,Munkanaplo!O34,\"\")","v":""},{"$f":"IF(Munkanaplo!P34>0,Munkanaplo!P34,\"\")","v":""},{"$f":"IF(Munkanaplo!Q34>0,Munkanaplo!Q34,\"\")","v":""},{"$f":"IFERROR(IF(Munkanaplo!R34>0,Munkanaplo!R34,\"\")/5,\"\")","v":""},{"$f":"IF(Munkanaplo!AF34>0,Munkanaplo!AF34,\"\")","v":""},{"$f":"IF(Munkanaplo!V34>0,Munkanaplo!V34,\"\")","v":""},{"$f":"IF(Munkanaplo!W34>0,Munkanaplo!W34,\"\")","v":""},{"$f":"IF(Munkanaplo!X34>0,Munkanaplo!X34,\"\")","v":""},{"$f":"IF(Munkanaplo!Y34>0,Munkanaplo!Y34,\"\")","v":""},{"$f":"IF(Munkanaplo!Z34>0,Munkanaplo!Z34,\"\")","v":""},{"$f":"IF(Munkanaplo!AA34>0,Munkanaplo!AA34,\"\")","v":""},{"$f":"IF(Munkanaplo!AB34>0,Munkanaplo!AB34,\"\")","v":""},{"$f":"IF(Munkanaplo!AC34>0,Munkanaplo!AC34,\"\")","v":""},{"$f":"IF(Munkanaplo!AD34>0,Munkanaplo!AD34,\"\")","v":""},{"$f":"IF(Munkanaplo!AE34>0,Munkanaplo!AE34,\"\")","v":""},{"$f":"IF(Munkanaplo!AG34>0,Munkanaplo!AG34,\"\")","v":""}]
[{"$f":"IF(Munkanaplo!E35>0,Munkanaplo!E35,\"\")","v":""},{"$f":"IF(Munkanaplo!H35>0,Munkanaplo!H35,\"\")","v":""},{"$f":"IF(Munkanaplo!I35>0,Munkanaplo!I35,\"\")","v":""},{"$f":"IF(Munkanaplo!J35>0,Munkanaplo!J35,\"\")","v":""},{"$f":"IF(Munkanaplo!K35>0,Munkanaplo!K35,\"\")","v":""},{"$f":"IF(Munkanaplo!L35>0,Munkanaplo!L35,\"\")","v":""},{"$f":"IF(Munkanaplo!M35>0,Munkanaplo!M35,\"\")","v":""},{"$f":"IF(Munkanaplo!N35>0,Munkanaplo!N35,\"\")","v":""},{"$f":"IF(Munkanaplo!O35>0,Munkanaplo!O35,\"\")","v":""},{"$f":"IF(Munkanaplo!P35>0,Munkanaplo!P35,\"\")","v":""},{"$f":"IF(Munkanaplo!Q35>0,Munkanaplo!Q35,\"\")","v":""},{"$f":"IFERROR(IF(Munkanaplo!R35>0,Munkanaplo!R35,\"\")/5,\"\")","v":""},{"$f":"IF(Munkanaplo!AF35>0,Munkanaplo!AF35,\"\")","v":""},{"$f":"IF(Munkanaplo!V35>0,Munkanaplo!V35,\"\")","v":""},{"$f":"IF(Munkanaplo!W35>0,Munkanaplo!W35,\"\")","v":""},{"$f":"IF(Munkanaplo!X35>0,Munkanaplo!X35,\"\")","v":""},{"$f":"IF(Munkanaplo!Y35>0,Munkanaplo!Y35,\"\")","v":""},{"$f":"IF(Munkanaplo!Z35>0,Munkanaplo!Z35,\"\")","v":""},{"$f":"IF(Munkanaplo!AA35>0,Munkanaplo!AA35,\"\")","v":""},{"$f":"IF(Munkanaplo!AB35>0,Munkanaplo!AB35,\"\")","v":""},{"$f":"IF(Munkanaplo!AC35>0,Munkanaplo!AC35,\"\")","v":""},{"$f":"IF(Munkanaplo!AD35>0,Munkanaplo!AD35,\"\")","v":""},{"$f":"IF(Munkanaplo!AE35>0,Munkanaplo!AE35,\"\")","v":""},{"$f":"IF(Munkanaplo!AG35>0,Munkanaplo!AG35,\"\")","v":""}]
[{"$f":"IF(Munkanaplo!E36>0,Munkanaplo!E36,\"\")","v":""},{"$f":"IF(Munkanaplo!H36>0,Munkanaplo!H36,\"\")","v":""},{"$f":"IF(Munkanaplo!I36>0,Munkanaplo!I36,\"\")","v":""},{"$f":"IF(Munkanaplo!J36>0,Munkanaplo!J36,\"\")","v":""},{"$f":"IF(Munkanaplo!K36>0,Munkanaplo!K36,\"\")","v":""},{"$f":"IF(Munkanaplo!L36>0,Munkanaplo!L36,\"\")","v":""},{"$f":"IF(Munkanaplo!M36>0,Munkanaplo!M36,\"\")","v":""},{"$f":"IF(Munkanaplo!N36>0,Munkanaplo!N36,\"\")","v":""},{"$f":"IF(Munkanaplo!O36>0,Munkanaplo!O36,\"\")","v":""},{"$f":"IF(Munkanaplo!P36>0,Munkanaplo!P36,\"\")","v":""},{"$f":"IF(Munkanaplo!Q36>0,Munkanaplo!Q36,\"\")","v":""},{"$f":"IFERROR(IF(Munkanaplo!R36>0,Munkanaplo!R36,\"\")/5,\"\")","v":""},{"$f":"IF(Munkanaplo!AF36>0,Munkanaplo!AF36,\"\")","v":""},{"$f":"IF(Munkanaplo!V36>0,Munkanaplo!V36,\"\")","v":""},{"$f":"IF(Munkanaplo!W36>0,Munkanaplo!W36,\"\")","v":""},{"$f":"IF(Munkanaplo!X36>0,Munkanaplo!X36,\"\")","v":""},{"$f":"IF(Munkanaplo!Y36>0,Munkanaplo!Y36,\"\")","v":""},{"$f":"IF(Munkanaplo!Z36>0,Munkanaplo!Z36,\"\")","v":""},{"$f":"IF(Munkanaplo!AA36>0,Munkanaplo!AA36,\"\")","v":""},{"$f":"IF(Munkanaplo!AB36>0,Munkanaplo!AB36,\"\")","v":""},{"$f":"IF(Munkanaplo!AC36>0,Munkanaplo!AC36,\"\")","v":""},{"$f":"IF(Munkanaplo!AD36>0,Munkanaplo!AD36,\"\")","v":""},{"$f":"IF(Munkanaplo!AE36>0,Munkanaplo!AE36,\"\")","v":""},{"$f":"IF(Munkanaplo!AG36>0,Munkanaplo!AG36,\"\")","v":""}]
[{"$f":"IF(Munkanaplo!E37>0,Munkanaplo!E37,\"\")","v":""},{"$f":"IF(Munkanaplo!H37>0,Munkanaplo!H37,\"\")","v":""},{"$f":"IF(Munkanaplo!I37>0,Munkanaplo!I37,\"\")","v":""},{"$f":"IF(Munkanaplo!J37>0,Munkanaplo!J37,\"\")","v":""},{"$f":"IF(Munkanaplo!K37>0,Munkanaplo!K37,\"\")","v":""},{"$f":"IF(Munkanaplo!L37>0,Munkanaplo!L37,\"\")","v":""},{"$f":"IF(Munkanaplo!M37>0,Munkanaplo!M37,\"\")","v":""},{"$f":"IF(Munkanaplo!N37>0,Munkanaplo!N37,\"\")","v":""},{"$f":"IF(Munkanaplo!O37>0,Munkanaplo!O37,\"\")","v":""},{"$f":"IF(Munkanaplo!P37>0,Munkanaplo!P37,\"\")","v":""},{"$f":"IF(Munkanaplo!Q37>0,Munkanaplo!Q37,\"\")","v":""},{"$f":"IFERROR(IF(Munkanaplo!R37>0,Munkanaplo!R37,\"\")/5,\"\")","v":""},{"$f":"IF(Munkanaplo!AF37>0,Munkanaplo!AF37,\"\")","v":""},{"$f":"IF(Munkanaplo!V37>0,Munkanaplo!V37,\"\")","v":""},{"$f":"IF(Munkanaplo!W37>0,Munkanaplo!W37,\"\")","v":""},{"$f":"IF(Munkanaplo!X37>0,Munkanaplo!X37,\"\")","v":""},{"$f":"IF(Munkanaplo!Y37>0,Munkanaplo!Y37,\"\")","v":""},{"$f":"IF(Munkanaplo!Z37>0,Munkanaplo!Z37,\"\")","v":""},{"$f":"IF(Munkanaplo!AA37>0,Munkanaplo!AA37,\"\")","v":""},{"$f":"IF(Munkanaplo!AB37>0,Munkanaplo!AB37,\"\")","v":""},{"$f":"IF(Munkanaplo!AC37>0,Munkanaplo!AC37,\"\")","v":""},{"$f":"IF(Munkanaplo!AD37>0,Munkanaplo!AD37,\"\")","v":""},{"$f":"IF(Munkanaplo!AE37>0,Munkanaplo!AE37,\"\")","v":""},{"$f":"IF(Munkanaplo!AG37>0,Munkanaplo!AG37,\"\")","v":""}]
[{"$f":"IF(Munkanaplo!E38>0,Munkanaplo!E38,\"\")","v":""},{"$f":"IF(Munkanaplo!H38>0,Munkanaplo!H38,\"\")","v":""},{"$f":"IF(Munkanaplo!I38>0,Munkanaplo!I38,\"\")","v":""},{"$f":"IF(Munkanaplo!J38>0,Munkanaplo!J38,\"\")","v":""},{"$f":"IF(Munkanaplo!K38>0,Munkanaplo!K38,\"\")","v":""},{"$f":"IF(Munkanaplo!L38>0,Munkanaplo!L38,\"\")","v":""},{"$f":"IF(Munkanaplo!M38>0,Munkanaplo!M38,\"\")","v":""},{"$f":"IF(Munkanaplo!N38>0,Munkanaplo!N38,\"\")","v":""},{"$f":"IF(Munkanaplo!O38>0,Munkanaplo!O38,\"\")","v":""},{"$f":"IF(Munkanaplo!P38>0,Munkanaplo!P38,\"\")","v":""},{"$f":"IF(Munkanaplo!Q38>0,Munkanaplo!Q38,\"\")","v":""},{"$f":"IFERROR(IF(Munkanaplo!R38>0,Munkanaplo!R38,\"\")/5,\"\")","v":""},{"$f":"IF(Munkanaplo!AF38>0,Munkanaplo!AF38,\"\")","v":""},{"$f":"IF(Munkanaplo!V38>0,Munkanaplo!V38,\"\")","v":""},{"$f":"IF(Munkanaplo!W38>0,Munkanaplo!W38,\"\")","v":""},{"$f":"IF(Munkanaplo!X38>0,Munkanaplo!X38,\"\")","v":""},{"$f":"IF(Munkanaplo!Y38>0,Munkanaplo!Y38,\"\")","v":""},{"$f":"IF(Munkanaplo!Z38>0,Munkanaplo!Z38,\"\")","v":""},{"$f":"IF(Munkanaplo!AA38>0,Munkanaplo!AA38,\"\")","v":""},{"$f":"IF(Munkanaplo!AB38>0,Munkanaplo!AB38,\"\")","v":""},{"$f":"IF(Munkanaplo!AC38>0,Munkanaplo!AC38,\"\")","v":""},{"$f":"IF(Munkanaplo!AD38>0,Munkanaplo!AD38,\"\")","v":""},{"$f":"IF(Munkanaplo!AE38>0,Munkanaplo!AE38,\"\")","v":""},{"$f":"IF(Munkanaplo!AG38>0,Munkanaplo!AG38,\"\")","v":""}]
[{"$f":"IF(Munkanaplo!E39>0,Munkanaplo!E39,\"\")","v":""},{"$f":"IF(Munkanaplo!H39>0,Munkanaplo!H39,\"\")","v":""},{"$f":"IF(Munkanaplo!I39>0,Munkanaplo!I39,\"\")","v":""},{"$f":"IF(Munkanaplo!J39>0,Munkanaplo!J39,\"\")","v":""},{"$f":"IF(Munkanaplo!K39>0,Munkanaplo!K39,\"\")","v":""},{"$f":"IF(Munkanaplo!L39>0,Munkanaplo!L39,\"\")","v":""},{"$f":"IF(Munkanaplo!M39>0,Munkanaplo!M39,\"\")","v":""},{"$f":"IF(Munkanaplo!N39>0,Munkanaplo!N39,\"\")","v":""},{"$f":"IF(Munkanaplo!O39>0,Munkanaplo!O39,\"\")","v":""},{"$f":"IF(Munkanaplo!P39>0,Munkanaplo!P39,\"\")","v":""},{"$f":"IF(Munkanaplo!Q39>0,Munkanaplo!Q39,\"\")","v":""},{"$f":"IFERROR(IF(Munkanaplo!R39>0,Munkanaplo!R39,\"\")/5,\"\")","v":""},{"$f":"IF(Munkanaplo!AF39>0,Munkanaplo!AF39,\"\")","v":""},{"$f":"IF(Munkanaplo!V39>0,Munkanaplo!V39,\"\")","v":""},{"$f":"IF(Munkanaplo!W39>0,Munkanaplo!W39,\"\")","v":""},{"$f":"IF(Munkanaplo!X39>0,Munkanaplo!X39,\"\")","v":""},{"$f":"IF(Munkanaplo!Y39>0,Munkanaplo!Y39,\"\")","v":""},{"$f":"IF(Munkanaplo!Z39>0,Munkanaplo!Z39,\"\")","v":""},{"$f":"IF(Munkanaplo!AA39>0,Munkanaplo!AA39,\"\")","v":""},{"$f":"IF(Munkanaplo!AB39>0,Munkanaplo!AB39,\"\")","v":""},{"$f":"IF(Munkanaplo!AC39>0,Munkanaplo!AC39,\"\")","v":""},{"$f":"IF(Munkanaplo!AD39>0,Munkanaplo!AD39,\"\")","v":""},{"$f":"IF(Munkanaplo!AE39>0,Munkanaplo!AE39,\"\")","v":""},{"$f":"IF(Munkanaplo!AG39>0,Munkanaplo!AG39,\"\")","v":""}]
[{"$f":"IF(Munkanaplo!E40>0,Munkanaplo!E40,\"\")","v":""},{"$f":"IF(Munkanaplo!H40>0,Munkanaplo!H40,\"\")","v":""},{"$f":"IF(Munkanaplo!I40>0,Munkanaplo!I40,\"\")","v":""},{"$f":"IF(Munkanaplo!J40>0,Munkanaplo!J40,\"\")","v":""},{"$f":"IF(Munkanaplo!K40>0,Munkanaplo!K40,\"\")","v":""},{"$f":"IF(Munkanaplo!L40>0,Munkanaplo!L40,\"\")","v":""},{"$f":"IF(Munkanaplo!M40>0,Munkanaplo!M40,\"\")","v":""},{"$f":"IF(Munkanaplo!N40>0,Munkanaplo!N40,\"\")","v":""},{"$f":"IF(Munkanaplo!O40>0,Munkanaplo!O40,\"\")","v":""},{"$f":"IF(Munkanaplo!P40>0,Munkanaplo!P40,\"\")","v":""},{"$f":"IF(Munkanaplo!Q40>0,Munkanaplo!Q40,\"\")","v":""},{"$f":"IFERROR(IF(Munkanaplo!R40>0,Munkanaplo!R40,\"\")/5,\"\")","v":""},{"$f":"IF(Munkanaplo!AF40>0,Munkanaplo!AF40,\"\")","v":""},{"$f":"IF(Munkanaplo!V40>0,Munkanaplo!V40,\"\")","v":""},{"$f":"IF(Munkanaplo!W40>0,Munkanaplo!W40,\"\")","v":""},{"$f":"IF(Munkanaplo!X40>0,Munkanaplo!X40,\"\")","v":""},{"$f":"IF(Munkanaplo!Y40>0,Munkanaplo!Y40,\"\")","v":""},{"$f":"IF(Munkanaplo!Z40>0,Munkanaplo!Z40,\"\")","v":""},{"$f":"IF(Munkanaplo!AA40>0,Munkanaplo!AA40,\"\")","v":""},{"$f":"IF(Munkanaplo!AB40>0,Munkanaplo!AB40,\"\")","v":""},{"$f":"IF(Munkanaplo!AC40>0,Munkanaplo!AC40,\"\")","v":""},{"$f":"IF(Munkanaplo!AD40>0,Munkanaplo!AD40,\"\")","v":""},{"$f":"IF(Munkanaplo!AE40>0,Munkanaplo!AE40,\"\")","v":""},{"$f":"IF(Munkanaplo!AG40>0,Munkanaplo!AG40,\"\")","v":""}]
[{"$f":"IF(Munkanaplo!E41>0,Munkanaplo!E41,\"\")","v":""},{"$f":"IF(Munkanaplo!H41>0,Munkanaplo!H41,\"\")","v":""},{"$f":"IF(Munkanaplo!I41>0,Munkanaplo!I41,\"\")","v":""},{"$f":"IF(Munkanaplo!J41>0,Munkanaplo!J41,\"\")","v":""},{"$f":"IF(Munkanaplo!K41>0,Munkanaplo!K41,\"\")","v":""},{"$f":"IF(Munkanaplo!L41>0,Munkanaplo!L41,\"\")","v":""},{"$f":"IF(Munkanaplo!M41>0,Munkanaplo!M41,\"\")","v":""},{"$f":"IF(Munkanaplo!N41>0,Munkanaplo!N41,\"\")","v":""},{"$f":"IF(Munkanaplo!O41>0,Munkanaplo!O41,\"\")","v":""},{"$f":"IF(Munkanaplo!P41>0,Munkanaplo!P41,\"\")","v":""},{"$f":"IF(Munkanaplo!Q41>0,Munkanaplo!Q41,\"\")","v":""},{"$f":"IFERROR(IF(Munkanaplo!R41>0,Munkanaplo!R41,\"\")/5,\"\")","v":""},{"$f":"IF(Munkanaplo!AF41>0,Munkanaplo!AF41,\"\")","v":""},{"$f":"IF(Munkanaplo!V41>0,Munkanaplo!V41,\"\")","v":""},{"$f":"IF(Munkanaplo!W41>0,Munkanaplo!W41,\"\")","v":""},{"$f":"IF(Munkanaplo!X41>0,Munkanaplo!X41,\"\")","v":""},{"$f":"IF(Munkanaplo!Y41>0,Munkanaplo!Y41,\"\")","v":""},{"$f":"IF(Munkanaplo!Z41>0,Munkanaplo!Z41,\"\")","v":""},{"$f":"IF(Munkanaplo!AA41>0,Munkanaplo!AA41,\"\")","v":""},{"$f":"IF(Munkanaplo!AB41>0,Munkanaplo!AB41,\"\")","v":""},{"$f":"IF(Munkanaplo!AC41>0,Munkanaplo!AC41,\"\")","v":""},{"$f":"IF(Munkanaplo!AD41>0,Munkanaplo!AD41,\"\")","v":""},{"$f":"IF(Munkanaplo!AE41>0,Munkanaplo!AE41,\"\")","v":""},{"$f":"IF(Munkanaplo!AG41>0,Munkanaplo!AG41,\"\")","v":""}]
[{"$f":"IF(Munkanaplo!E42>0,Munkanaplo!E42,\"\")","v":""},{"$f":"IF(Munkanaplo!H42>0,Munkanaplo!H42,\"\")","v":""},{"$f":"IF(Munkanaplo!I42>0,Munkanaplo!I42,\"\")","v":""},{"$f":"IF(Munkanaplo!J42>0,Munkanaplo!J42,\"\")","v":""},{"$f":"IF(Munkanaplo!K42>0,Munkanaplo!K42,\"\")","v":""},{"$f":"IF(Munkanaplo!L42>0,Munkanaplo!L42,\"\")","v":""},{"$f":"IF(Munkanaplo!M42>0,Munkanaplo!M42,\"\")","v":""},{"$f":"IF(Munkanaplo!N42>0,Munkanaplo!N42,\"\")","v":""},{"$f":"IF(Munkanaplo!O42>0,Munkanaplo!O42,\"\")","v":""},{"$f":"IF(Munkanaplo!P42>0,Munkanaplo!P42,\"\")","v":""},{"$f":"IF(Munkanaplo!Q42>0,Munkanaplo!Q42,\"\")","v":""},{"$f":"IFERROR(IF(Munkanaplo!R42>0,Munkanaplo!R42,\"\")/5,\"\")","v":""},{"$f":"IF(Munkanaplo!AF42>0,Munkanaplo!AF42,\"\")","v":""},{"$f":"IF(Munkanaplo!V42>0,Munkanaplo!V42,\"\")","v":""},{"$f":"IF(Munkanaplo!W42>0,Munkanaplo!W42,\"\")","v":""},{"$f":"IF(Munkanaplo!X42>0,Munkanaplo!X42,\"\")","v":""},{"$f":"IF(Munkanaplo!Y42>0,Munkanaplo!Y42,\"\")","v":""},{"$f":"IF(Munkanaplo!Z42>0,Munkanaplo!Z42,\"\")","v":""},{"$f":"IF(Munkanaplo!AA42>0,Munkanaplo!AA42,\"\")","v":""},{"$f":"IF(Munkanaplo!AB42>0,Munkanaplo!AB42,\"\")","v":""},{"$f":"IF(Munkanaplo!AC42>0,Munkanaplo!AC42,\"\")","v":""},{"$f":"IF(Munkanaplo!AD42>0,Munkanaplo!AD42,\"\")","v":""},{"$f":"IF(Munkanaplo!AE42>0,Munkanaplo!AE42,\"\")","v":""},{"$f":"IF(Munkanaplo!AG42>0,Munkanaplo!AG42,\"\")","v":""}]
[{"$f":"IF(Munkanaplo!E43>0,Munkanaplo!E43,\"\")","v":""},{"$f":"IF(Munkanaplo!H43>0,Munkanaplo!H43,\"\")","v":""},{"$f":"IF(Munkanaplo!I43>0,Munkanaplo!I43,\"\")","v":""},{"$f":"IF(Munkanaplo!J43>0,Munkanaplo!J43,\"\")","v":""},{"$f":"IF(Munkanaplo!K43>0,Munkanaplo!K43,\"\")","v":""},{"$f":"IF(Munkanaplo!L43>0,Munkanaplo!L43,\"\")","v":""},{"$f":"IF(Munkanaplo!M43>0,Munkanaplo!M43,\"\")","v":""},{"$f":"IF(Munkanaplo!N43>0,Munkanaplo!N43,\"\")","v":""},{"$f":"IF(Munkanaplo!O43>0,Munkanaplo!O43,\"\")","v":""},{"$f":"IF(Munkanaplo!P43>0,Munkanaplo!P43,\"\")","v":""},{"$f":"IF(Munkanaplo!Q43>0,Munkanaplo!Q43,\"\")","v":""},{"$f":"IFERROR(IF(Munkanaplo!R43>0,Munkanaplo!R43,\"\")/5,\"\")","v":""},{"$f":"IF(Munkanaplo!AF43>0,Munkanaplo!AF43,\"\")","v":""},{"$f":"IF(Munkanaplo!V43>0,Munkanaplo!V43,\"\")","v":""},{"$f":"IF(Munkanaplo!W43>0,Munkanaplo!W43,\"\")","v":""},{"$f":"IF(Munkanaplo!X43>0,Munkanaplo!X43,\"\")","v":""},{"$f":"IF(Munkanaplo!Y43>0,Munkanaplo!Y43,\"\")","v":""},{"$f":"IF(Munkanaplo!Z43>0,Munkanaplo!Z43,\"\")","v":""},{"$f":"IF(Munkanaplo!AA43>0,Munkanaplo!AA43,\"\")","v":""},{"$f":"IF(Munkanaplo!AB43>0,Munkanaplo!AB43,\"\")","v":""},{"$f":"IF(Munkanaplo!AC43>0,Munkanaplo!AC43,\"\")","v":""},{"$f":"IF(Munkanaplo!AD43>0,Munkanaplo!AD43,\"\")","v":""},{"$f":"IF(Munkanaplo!AE43>0,Munkanaplo!AE43,\"\")","v":""},{"$f":"IF(Munkanaplo!AG43>0,Munkanaplo!AG43,\"\")","v":""}]
[{"$f":"IF(Munkanaplo!E44>0,Munkanaplo!E44,\"\")","v":""},{"$f":"IF(Munkanaplo!H44>0,Munkanaplo!H44,\"\")","v":""},{"$f":"IF(Munkanaplo!I44>0,Munkanaplo!I44,\"\")","v":""},{"$f":"IF(Munkanaplo!J44>0,Munkanaplo!J44,\"\")","v":""},{"$f":"IF(Munkanaplo!K44>0,Munkanaplo!K44,\"\")","v":""},{"$f":"IF(Munkanaplo!L44>0,Munkanaplo!L44,\"\")","v":""},{"$f":"IF(Munkanaplo!M44>0,Munkanaplo!M44,\"\")","v":""},{"$f":"IF(Munkanaplo!N44>0,Munkanaplo!N44,\"\")","v":""},{"$f":"IF(Munkanaplo!O44>0,Munkanaplo!O44,\"\")","v":""},{"$f":"IF(Munkanaplo!P44>0,Munkanaplo!P44,\"\")","v":""},{"$f":"IF(Munkanaplo!Q44>0,Munkanaplo!Q44,\"\")","v":""},{"$f":"IFERROR(IF(Munkanaplo!R44>0,Munkanaplo!R44,\"\")/5,\"\")","v":""},{"$f":"IF(Munkanaplo!AF44>0,Munkanaplo!AF44,\"\")","v":""},{"$f":"IF(Munkanaplo!V44>0,Munkanaplo!V44,\"\")","v":""},{"$f":"IF(Munkanaplo!W44>0,Munkanaplo!W44,\"\")","v":""},{"$f":"IF(Munkanaplo!X44>0,Munkanaplo!X44,\"\")","v":""},{"$f":"IF(Munkanaplo!Y44>0,Munkanaplo!Y44,\"\")","v":""},{"$f":"IF(Munkanaplo!Z44>0,Munkanaplo!Z44,\"\")","v":""},{"$f":"IF(Munkanaplo!AA44>0,Munkanaplo!AA44,\"\")","v":""},{"$f":"IF(Munkanaplo!AB44>0,Munkanaplo!AB44,\"\")","v":""},{"$f":"IF(Munkanaplo!AC44>0,Munkanaplo!AC44,\"\")","v":""},{"$f":"IF(Munkanaplo!AD44>0,Munkanaplo!AD44,\"\")","v":""},{"$f":"IF(Munkanaplo!AE44>0,Munkanaplo!AE44,\"\")","v":""},{"$f":"IF(Munkanaplo!AG44>0,Munkanaplo!AG44,\"\")","v":""}]
[{"$f":"IF(Munkanaplo!E45>0,Munkanaplo!E45,\"\")","v":""},{"$f":"IF(Munkanaplo!H45>0,Munkanaplo!H45,\"\")","v":""},{"$f":"IF(Munkanaplo!I45>0,Munkanaplo!I45,\"\")","v":""},{"$f":"IF(Munkanaplo!J45>0,Munkanaplo!J45,\"\")","v":""},{"$f":"IF(Munkanaplo!K45>0,Munkanaplo!K45,\"\")","v":""},{"$f":"IF(Munkanaplo!L45>0,Munkanaplo!L45,\"\")","v":""},{"$f":"IF(Munkanaplo!M45>0,Munkanaplo!M45,\"\")","v":""},{"$f":"IF(Munkanaplo!N45>0,Munkanaplo!N45,\"\")","v":""},{"$f":"IF(Munkanaplo!O45>0,Munkanaplo!O45,\"\")","v":""},{"$f":"IF(Munkanaplo!P45>0,Munkanaplo!P45,\"\")","v":""},{"$f":"IF(Munkanaplo!Q45>0,Munkanaplo!Q45,\"\")","v":""},{"$f":"IFERROR(IF(Munkanaplo!R45>0,Munkanaplo!R45,\"\")/5,\"\")","v":""},{"$f":"IF(Munkanaplo!AF45>0,Munkanaplo!AF45,\"\")","v":""},{"$f":"IF(Munkanaplo!V45>0,Munkanaplo!V45,\"\")","v":""},{"$f":"IF(Munkanaplo!W45>0,Munkanaplo!W45,\"\")","v":""},{"$f":"IF(Munkanaplo!X45>0,Munkanaplo!X45,\"\")","v":""},{"$f":"IF(Munkanaplo!Y45>0,Munkanaplo!Y45,\"\")","v":""},{"$f":"IF(Munkanaplo!Z45>0,Munkanaplo!Z45,\"\")","v":""},{"$f":"IF(Munkanaplo!AA45>0,Munkanaplo!AA45,\"\")","v":""},{"$f":"IF(Munkanaplo!AB45>0,Munkanaplo!AB45,\"\")","v":""},{"$f":"IF(Munkanaplo!AC45>0,Munkanaplo!AC45,\"\")","v":""},{"$f":"IF(Munkanaplo!AD45>0,Munkanaplo!AD45,\"\")","v":""},{"$f":"IF(Munkanaplo!AE45>0,Munkanaplo!AE45,\"\")","v":""},{"$f":"IF(Munkanaplo!AG45>0,Munkanaplo!AG45,\"\")","v":""}]
[{"$f":"IF(Munkanaplo!E46>0,Munkanaplo!E46,\"\")","v":""},{"$f":"IF(Munkanaplo!H46>0,Munkanaplo!H46,\"\")","v":""},{"$f":"IF(Munkanaplo!I46>0,Munkanaplo!I46,\"\")","v":""},{"$f":"IF(Munkanaplo!J46>0,Munkanaplo!J46,\"\")","v":""},{"$f":"IF(Munkanaplo!K46>0,Munkanaplo!K46,\"\")","v":""},{"$f":"IF(Munkanaplo!L46>0,Munkanaplo!L46,\"\")","v":""},{"$f":"IF(Munkanaplo!M46>0,Munkanaplo!M46,\"\")","v":""},{"$f":"IF(Munkanaplo!N46>0,Munkanaplo!N46,\"\")","v":""},{"$f":"IF(Munkanaplo!O46>0,Munkanaplo!O46,\"\")","v":""},{"$f":"IF(Munkanaplo!P46>0,Munkanaplo!P46,\"\")","v":""},{"$f":"IF(Munkanaplo!Q46>0,Munkanaplo!Q46,\"\")","v":""},{"$f":"IFERROR(IF(Munkanaplo!R46>0,Munkanaplo!R46,\"\")/5,\"\")","v":""},{"$f":"IF(Munkanaplo!AF46>0,Munkanaplo!AF46,\"\")","v":""},{"$f":"IF(Munkanaplo!V46>0,Munkanaplo!V46,\"\")","v":""},{"$f":"IF(Munkanaplo!W46>0,Munkanaplo!W46,\"\")","v":""},{"$f":"IF(Munkanaplo!X46>0,Munkanaplo!X46,\"\")","v":""},{"$f":"IF(Munkanaplo!Y46>0,Munkanaplo!Y46,\"\")","v":""},{"$f":"IF(Munkanaplo!Z46>0,Munkanaplo!Z46,\"\")","v":""},{"$f":"IF(Munkanaplo!AA46>0,Munkanaplo!AA46,\"\")","v":""},{"$f":"IF(Munkanaplo!AB46>0,Munkanaplo!AB46,\"\")","v":""},{"$f":"IF(Munkanaplo!AC46>0,Munkanaplo!AC46,\"\")","v":""},{"$f":"IF(Munkanaplo!AD46>0,Munkanaplo!AD46,\"\")","v":""},{"$f":"IF(Munkanaplo!AE46>0,Munkanaplo!AE46,\"\")","v":""},{"$f":"IF(Munkanaplo!AG46>0,Munkanaplo!AG46,\"\")","v":""}]
[{"$f":"IF(Munkanaplo!E47>0,Munkanaplo!E47,\"\")","v":""},{"$f":"IF(Munkanaplo!H47>0,Munkanaplo!H47,\"\")","v":""},{"$f":"IF(Munkanaplo!I47>0,Munkanaplo!I47,\"\")","v":""},{"$f":"IF(Munkanaplo!J47>0,Munkanaplo!J47,\"\")","v":""},{"$f":"IF(Munkanaplo!K47>0,Munkanaplo!K47,\"\")","v":""},{"$f":"IF(Munkanaplo!L47>0,Munkanaplo!L47,\"\")","v":""},{"$f":"IF(Munkanaplo!M47>0,Munkanaplo!M47,\"\")","v":""},{"$f":"IF(Munkanaplo!N47>0,Munkanaplo!N47,\"\")","v":""},{"$f":"IF(Munkanaplo!O47>0,Munkanaplo!O47,\"\")","v":""},{"$f":"IF(Munkanaplo!P47>0,Munkanaplo!P47,\"\")","v":""},{"$f":"IF(Munkanaplo!Q47>0,Munkanaplo!Q47,\"\")","v":""},{"$f":"IFERROR(IF(Munkanaplo!R47>0,Munkanaplo!R47,\"\")/5,\"\")","v":""},{"$f":"IF(Munkanaplo!AF47>0,Munkanaplo!AF47,\"\")","v":""},{"$f":"IF(Munkanaplo!V47>0,Munkanaplo!V47,\"\")","v":""},{"$f":"IF(Munkanaplo!W47>0,Munkanaplo!W47,\"\")","v":""},{"$f":"IF(Munkanaplo!X47>0,Munkanaplo!X47,\"\")","v":""},{"$f":"IF(Munkanaplo!Y47>0,Munkanaplo!Y47,\"\")","v":""},{"$f":"IF(Munkanaplo!Z47>0,Munkanaplo!Z47,\"\")","v":""},{"$f":"IF(Munkanaplo!AA47>0,Munkanaplo!AA47,\"\")","v":""},{"$f":"IF(Munkanaplo!AB47>0,Munkanaplo!AB47,\"\")","v":""},{"$f":"IF(Munkanaplo!AC47>0,Munkanaplo!AC47,\"\")","v":""},{"$f":"IF(Munkanaplo!AD47>0,Munkanaplo!AD47,\"\")","v":""},{"$f":"IF(Munkanaplo!AE47>0,Munkanaplo!AE47,\"\")","v":""},{"$f":"IF(Munkanaplo!AG47>0,Munkanaplo!AG47,\"\")","v":""}]
[{"$f":"IF(Munkanaplo!E48>0,Munkanaplo!E48,\"\")","v":""},{"$f":"IF(Munkanaplo!H48>0,Munkanaplo!H48,\"\")","v":""},{"$f":"IF(Munkanaplo!I48>0,Munkanaplo!I48,\"\")","v":""},{"$f":"IF(Munkanaplo!J48>0,Munkanaplo!J48,\"\")","v":""},{"$f":"IF(Munkanaplo!K48>0,Munkanaplo!K48,\"\")","v":""},{"$f":"IF(Munkanaplo!L48>0,Munkanaplo!L48,\"\")","v":""},{"$f":"IF(Munkanaplo!M48>0,Munkanaplo!M48,\"\")","v":""},{"$f":"IF(Munkanaplo!N48>0,Munkanaplo!N48,\"\")","v":""},{"$f":"IF(Munkanaplo!O48>0,Munkanaplo!O48,\"\")","v":""},{"$f":"IF(Munkanaplo!P48>0,Munkanaplo!P48,\"\")","v":""},{"$f":"IF(Munkanaplo!Q48>0,Munkanaplo!Q48,\"\")","v":""},{"$f":"IFERROR(IF(Munkanaplo!R48>0,Munkanaplo!R48,\"\")/5,\"\")","v":""},{"$f":"IF(Munkanaplo!AF48>0,Munkanaplo!AF48,\"\")","v":""},{"$f":"IF(Munkanaplo!V48>0,Munkanaplo!V48,\"\")","v":""},{"$f":"IF(Munkanaplo!W48>0,Munkanaplo!W48,\"\")","v":""},{"$f":"IF(Munkanaplo!X48>0,Munkanaplo!X48,\"\")","v":""},{"$f":"IF(Munkanaplo!Y48>0,Munkanaplo!Y48,\"\")","v":""},{"$f":"IF(Munkanaplo!Z48>0,Munkanaplo!Z48,\"\")","v":""},{"$f":"IF(Munkanaplo!AA48>0,Munkanaplo!AA48,\"\")","v":""},{"$f":"IF(Munkanaplo!AB48>0,Munkanaplo!AB48,\"\")","v":""},{"$f":"IF(Munkanaplo!AC48>0,Munkanaplo!AC48,\"\")","v":""},{"$f":"IF(Munkanaplo!AD48>0,Munkanaplo!AD48,\"\")","v":""},{"$f":"IF(Munkanaplo!AE48>0,Munkanaplo!AE48,\"\")","v":""},{"$f":"IF(Munkanaplo!AG48>0,Munkanaplo!AG48,\"\")","v":""}]
[{"$f":"IF(Munkanaplo!E49>0,Munkanaplo!E49,\"\")","v":""},{"$f":"IF(Munkanaplo!H49>0,Munkanaplo!H49,\"\")","v":""},{"$f":"IF(Munkanaplo!I49>0,Munkanaplo!I49,\"\")","v":""},{"$f":"IF(Munkanaplo!J49>0,Munkanaplo!J49,\"\")","v":""},{"$f":"IF(Munkanaplo!K49>0,Munkanaplo!K49,\"\")","v":""},{"$f":"IF(Munkanaplo!L49>0,Munkanaplo!L49,\"\")","v":""},{"$f":"IF(Munkanaplo!M49>0,Munkanaplo!M49,\"\")","v":""},{"$f":"IF(Munkanaplo!N49>0,Munkanaplo!N49,\"\")","v":""},{"$f":"IF(Munkanaplo!O49>0,Munkanaplo!O49,\"\")","v":""},{"$f":"IF(Munkanaplo!P49>0,Munkanaplo!P49,\"\")","v":""},{"$f":"IF(Munkanaplo!Q49>0,Munkanaplo!Q49,\"\")","v":""},{"$f":"IFERROR(IF(Munkanaplo!R49>0,Munkanaplo!R49,\"\")/5,\"\")","v":""},{"$f":"IF(Munkanaplo!AF49>0,Munkanaplo!AF49,\"\")","v":""},{"$f":"IF(Munkanaplo!V49>0,Munkanaplo!V49,\"\")","v":""},{"$f":"IF(Munkanaplo!W49>0,Munkanaplo!W49,\"\")","v":""},{"$f":"IF(Munkanaplo!X49>0,Munkanaplo!X49,\"\")","v":""},{"$f":"IF(Munkanaplo!Y49>0,Munkanaplo!Y49,\"\")","v":""},{"$f":"IF(Munkanaplo!Z49>0,Munkanaplo!Z49,\"\")","v":""},{"$f":"IF(Munkanaplo!AA49>0,Munkanaplo!AA49,\"\")","v":""},{"$f":"IF(Munkanaplo!AB49>0,Munkanaplo!AB49,\"\")","v":""},{"$f":"IF(Munkanaplo!AC49>0,Munkanaplo!AC49,\"\")","v":""},{"$f":"IF(Munkanaplo!AD49>0,Munkanaplo!AD49,\"\")","v":""},{"$f":"IF(Munkanaplo!AE49>0,Munkanaplo!AE49,\"\")","v":""},{"$f":"IF(Munkanaplo!AG49>0,Munkanaplo!AG49,\"\")","v":""}]
[{"$f":"IF(Munkanaplo!E50>0,Munkanaplo!E50,\"\")","v":""},{"$f":"IF(Munkanaplo!H50>0,Munkanaplo!H50,\"\")","v":""},{"$f":"IF(Munkanaplo!I50>0,Munkanaplo!I50,\"\")","v":""},{"$f":"IF(Munkanaplo!J50>0,Munkanaplo!J50,\"\")","v":""},{"$f":"IF(Munkanaplo!K50>0,Munkanaplo!K50,\"\")","v":""},{"$f":"IF(Munkanaplo!L50>0,Munkanaplo!L50,\"\")","v":""},{"$f":"IF(Munkanaplo!M50>0,Munkanaplo!M50,\"\")","v":""},{"$f":"IF(Munkanaplo!N50>0,Munkanaplo!N50,\"\")","v":""},{"$f":"IF(Munkanaplo!O50>0,Munkanaplo!O50,\"\")","v":""},{"$f":"IF(Munkanaplo!P50>0,Munkanaplo!P50,\"\")","v":""},{"$f":"IF(Munkanaplo!Q50>0,Munkanaplo!Q50,\"\")","v":""},{"$f":"IFERROR(IF(Munkanaplo!R50>0,Munkanaplo!R50,\"\")/5,\"\")","v":""},{"$f":"IF(Munkanaplo!AF50>0,Munkanaplo!AF50,\"\")","v":""},{"$f":"IF(Munkanaplo!V50>0,Munkanaplo!V50,\"\")","v":""},{"$f":"IF(Munkanaplo!W50>0,Munkanaplo!W50,\"\")","v":""},{"$f":"IF(Munkanaplo!X50>0,Munkanaplo!X50,\"\")","v":""},{"$f":"IF(Munkanaplo!Y50>0,Munkanaplo!Y50,\"\")","v":""},{"$f":"IF(Munkanaplo!Z50>0,Munkanaplo!Z50,\"\")","v":""},{"$f":"IF(Munkanaplo!AA50>0,Munkanaplo!AA50,\"\")","v":""},{"$f":"IF(Munkanaplo!AB50>0,Munkanaplo!AB50,\"\")","v":""},{"$f":"IF(Munkanaplo!AC50>0,Munkanaplo!AC50,\"\")","v":""},{"$f":"IF(Munkanaplo!AD50>0,Munkanaplo!AD50,\"\")","v":""},{"$f":"IF(Munkanaplo!AE50>0,Munkanaplo!AE50,\"\")","v":""},{"$f":"IF(Munkanaplo!AG50>0,Munkanaplo!AG50,\"\")","v":""}]
[{"$f":"IF(Munkanaplo!E51>0,Munkanaplo!E51,\"\")","v":""},{"$f":"IF(Munkanaplo!H51>0,Munkanaplo!H51,\"\")","v":""},{"$f":"IF(Munkanaplo!I51>0,Munkanaplo!I51,\"\")","v":""},{"$f":"IF(Munkanaplo!J51>0,Munkanaplo!J51,\"\")","v":""},{"$f":"IF(Munkanaplo!K51>0,Munkanaplo!K51,\"\")","v":""},{"$f":"IF(Munkanaplo!L51>0,Munkanaplo!L51,\"\")","v":""},{"$f":"IF(Munkanaplo!M51>0,Munkanaplo!M51,\"\")","v":""},{"$f":"IF(Munkanaplo!N51>0,Munkanaplo!N51,\"\")","v":""},{"$f":"IF(Munkanaplo!O51>0,Munkanaplo!O51,\"\")","v":""},{"$f":"IF(Munkanaplo!P51>0,Munkanaplo!P51,\"\")","v":""},{"$f":"IF(Munkanaplo!Q51>0,Munkanaplo!Q51,\"\")","v":""},{"$f":"IFERROR(IF(Munkanaplo!R51>0,Munkanaplo!R51,\"\")/5,\"\")","v":""},{"$f":"IF(Munkanaplo!AF51>0,Munkanaplo!AF51,\"\")","v":""},{"$f":"IF(Munkanaplo!V51>0,Munkanaplo!V51,\"\")","v":""},{"$f":"IF(Munkanaplo!W51>0,Munkanaplo!W51,\"\")","v":""},{"$f":"IF(Munkanaplo!X51>0,Munkanaplo!X51,\"\")","v":""},{"$f":"IF(Munkanaplo!Y51>0,Munkanaplo!Y51,\"\")","v":""},{"$f":"IF(Munkanaplo!Z51>0,Munkanaplo!Z51,\"\")","v":""},{"$f":"IF(Munkanaplo!AA51>0,Munkanaplo!AA51,\"\")","v":""},{"$f":"IF(Munkanaplo!AB51>0,Munkanaplo!AB51,\"\")","v":""},{"$f":"IF(Munkanaplo!AC51>0,Munkanaplo!AC51,\"\")","v":""},{"$f":"IF(Munkanaplo!AD51>0,Munkanaplo!AD51,\"\")","v":""},{"$f":"IF(Munkanaplo!AE51>0,Munkanaplo!AE51,\"\")","v":""},{"$f":"IF(Munkanaplo!AG51>0,Munkanaplo!AG51,\"\")","v":""}]
[{"$f":"IF(Munkanaplo!E52>0,Munkanaplo!E52,\"\")","v":""},{"$f":"IF(Munkanaplo!H52>0,Munkanaplo!H52,\"\")","v":""},{"$f":"IF(Munkanaplo!I52>0,Munkanaplo!I52,\"\")","v":""},{"$f":"IF(Munkanaplo!J52>0,Munkanaplo!J52,\"\")","v":""},{"$f":"IF(Munkanaplo!K52>0,Munkanaplo!K52,\"\")","v":""},{"$f":"IF(Munkanaplo!L52>0,Munkanaplo!L52,\"\")","v":""},{"$f":"IF(Munkanaplo!M52>0,Munkanaplo!M52,\"\")","v":""},{"$f":"IF(Munkanaplo!N52>0,Munkanaplo!N52,\"\")","v":""},{"$f":"IF(Munkanaplo!O52>0,Munkanaplo!O52,\"\")","v":""},{"$f":"IF(Munkanaplo!P52>0,Munkanaplo!P52,\"\")","v":""},{"$f":"IF(Munkanaplo!Q52>0,Munkanaplo!Q52,\"\")","v":""},{"$f":"IFERROR(IF(Munkanaplo!R52>0,Munkanaplo!R52,\"\")/5,\"\")","v":""},{"$f":"IF(Munkanaplo!AF52>0,Munkanaplo!AF52,\"\")","v":""},{"$f":"IF(Munkanaplo!V52>0,Munkanaplo!V52,\"\")","v":""},{"$f":"IF(Munkanaplo!W52>0,Munkanaplo!W52,\"\")","v":""},{"$f":"IF(Munkanaplo!X52>0,Munkanaplo!X52,\"\")","v":""},{"$f":"IF(Munkanaplo!Y52>0,Munkanaplo!Y52,\"\")","v":""},{"$f":"IF(Munkanaplo!Z52>0,Munkanaplo!Z52,\"\")","v":""},{"$f":"IF(Munkanaplo!AA52>0,Munkanaplo!AA52,\"\")","v":""},{"$f":"IF(Munkanaplo!AB52>0,Munkanaplo!AB52,\"\")","v":""},{"$f":"IF(Munkanaplo!AC52>0,Munkanaplo!AC52,\"\")","v":""},{"$f":"IF(Munkanaplo!AD52>0,Munkanaplo!AD52,\"\")","v":""},{"$f":"IF(Munkanaplo!AE52>0,Munkanaplo!AE52,\"\")","v":""},{"$f":"IF(Munkanaplo!AG52>0,Munkanaplo!AG52,\"\")","v":""}]
[{"$f":"IF(Munkanaplo!E53>0,Munkanaplo!E53,\"\")","v":""},{"$f":"IF(Munkanaplo!H53>0,Munkanaplo!H53,\"\")","v":""},{"$f":"IF(Munkanaplo!I53>0,Munkanaplo!I53,\"\")","v":""},{"$f":"IF(Munkanaplo!J53>0,Munkanaplo!J53,\"\")","v":""},{"$f":"IF(Munkanaplo!K53>0,Munkanaplo!K53,\"\")","v":""},{"$f":"IF(Munkanaplo!L53>0,Munkanaplo!L53,\"\")","v":""},{"$f":"IF(Munkanaplo!M53>0,Munkanaplo!M53,\"\")","v":""},{"$f":"IF(Munkanaplo!N53>0,Munkanaplo!N53,\"\")","v":""},{"$f":"IF(Munkanaplo!O53>0,Munkanaplo!O53,\"\")","v":""},{"$f":"IF(Munkanaplo!P53>0,Munkanaplo!P53,\"\")","v":""},{"$f":"IF(Munkanaplo!Q53>0,Munkanaplo!Q53,\"\")","v":""},{"$f":"IFERROR(IF(Munkanaplo!R53>0,Munkanaplo!R53,\"\")/5,\"\")","v":""},{"$f":"IF(Munkanaplo!AF53>0,Munkanaplo!AF53,\"\")","v":""},{"$f":"IF(Munkanaplo!V53>0,Munkanaplo!V53,\"\")","v":""},{"$f":"IF(Munkanaplo!W53>0,Munkanaplo!W53,\"\")","v":""},{"$f":"IF(Munkanaplo!X53>0,Munkanaplo!X53,\"\")","v":""},{"$f":"IF(Munkanaplo!Y53>0,Munkanaplo!Y53,\"\")","v":""},{"$f":"IF(Munkanaplo!Z53>0,Munkanaplo!Z53,\"\")","v":""},{"$f":"IF(Munkanaplo!AA53>0,Munkanaplo!AA53,\"\")","v":""},{"$f":"IF(Munkanaplo!AB53>0,Munkanaplo!AB53,\"\")","v":""},{"$f":"IF(Munkanaplo!AC53>0,Munkanaplo!AC53,\"\")","v":""},{"$f":"IF(Munkanaplo!AD53>0,Munkanaplo!AD53,\"\")","v":""},{"$f":"IF(Munkanaplo!AE53>0,Munkanaplo!AE53,\"\")","v":""},{"$f":"IF(Munkanaplo!AG53>0,Munkanaplo!AG53,\"\")","v":""}]
[{"$f":"IF(Munkanaplo!E54>0,Munkanaplo!E54,\"\")","v":""},{"$f":"IF(Munkanaplo!H54>0,Munkanaplo!H54,\"\")","v":""},{"$f":"IF(Munkanaplo!I54>0,Munkanaplo!I54,\"\")","v":""},{"$f":"IF(Munkanaplo!J54>0,Munkanaplo!J54,\"\")","v":""},{"$f":"IF(Munkanaplo!K54>0,Munkanaplo!K54,\"\")","v":""},{"$f":"IF(Munkanaplo!L54>0,Munkanaplo!L54,\"\")","v":""},{"$f":"IF(Munkanaplo!M54>0,Munkanaplo!M54,\"\")","v":""},{"$f":"IF(Munkanaplo!N54>0,Munkanaplo!N54,\"\")","v":""},{"$f":"IF(Munkanaplo!O54>0,Munkanaplo!O54,\"\")","v":""},{"$f":"IF(Munkanaplo!P54>0,Munkanaplo!P54,\"\")","v":""},{"$f":"IF(Munkanaplo!Q54>0,Munkanaplo!Q54,\"\")","v":""},{"$f":"IFERROR(IF(Munkanaplo!R54>0,Munkanaplo!R54,\"\")/5,\"\")","v":""},{"$f":"IF(Munkanaplo!AF54>0,Munkanaplo!AF54,\"\")","v":""},{"$f":"IF(Munkanaplo!V54>0,Munkanaplo!V54,\"\")","v":""},{"$f":"IF(Munkanaplo!W54>0,Munkanaplo!W54,\"\")","v":""},{"$f":"IF(Munkanaplo!X54>0,Munkanaplo!X54,\"\")","v":""},{"$f":"IF(Munkanaplo!Y54>0,Munkanaplo!Y54,\"\")","v":""},{"$f":"IF(Munkanaplo!Z54>0,Munkanaplo!Z54,\"\")","v":""},{"$f":"IF(Munkanaplo!AA54>0,Munkanaplo!AA54,\"\")","v":""},{"$f":"IF(Munkanaplo!AB54>0,Munkanaplo!AB54,\"\")","v":""},{"$f":"IF(Munkanaplo!AC54>0,Munkanaplo!AC54,\"\")","v":""},{"$f":"IF(Munkanaplo!AD54>0,Munkanaplo!AD54,\"\")","v":""},{"$f":"IF(Munkanaplo!AE54>0,Munkanaplo!AE54,\"\")","v":""},{"$f":"IF(Munkanaplo!AG54>0,Munkanaplo!AG54,\"\")","v":""}]
[{"$f":"IF(Munkanaplo!E55>0,Munkanaplo!E55,\"\")","v":""},{"$f":"IF(Munkanaplo!H55>0,Munkanaplo!H55,\"\")","v":""},{"$f":"IF(Munkanaplo!I55>0,Munkanaplo!I55,\"\")","v":""},{"$f":"IF(Munkanaplo!J55>0,Munkanaplo!J55,\"\")","v":""},{"$f":"IF(Munkanaplo!K55>0,Munkanaplo!K55,\"\")","v":""},{"$f":"IF(Munkanaplo!L55>0,Munkanaplo!L55,\"\")","v":""},{"$f":"IF(Munkanaplo!M55>0,Munkanaplo!M55,\"\")","v":""},{"$f":"IF(Munkanaplo!N55>0,Munkanaplo!N55,\"\")","v":""},{"$f":"IF(Munkanaplo!O55>0,Munkanaplo!O55,\"\")","v":""},{"$f":"IF(Munkanaplo!P55>0,Munkanaplo!P55,\"\")","v":""},{"$f":"IF(Munkanaplo!Q55>0,Munkanaplo!Q55,\"\")","v":""},{"$f":"IFERROR(IF(Munkanaplo!R55>0,Munkanaplo!R55,\"\")/5,\"\")","v":""},{"$f":"IF(Munkanaplo!AF55>0,Munkanaplo!AF55,\"\")","v":""},{"$f":"IF(Munkanaplo!V55>0,Munkanaplo!V55,\"\")","v":""},{"$f":"IF(Munkanaplo!W55>0,Munkanaplo!W55,\"\")","v":""},{"$f":"IF(Munkanaplo!X55>0,Munkanaplo!X55,\"\")","v":""},{"$f":"IF(Munkanaplo!Y55>0,Munkanaplo!Y55,\"\")","v":""},{"$f":"IF(Munkanaplo!Z55>0,Munkanaplo!Z55,\"\")","v":""},{"$f":"IF(Munkanaplo!AA55>0,Munkanaplo!AA55,\"\")","v":""},{"$f":"IF(Munkanaplo!AB55>0,Munkanaplo!AB55,\"\")","v":""},{"$f":"IF(Munkanaplo!AC55>0,Munkanaplo!AC55,\"\")","v":""},{"$f":"IF(Munkanaplo!AD55>0,Munkanaplo!AD55,\"\")","v":""},{"$f":"IF(Munkanaplo!AE55>0,Munkanaplo!AE55,\"\")","v":""},{"$f":"IF(Munkanaplo!AG55>0,Munkanaplo!AG55,\"\")","v":""}]
[{"$f":"IF(Munkanaplo!E56>0,Munkanaplo!E56,\"\")","v":""},{"$f":"IF(Munkanaplo!H56>0,Munkanaplo!H56,\"\")","v":""},{"$f":"IF(Munkanaplo!I56>0,Munkanaplo!I56,\"\")","v":""},{"$f":"IF(Munkanaplo!J56>0,Munkanaplo!J56,\"\")","v":""},{"$f":"IF(Munkanaplo!K56>0,Munkanaplo!K56,\"\")","v":""},{"$f":"IF(Munkanaplo!L56>0,Munkanaplo!L56,\"\")","v":""},{"$f":"IF(Munkanaplo!M56>0,Munkanaplo!M56,\"\")","v":""},{"$f":"IF(Munkanaplo!N56>0,Munkanaplo!N56,\"\")","v":""},{"$f":"IF(Munkanaplo!O56>0,Munkanaplo!O56,\"\")","v":""},{"$f":"IF(Munkanaplo!P56>0,Munkanaplo!P56,\"\")","v":""},{"$f":"IF(Munkanaplo!Q56>0,Munkanaplo!Q56,\"\")","v":""},{"$f":"IFERROR(IF(Munkanaplo!R56>0,Munkanaplo!R56,\"\")/5,\"\")","v":""},{"$f":"IF(Munkanaplo!AF56>0,Munkanaplo!AF56,\"\")","v":""},{"$f":"IF(Munkanaplo!V56>0,Munkanaplo!V56,\"\")","v":""},{"$f":"IF(Munkanaplo!W56>0,Munkanaplo!W56,\"\")","v":""},{"$f":"IF(Munkanaplo!X56>0,Munkanaplo!X56,\"\")","v":""},{"$f":"IF(Munkanaplo!Y56>0,Munkanaplo!Y56,\"\")","v":""},{"$f":"IF(Munkanaplo!Z56>0,Munkanaplo!Z56,\"\")","v":""},{"$f":"IF(Munkanaplo!AA56>0,Munkanaplo!AA56,\"\")","v":""},{"$f":"IF(Munkanaplo!AB56>0,Munkanaplo!AB56,\"\")","v":""},{"$f":"IF(Munkanaplo!AC56>0,Munkanaplo!AC56,\"\")","v":""},{"$f":"IF(Munkanaplo!AD56>0,Munkanaplo!AD56,\"\")","v":""},{"$f":"IF(Munkanaplo!AE56>0,Munkanaplo!AE56,\"\")","v":""},{"$f":"IF(Munkanaplo!AG56>0,Munkanaplo!AG56,\"\")","v":""}]
[{"$f":"IF(Munkanaplo!E57>0,Munkanaplo!E57,\"\")","v":""},{"$f":"IF(Munkanaplo!H57>0,Munkanaplo!H57,\"\")","v":""},{"$f":"IF(Munkanaplo!I57>0,Munkanaplo!I57,\"\")","v":""},{"$f":"IF(Munkanaplo!J57>0,Munkanaplo!J57,\"\")","v":""},{"$f":"IF(Munkanaplo!K57>0,Munkanaplo!K57,\"\")","v":""},{"$f":"IF(Munkanaplo!L57>0,Munkanaplo!L57,\"\")","v":""},{"$f":"IF(Munkanaplo!M57>0,Munkanaplo!M57,\"\")","v":""},{"$f":"IF(Munkanaplo!N57>0,Munkanaplo!N57,\"\")","v":""},{"$f":"IF(Munkanaplo!O57>0,Munkanaplo!O57,\"\")","v":""},{"$f":"IF(Munkanaplo!P57>0,Munkanaplo!P57,\"\")","v":""},{"$f":"IF(Munkanaplo!Q57>0,Munkanaplo!Q57,\"\")","v":""},{"$f":"IFERROR(IF(Munkanaplo!R57>0,Munkanaplo!R57,\"\")/5,\"\")","v":""},{"$f":"IF(Munkanaplo!AF57>0,Munkanaplo!AF57,\"\")","v":""},{"$f":"IF(Munkanaplo!V57>0,Munkanaplo!V57,\"\")","v":""},{"$f":"IF(Munkanaplo!W57>0,Munkanaplo!W57,\"\")","v":""},{"$f":"IF(Munkanaplo!X57>0,Munkanaplo!X57,\"\")","v":""},{"$f":"IF(Munkanaplo!Y57>0,Munkanaplo!Y57,\"\")","v":""},{"$f":"IF(Munkanaplo!Z57>0,Munkanaplo!Z57,\"\")","v":""},{"$f":"IF(Munkanaplo!AA57>0,Munkanaplo!AA57,\"\")","v":""},{"$f":"IF(Munkanaplo!AB57>0,Munkanaplo!AB57,\"\")","v":""},{"$f":"IF(Munkanaplo!AC57>0,Munkanaplo!AC57,\"\")","v":""},{"$f":"IF(Munkanaplo!AD57>0,Munkanaplo!AD57,\"\")","v":""},{"$f":"IF(Munkanaplo!AE57>0,Munkanaplo!AE57,\"\")","v":""},{"$f":"IF(Munkanaplo!AG57>0,Munkanaplo!AG57,\"\")","v":""}]
[{"$f":"IF(Munkanaplo!E58>0,Munkanaplo!E58,\"\")","v":""},{"$f":"IF(Munkanaplo!H58>0,Munkanaplo!H58,\"\")","v":""},{"$f":"IF(Munkanaplo!I58>0,Munkanaplo!I58,\"\")","v":""},{"$f":"IF(Munkanaplo!J58>0,Munkanaplo!J58,\"\")","v":""},{"$f":"IF(Munkanaplo!K58>0,Munkanaplo!K58,\"\")","v":""},{"$f":"IF(Munkanaplo!L58>0,Munkanaplo!L58,\"\")","v":""},{"$f":"IF(Munkanaplo!M58>0,Munkanaplo!M58,\"\")","v":""},{"$f":"IF(Munkanaplo!N58>0,Munkanaplo!N58,\"\")","v":""},{"$f":"IF(Munkanaplo!O58>0,Munkanaplo!O58,\"\")","v":""},{"$f":"IF(Munkanaplo!P58>0,Munkanaplo!P58,\"\")","v":""},{"$f":"IF(Munkanaplo!Q58>0,Munkanaplo!Q58,\"\")","v":""},{"$f":"IFERROR(IF(Munkanaplo!R58>0,Munkanaplo!R58,\"\")/5,\"\")","v":""},{"$f":"IF(Munkanaplo!AF58>0,Munkanaplo!AF58,\"\")","v":""},{"$f":"IF(Munkanaplo!V58>0,Munkanaplo!V58,\"\")","v":""},{"$f":"IF(Munkanaplo!W58>0,Munkanaplo!W58,\"\")","v":""},{"$f":"IF(Munkanaplo!X58>0,Munkanaplo!X58,\"\")","v":""},{"$f":"IF(Munkanaplo!Y58>0,Munkanaplo!Y58,\"\")","v":""},{"$f":"IF(Munkanaplo!Z58>0,Munkanaplo!Z58,\"\")","v":""},{"$f":"IF(Munkanaplo!AA58>0,Munkanaplo!AA58,\"\")","v":""},{"$f":"IF(Munkanaplo!AB58>0,Munkanaplo!AB58,\"\")","v":""},{"$f":"IF(Munkanaplo!AC58>0,Munkanaplo!AC58,\"\")","v":""},{"$f":"IF(Munkanaplo!AD58>0,Munkanaplo!AD58,\"\")","v":""},{"$f":"IF(Munkanaplo!AE58>0,Munkanaplo!AE58,\"\")","v":""},{"$f":"IF(Munkanaplo!AG58>0,Munkanaplo!AG58,\"\")","v":""}]
[{"$f":"IF(Munkanaplo!E59>0,Munkanaplo!E59,\"\")","v":""},{"$f":"IF(Munkanaplo!H59>0,Munkanaplo!H59,\"\")","v":""},{"$f":"IF(Munkanaplo!I59>0,Munkanaplo!I59,\"\")","v":""},{"$f":"IF(Munkanaplo!J59>0,Munkanaplo!J59,\"\")","v":""},{"$f":"IF(Munkanaplo!K59>0,Munkanaplo!K59,\"\")","v":""},{"$f":"IF(Munkanaplo!L59>0,Munkanaplo!L59,\"\")","v":""},{"$f":"IF(Munkanaplo!M59>0,Munkanaplo!M59,\"\")","v":""},{"$f":"IF(Munkanaplo!N59>0,Munkanaplo!N59,\"\")","v":""},{"$f":"IF(Munkanaplo!O59>0,Munkanaplo!O59,\"\")","v":""},{"$f":"IF(Munkanaplo!P59>0,Munkanaplo!P59,\"\")","v":""},{"$f":"IF(Munkanaplo!Q59>0,Munkanaplo!Q59,\"\")","v":""},{"$f":"IFERROR(IF(Munkanaplo!R59>0,Munkanaplo!R59,\"\")/5,\"\")","v":""},{"$f":"IF(Munkanaplo!AF59>0,Munkanaplo!AF59,\"\")","v":""},{"$f":"IF(Munkanaplo!V59>0,Munkanaplo!V59,\"\")","v":""},{"$f":"IF(Munkanaplo!W59>0,Munkanaplo!W59,\"\")","v":""},{"$f":"IF(Munkanaplo!X59>0,Munkanaplo!X59,\"\")","v":""},{"$f":"IF(Munkanaplo!Y59>0,Munkanaplo!Y59,\"\")","v":""},{"$f":"IF(Munkanaplo!Z59>0,Munkanaplo!Z59,\"\")","v":""},{"$f":"IF(Munkanaplo!AA59>0,Munkanaplo!AA59,\"\")","v":""},{"$f":"IF(Munkanaplo!AB59>0,Munkanaplo!AB59,\"\")","v":""},{"$f":"IF(Munkanaplo!AC59>0,Munkanaplo!AC59,\"\")","v":""},{"$f":"IF(Munkanaplo!AD59>0,Munkanaplo!AD59,\"\")","v":""},{"$f":"IF(Munkanaplo!AE59>0,Munkanaplo!AE59,\"\")","v":""},{"$f":"IF(Munkanaplo!AG59>0,Munkanaplo!AG59,\"\")","v":""}]
[{"$f":"IF(Munkanaplo!E60>0,Munkanaplo!E60,\"\")","v":""},{"$f":"IF(Munkanaplo!H60>0,Munkanaplo!H60,\"\")","v":""},{"$f":"IF(Munkanaplo!I60>0,Munkanaplo!I60,\"\")","v":""},{"$f":"IF(Munkanaplo!J60>0,Munkanaplo!J60,\"\")","v":""},{"$f":"IF(Munkanaplo!K60>0,Munkanaplo!K60,\"\")","v":""},{"$f":"IF(Munkanaplo!L60>0,Munkanaplo!L60,\"\")","v":""},{"$f":"IF(Munkanaplo!M60>0,Munkanaplo!M60,\"\")","v":""},{"$f":"IF(Munkanaplo!N60>0,Munkanaplo!N60,\"\")","v":""},{"$f":"IF(Munkanaplo!O60>0,Munkanaplo!O60,\"\")","v":""},{"$f":"IF(Munkanaplo!P60>0,Munkanaplo!P60,\"\")","v":""},{"$f":"IF(Munkanaplo!Q60>0,Munkanaplo!Q60,\"\")","v":""},{"$f":"IFERROR(IF(Munkanaplo!R60>0,Munkanaplo!R60,\"\")/5,\"\")","v":""},{"$f":"IF(Munkanaplo!AF60>0,Munkanaplo!AF60,\"\")","v":""},{"$f":"IF(Munkanaplo!V60>0,Munkanaplo!V60,\"\")","v":""},{"$f":"IF(Munkanaplo!W60>0,Munkanaplo!W60,\"\")","v":""},{"$f":"IF(Munkanaplo!X60>0,Munkanaplo!X60,\"\")","v":""},{"$f":"IF(Munkanaplo!Y60>0,Munkanaplo!Y60,\"\")","v":""},{"$f":"IF(Munkanaplo!Z60>0,Munkanaplo!Z60,\"\")","v":""},{"$f":"IF(Munkanaplo!AA60>0,Munkanaplo!AA60,\"\")","v":""},{"$f":"IF(Munkanaplo!AB60>0,Munkanaplo!AB60,\"\")","v":""},{"$f":"IF(Munkanaplo!AC60>0,Munkanaplo!AC60,\"\")","v":""},{"$f":"IF(Munkanaplo!AD60>0,Munkanaplo!AD60,\"\")","v":""},{"$f":"IF(Munkanaplo!AE60>0,Munkanaplo!AE60,\"\")","v":""},{"$f":"IF(Munkanaplo!AG60>0,Munkanaplo!AG60,\"\")","v":""}]
[{"$f":"IF(Munkanaplo!E61>0,Munkanaplo!E61,\"\")","v":""},{"$f":"IF(Munkanaplo!H61>0,Munkanaplo!H61,\"\")","v":""},{"$f":"IF(Munkanaplo!I61>0,Munkanaplo!I61,\"\")","v":""},{"$f":"IF(Munkanaplo!J61>0,Munkanaplo!J61,\"\")","v":""},{"$f":"IF(Munkanaplo!K61>0,Munkanaplo!K61,\"\")","v":""},{"$f":"IF(Munkanaplo!L61>0,Munkanaplo!L61,\"\")","v":""},{"$f":"IF(Munkanaplo!M61>0,Munkanaplo!M61,\"\")","v":""},{"$f":"IF(Munkanaplo!N61>0,Munkanaplo!N61,\"\")","v":""},{"$f":"IF(Munkanaplo!O61>0,Munkanaplo!O61,\"\")","v":""},{"$f":"IF(Munkanaplo!P61>0,Munkanaplo!P61,\"\")","v":""},{"$f":"IF(Munkanaplo!Q61>0,Munkanaplo!Q61,\"\")","v":""},{"$f":"IFERROR(IF(Munkanaplo!R61>0,Munkanaplo!R61,\"\")/5,\"\")","v":""},{"$f":"IF(Munkanaplo!AF61>0,Munkanaplo!AF61,\"\")","v":""},{"$f":"IF(Munkanaplo!V61>0,Munkanaplo!V61,\"\")","v":""},{"$f":"IF(Munkanaplo!W61>0,Munkanaplo!W61,\"\")","v":""},{"$f":"IF(Munkanaplo!X61>0,Munkanaplo!X61,\"\")","v":""},{"$f":"IF(Munkanaplo!Y61>0,Munkanaplo!Y61,\"\")","v":""},{"$f":"IF(Munkanaplo!Z61>0,Munkanaplo!Z61,\"\")","v":""},{"$f":"IF(Munkanaplo!AA61>0,Munkanaplo!AA61,\"\")","v":""},{"$f":"IF(Munkanaplo!AB61>0,Munkanaplo!AB61,\"\")","v":""},{"$f":"IF(Munkanaplo!AC61>0,Munkanaplo!AC61,\"\")","v":""},{"$f":"IF(Munkanaplo!AD61>0,Munkanaplo!AD61,\"\")","v":""},{"$f":"IF(Munkanaplo!AE61>0,Munkanaplo!AE61,\"\")","v":""},{"$f":"IF(Munkanaplo!AG61>0,Munkanaplo!AG61,\"\")","v":""}]
[{"$f":"IF(Munkanaplo!E62>0,Munkanaplo!E62,\"\")","v":""},{"$f":"IF(Munkanaplo!H62>0,Munkanaplo!H62,\"\")","v":""},{"$f":"IF(Munkanaplo!I62>0,Munkanaplo!I62,\"\")","v":""},{"$f":"IF(Munkanaplo!J62>0,Munkanaplo!J62,\"\")","v":""},{"$f":"IF(Munkanaplo!K62>0,Munkanaplo!K62,\"\")","v":""},{"$f":"IF(Munkanaplo!L62>0,Munkanaplo!L62,\"\")","v":""},{"$f":"IF(Munkanaplo!M62>0,Munkanaplo!M62,\"\")","v":""},{"$f":"IF(Munkanaplo!N62>0,Munkanaplo!N62,\"\")","v":""},{"$f":"IF(Munkanaplo!O62>0,Munkanaplo!O62,\"\")","v":""},{"$f":"IF(Munkanaplo!P62>0,Munkanaplo!P62,\"\")","v":""},{"$f":"IF(Munkanaplo!Q62>0,Munkanaplo!Q62,\"\")","v":""},{"$f":"IFERROR(IF(Munkanaplo!R62>0,Munkanaplo!R62,\"\")/5,\"\")","v":""},{"$f":"IF(Munkanaplo!AF62>0,Munkanaplo!AF62,\"\")","v":""},{"$f":"IF(Munkanaplo!V62>0,Munkanaplo!V62,\"\")","v":""},{"$f":"IF(Munkanaplo!W62>0,Munkanaplo!W62,\"\")","v":""},{"$f":"IF(Munkanaplo!X62>0,Munkanaplo!X62,\"\")","v":""},{"$f":"IF(Munkanaplo!Y62>0,Munkanaplo!Y62,\"\")","v":""},{"$f":"IF(Munkanaplo!Z62>0,Munkanaplo!Z62,\"\")","v":""},{"$f":"IF(Munkanaplo!AA62>0,Munkanaplo!AA62,\"\")","v":""},{"$f":"IF(Munkanaplo!AB62>0,Munkanaplo!AB62,\"\")","v":""},{"$f":"IF(Munkanaplo!AC62>0,Munkanaplo!AC62,\"\")","v":""},{"$f":"IF(Munkanaplo!AD62>0,Munkanaplo!AD62,\"\")","v":""},{"$f":"IF(Munkanaplo!AE62>0,Munkanaplo!AE62,\"\")","v":""},{"$f":"IF(Munkanaplo!AG62>0,Munkanaplo!AG62,\"\")","v":""}]
[{"$f":"IF(Munkanaplo!E63>0,Munkanaplo!E63,\"\")","v":""},{"$f":"IF(Munkanaplo!H63>0,Munkanaplo!H63,\"\")","v":""},{"$f":"IF(Munkanaplo!I63>0,Munkanaplo!I63,\"\")","v":""},{"$f":"IF(Munkanaplo!J63>0,Munkanaplo!J63,\"\")","v":""},{"$f":"IF(Munkanaplo!K63>0,Munkanaplo!K63,\"\")","v":""},{"$f":"IF(Munkanaplo!L63>0,Munkanaplo!L63,\"\")","v":""},{"$f":"IF(Munkanaplo!M63>0,Munkanaplo!M63,\"\")","v":""},{"$f":"IF(Munkanaplo!N63>0,Munkanaplo!N63,\"\")","v":""},{"$f":"IF(Munkanaplo!O63>0,Munkanaplo!O63,\"\")","v":""},{"$f":"IF(Munkanaplo!P63>0,Munkanaplo!P63,\"\")","v":""},{"$f":"IF(Munkanaplo!Q63>0,Munkanaplo!Q63,\"\")","v":""},{"$f":"IFERROR(IF(Munkanaplo!R63>0,Munkanaplo!R63,\"\")/5,\"\")","v":""},{"$f":"IF(Munkanaplo!AF63>0,Munkanaplo!AF63,\"\")","v":""},{"$f":"IF(Munkanaplo!V63>0,Munkanaplo!V63,\"\")","v":""},{"$f":"IF(Munkanaplo!W63>0,Munkanaplo!W63,\"\")","v":""},{"$f":"IF(Munkanaplo!X63>0,Munkanaplo!X63,\"\")","v":""},{"$f":"IF(Munkanaplo!Y63>0,Munkanaplo!Y63,\"\")","v":""},{"$f":"IF(Munkanaplo!Z63>0,Munkanaplo!Z63,\"\")","v":""},{"$f":"IF(Munkanaplo!AA63>0,Munkanaplo!AA63,\"\")","v":""},{"$f":"IF(Munkanaplo!AB63>0,Munkanaplo!AB63,\"\")","v":""},{"$f":"IF(Munkanaplo!AC63>0,Munkanaplo!AC63,\"\")","v":""},{"$f":"IF(Munkanaplo!AD63>0,Munkanaplo!AD63,\"\")","v":""},{"$f":"IF(Munkanaplo!AE63>0,Munkanaplo!AE63,\"\")","v":""},{"$f":"IF(Munkanaplo!AG63>0,Munkanaplo!AG63,\"\")","v":""}]
[{"$f":"IF(Munkanaplo!E64>0,Munkanaplo!E64,\"\")","v":""},{"$f":"IF(Munkanaplo!H64>0,Munkanaplo!H64,\"\")","v":""},{"$f":"IF(Munkanaplo!I64>0,Munkanaplo!I64,\"\")","v":""},{"$f":"IF(Munkanaplo!J64>0,Munkanaplo!J64,\"\")","v":""},{"$f":"IF(Munkanaplo!K64>0,Munkanaplo!K64,\"\")","v":""},{"$f":"IF(Munkanaplo!L64>0,Munkanaplo!L64,\"\")","v":""},{"$f":"IF(Munkanaplo!M64>0,Munkanaplo!M64,\"\")","v":""},{"$f":"IF(Munkanaplo!N64>0,Munkanaplo!N64,\"\")","v":""},{"$f":"IF(Munkanaplo!O64>0,Munkanaplo!O64,\"\")","v":""},{"$f":"IF(Munkanaplo!P64>0,Munkanaplo!P64,\"\")","v":""},{"$f":"IF(Munkanaplo!Q64>0,Munkanaplo!Q64,\"\")","v":""},{"$f":"IFERROR(IF(Munkanaplo!R64>0,Munkanaplo!R64,\"\")/5,\"\")","v":""},{"$f":"IF(Munkanaplo!AF64>0,Munkanaplo!AF64,\"\")","v":""},{"$f":"IF(Munkanaplo!V64>0,Munkanaplo!V64,\"\")","v":""},{"$f":"IF(Munkanaplo!W64>0,Munkanaplo!W64,\"\")","v":""},{"$f":"IF(Munkanaplo!X64>0,Munkanaplo!X64,\"\")","v":""},{"$f":"IF(Munkanaplo!Y64>0,Munkanaplo!Y64,\"\")","v":""},{"$f":"IF(Munkanaplo!Z64>0,Munkanaplo!Z64,\"\")","v":""},{"$f":"IF(Munkanaplo!AA64>0,Munkanaplo!AA64,\"\")","v":""},{"$f":"IF(Munkanaplo!AB64>0,Munkanaplo!AB64,\"\")","v":""},{"$f":"IF(Munkanaplo!AC64>0,Munkanaplo!AC64,\"\")","v":""},{"$f":"IF(Munkanaplo!AD64>0,Munkanaplo!AD64,\"\")","v":""},{"$f":"IF(Munkanaplo!AE64>0,Munkanaplo!AE64,\"\")","v":""},{"$f":"IF(Munkanaplo!AG64>0,Munkanaplo!AG64,\"\")","v":""}]
[{"$f":"IF(Munkanaplo!E65>0,Munkanaplo!E65,\"\")","v":""},{"$f":"IF(Munkanaplo!H65>0,Munkanaplo!H65,\"\")","v":""},{"$f":"IF(Munkanaplo!I65>0,Munkanaplo!I65,\"\")","v":""},{"$f":"IF(Munkanaplo!J65>0,Munkanaplo!J65,\"\")","v":""},{"$f":"IF(Munkanaplo!K65>0,Munkanaplo!K65,\"\")","v":""},{"$f":"IF(Munkanaplo!L65>0,Munkanaplo!L65,\"\")","v":""},{"$f":"IF(Munkanaplo!M65>0,Munkanaplo!M65,\"\")","v":""},{"$f":"IF(Munkanaplo!N65>0,Munkanaplo!N65,\"\")","v":""},{"$f":"IF(Munkanaplo!O65>0,Munkanaplo!O65,\"\")","v":""},{"$f":"IF(Munkanaplo!P65>0,Munkanaplo!P65,\"\")","v":""},{"$f":"IF(Munkanaplo!Q65>0,Munkanaplo!Q65,\"\")","v":""},{"$f":"IFERROR(IF(Munkanaplo!R65>0,Munkanaplo!R65,\"\")/5,\"\")","v":""},{"$f":"IF(Munkanaplo!AF65>0,Munkanaplo!AF65,\"\")","v":""},{"$f":"IF(Munkanaplo!V65>0,Munkanaplo!V65,\"\")","v":""},{"$f":"IF(Munkanaplo!W65>0,Munkanaplo!W65,\"\")","v":""},{"$f":"IF(Munkanaplo!X65>0,Munkanaplo!X65,\"\")","v":""},{"$f":"IF(Munkanaplo!Y65>0,Munkanaplo!Y65,\"\")","v":""},{"$f":"IF(Munkanaplo!Z65>0,Munkanaplo!Z65,\"\")","v":""},{"$f":"IF(Munkanaplo!AA65>0,Munkanaplo!AA65,\"\")","v":""},{"$f":"IF(Munkanaplo!AB65>0,Munkanaplo!AB65,\"\")","v":""},{"$f":"IF(Munkanaplo!AC65>0,Munkanaplo!AC65,\"\")","v":""},{"$f":"IF(Munkanaplo!AD65>0,Munkanaplo!AD65,\"\")","v":""},{"$f":"IF(Munkanaplo!AE65>0,Munkanaplo!AE65,\"\")","v":""},{"$f":"IF(Munkanaplo!AG65>0,Munkanaplo!AG65,\"\")","v":""}]
[{"$f":"IF(Munkanaplo!E66>0,Munkanaplo!E66,\"\")","v":""},{"$f":"IF(Munkanaplo!H66>0,Munkanaplo!H66,\"\")","v":""},{"$f":"IF(Munkanaplo!I66>0,Munkanaplo!I66,\"\")","v":""},{"$f":"IF(Munkanaplo!J66>0,Munkanaplo!J66,\"\")","v":""},{"$f":"IF(Munkanaplo!K66>0,Munkanaplo!K66,\"\")","v":""},{"$f":"IF(Munkanaplo!L66>0,Munkanaplo!L66,\"\")","v":""},{"$f":"IF(Munkanaplo!M66>0,Munkanaplo!M66,\"\")","v":""},{"$f":"IF(Munkanaplo!N66>0,Munkanaplo!N66,\"\")","v":""},{"$f":"IF(Munkanaplo!O66>0,Munkanaplo!O66,\"\")","v":""},{"$f":"IF(Munkanaplo!P66>0,Munkanaplo!P66,\"\")","v":""},{"$f":"IF(Munkanaplo!Q66>0,Munkanaplo!Q66,\"\")","v":""},{"$f":"IFERROR(IF(Munkanaplo!R66>0,Munkanaplo!R66,\"\")/5,\"\")","v":""},{"$f":"IF(Munkanaplo!AF66>0,Munkanaplo!AF66,\"\")","v":""},{"$f":"IF(Munkanaplo!V66>0,Munkanaplo!V66,\"\")","v":""},{"$f":"IF(Munkanaplo!W66>0,Munkanaplo!W66,\"\")","v":""},{"$f":"IF(Munkanaplo!X66>0,Munkanaplo!X66,\"\")","v":""},{"$f":"IF(Munkanaplo!Y66>0,Munkanaplo!Y66,\"\")","v":""},{"$f":"IF(Munkanaplo!Z66>0,Munkanaplo!Z66,\"\")","v":""},{"$f":"IF(Munkanaplo!AA66>0,Munkanaplo!AA66,\"\")","v":""},{"$f":"IF(Munkanaplo!AB66>0,Munkanaplo!AB66,\"\")","v":""},{"$f":"IF(Munkanaplo!AC66>0,Munkanaplo!AC66,\"\")","v":""},{"$f":"IF(Munkanaplo!AD66>0,Munkanaplo!AD66,\"\")","v":""},{"$f":"IF(Munkanaplo!AE66>0,Munkanaplo!AE66,\"\")","v":""},{"$f":"IF(Munkanaplo!AG66>0,Munkanaplo!AG66,\"\")","v":""}]
[{"$f":"IF(Munkanaplo!E67>0,Munkanaplo!E67,\"\")","v":""},{"$f":"IF(Munkanaplo!H67>0,Munkanaplo!H67,\"\")","v":""},{"$f":"IF(Munkanaplo!I67>0,Munkanaplo!I67,\"\")","v":""},{"$f":"IF(Munkanaplo!J67>0,Munkanaplo!J67,\"\")","v":""},{"$f":"IF(Munkanaplo!K67>0,Munkanaplo!K67,\"\")","v":""},{"$f":"IF(Munkanaplo!L67>0,Munkanaplo!L67,\"\")","v":""},{"$f":"IF(Munkanaplo!M67>0,Munkanaplo!M67,\"\")","v":""},{"$f":"IF(Munkanaplo!N67>0,Munkanaplo!N67,\"\")","v":""},{"$f":"IF(Munkanaplo!O67>0,Munkanaplo!O67,\"\")","v":""},{"$f":"IF(Munkanaplo!P67>0,Munkanaplo!P67,\"\")","v":""},{"$f":"IF(Munkanaplo!Q67>0,Munkanaplo!Q67,\"\")","v":""},{"$f":"IFERROR(IF(Munkanaplo!R67>0,Munkanaplo!R67,\"\")/5,\"\")","v":""},{"$f":"IF(Munkanaplo!AF67>0,Munkanaplo!AF67,\"\")","v":""},{"$f":"IF(Munkanaplo!V67>0,Munkanaplo!V67,\"\")","v":""},{"$f":"IF(Munkanaplo!W67>0,Munkanaplo!W67,\"\")","v":""},{"$f":"IF(Munkanaplo!X67>0,Munkanaplo!X67,\"\")","v":""},{"$f":"IF(Munkanaplo!Y67>0,Munkanaplo!Y67,\"\")","v":""},{"$f":"IF(Munkanaplo!Z67>0,Munkanaplo!Z67,\"\")","v":""},{"$f":"IF(Munkanaplo!AA67>0,Munkanaplo!AA67,\"\")","v":""},{"$f":"IF(Munkanaplo!AB67>0,Munkanaplo!AB67,\"\")","v":""},{"$f":"IF(Munkanaplo!AC67>0,Munkanaplo!AC67,\"\")","v":""},{"$f":"IF(Munkanaplo!AD67>0,Munkanaplo!AD67,\"\")","v":""},{"$f":"IF(Munkanaplo!AE67>0,Munkanaplo!AE67,\"\")","v":""},{"$f":"IF(Munkanaplo!AG67>0,Munkanaplo!AG67,\"\")","v":""}]
[{"$f":"IF(Munkanaplo!E68>0,Munkanaplo!E68,\"\")","v":""},{"$f":"IF(Munkanaplo!H68>0,Munkanaplo!H68,\"\")","v":""},{"$f":"IF(Munkanaplo!I68>0,Munkanaplo!I68,\"\")","v":""},{"$f":"IF(Munkanaplo!J68>0,Munkanaplo!J68,\"\")","v":""},{"$f":"IF(Munkanaplo!K68>0,Munkanaplo!K68,\"\")","v":""},{"$f":"IF(Munkanaplo!L68>0,Munkanaplo!L68,\"\")","v":""},{"$f":"IF(Munkanaplo!M68>0,Munkanaplo!M68,\"\")","v":""},{"$f":"IF(Munkanaplo!N68>0,Munkanaplo!N68,\"\")","v":""},{"$f":"IF(Munkanaplo!O68>0,Munkanaplo!O68,\"\")","v":""},{"$f":"IF(Munkanaplo!P68>0,Munkanaplo!P68,\"\")","v":""},{"$f":"IF(Munkanaplo!Q68>0,Munkanaplo!Q68,\"\")","v":""},{"$f":"IFERROR(IF(Munkanaplo!R68>0,Munkanaplo!R68,\"\")/5,\"\")","v":""},{"$f":"IF(Munkanaplo!AF68>0,Munkanaplo!AF68,\"\")","v":""},{"$f":"IF(Munkanaplo!V68>0,Munkanaplo!V68,\"\")","v":""},{"$f":"IF(Munkanaplo!W68>0,Munkanaplo!W68,\"\")","v":""},{"$f":"IF(Munkanaplo!X68>0,Munkanaplo!X68,\"\")","v":""},{"$f":"IF(Munkanaplo!Y68>0,Munkanaplo!Y68,\"\")","v":""},{"$f":"IF(Munkanaplo!Z68>0,Munkanaplo!Z68,\"\")","v":""},{"$f":"IF(Munkanaplo!AA68>0,Munkanaplo!AA68,\"\")","v":""},{"$f":"IF(Munkanaplo!AB68>0,Munkanaplo!AB68,\"\")","v":""},{"$f":"IF(Munkanaplo!AC68>0,Munkanaplo!AC68,\"\")","v":""},{"$f":"IF(Munkanaplo!AD68>0,Munkanaplo!AD68,\"\")","v":""},{"$f":"IF(Munkanaplo!AE68>0,Munkanaplo!AE68,\"\")","v":""},{"$f":"IF(Munkanaplo!AG68>0,Munkanaplo!AG68,\"\")","v":""}]
[{"$f":"IF(Munkanaplo!E69>0,Munkanaplo!E69,\"\")","v":""},{"$f":"IF(Munkanaplo!H69>0,Munkanaplo!H69,\"\")","v":""},{"$f":"IF(Munkanaplo!I69>0,Munkanaplo!I69,\"\")","v":""},{"$f":"IF(Munkanaplo!J69>0,Munkanaplo!J69,\"\")","v":""},{"$f":"IF(Munkanaplo!K69>0,Munkanaplo!K69,\"\")","v":""},{"$f":"IF(Munkanaplo!L69>0,Munkanaplo!L69,\"\")","v":""},{"$f":"IF(Munkanaplo!M69>0,Munkanaplo!M69,\"\")","v":""},{"$f":"IF(Munkanaplo!N69>0,Munkanaplo!N69,\"\")","v":""},{"$f":"IF(Munkanaplo!O69>0,Munkanaplo!O69,\"\")","v":""},{"$f":"IF(Munkanaplo!P69>0,Munkanaplo!P69,\"\")","v":""},{"$f":"IF(Munkanaplo!Q69>0,Munkanaplo!Q69,\"\")","v":""},{"$f":"IFERROR(IF(Munkanaplo!R69>0,Munkanaplo!R69,\"\")/5,\"\")","v":""},{"$f":"IF(Munkanaplo!AF69>0,Munkanaplo!AF69,\"\")","v":""},{"$f":"IF(Munkanaplo!V69>0,Munkanaplo!V69,\"\")","v":""},{"$f":"IF(Munkanaplo!W69>0,Munkanaplo!W69,\"\")","v":""},{"$f":"IF(Munkanaplo!X69>0,Munkanaplo!X69,\"\")","v":""},{"$f":"IF(Munkanaplo!Y69>0,Munkanaplo!Y69,\"\")","v":""},{"$f":"IF(Munkanaplo!Z69>0,Munkanaplo!Z69,\"\")","v":""},{"$f":"IF(Munkanaplo!AA69>0,Munkanaplo!AA69,\"\")","v":""},{"$f":"IF(Munkanaplo!AB69>0,Munkanaplo!AB69,\"\")","v":""},{"$f":"IF(Munkanaplo!AC69>0,Munkanaplo!AC69,\"\")","v":""},{"$f":"IF(Munkanaplo!AD69>0,Munkanaplo!AD69,\"\")","v":""},{"$f":"IF(Munkanaplo!AE69>0,Munkanaplo!AE69,\"\")","v":""},{"$f":"IF(Munkanaplo!AG69>0,Munkanaplo!AG69,\"\")","v":""}]
[{"$f":"IF(Munkanaplo!E70>0,Munkanaplo!E70,\"\")","v":""},{"$f":"IF(Munkanaplo!H70>0,Munkanaplo!H70,\"\")","v":""},{"$f":"IF(Munkanaplo!I70>0,Munkanaplo!I70,\"\")","v":""},{"$f":"IF(Munkanaplo!J70>0,Munkanaplo!J70,\"\")","v":""},{"$f":"IF(Munkanaplo!K70>0,Munkanaplo!K70,\"\")","v":""},{"$f":"IF(Munkanaplo!L70>0,Munkanaplo!L70,\"\")","v":""},{"$f":"IF(Munkanaplo!M70>0,Munkanaplo!M70,\"\")","v":""},{"$f":"IF(Munkanaplo!N70>0,Munkanaplo!N70,\"\")","v":""},{"$f":"IF(Munkanaplo!O70>0,Munkanaplo!O70,\"\")","v":""},{"$f":"IF(Munkanaplo!P70>0,Munkanaplo!P70,\"\")","v":""},{"$f":"IF(Munkanaplo!Q70>0,Munkanaplo!Q70,\"\")","v":""},{"$f":"IFERROR(IF(Munkanaplo!R70>0,Munkanaplo!R70,\"\")/5,\"\")","v":""},{"$f":"IF(Munkanaplo!AF70>0,Munkanaplo!AF70,\"\")","v":""},{"$f":"IF(Munkanaplo!V70>0,Munkanaplo!V70,\"\")","v":""},{"$f":"IF(Munkanaplo!W70>0,Munkanaplo!W70,\"\")","v":""},{"$f":"IF(Munkanaplo!X70>0,Munkanaplo!X70,\"\")","v":""},{"$f":"IF(Munkanaplo!Y70>0,Munkanaplo!Y70,\"\")","v":""},{"$f":"IF(Munkanaplo!Z70>0,Munkanaplo!Z70,\"\")","v":""},{"$f":"IF(Munkanaplo!AA70>0,Munkanaplo!AA70,\"\")","v":""},{"$f":"IF(Munkanaplo!AB70>0,Munkanaplo!AB70,\"\")","v":""},{"$f":"IF(Munkanaplo!AC70>0,Munkanaplo!AC70,\"\")","v":""},{"$f":"IF(Munkanaplo!AD70>0,Munkanaplo!AD70,\"\")","v":""},{"$f":"IF(Munkanaplo!AE70>0,Munkanaplo!AE70,\"\")","v":""},{"$f":"IF(Munkanaplo!AG70>0,Munkanaplo!AG70,\"\")","v":""}]
[{"$f":"IF(Munkanaplo!E71>0,Munkanaplo!E71,\"\")","v":""},{"$f":"IF(Munkanaplo!H71>0,Munkanaplo!H71,\"\")","v":""},{"$f":"IF(Munkanaplo!I71>0,Munkanaplo!I71,\"\")","v":""},{"$f":"IF(Munkanaplo!J71>0,Munkanaplo!J71,\"\")","v":""},{"$f":"IF(Munkanaplo!K71>0,Munkanaplo!K71,\"\")","v":""},{"$f":"IF(Munkanaplo!L71>0,Munkanaplo!L71,\"\")","v":""},{"$f":"IF(Munkanaplo!M71>0,Munkanaplo!M71,\"\")","v":""},{"$f":"IF(Munkanaplo!N71>0,Munkanaplo!N71,\"\")","v":""},{"$f":"IF(Munkanaplo!O71>0,Munkanaplo!O71,\"\")","v":""},{"$f":"IF(Munkanaplo!P71>0,Munkanaplo!P71,\"\")","v":""},{"$f":"IF(Munkanaplo!Q71>0,Munkanaplo!Q71,\"\")","v":""},{"$f":"IFERROR(IF(Munkanaplo!R71>0,Munkanaplo!R71,\"\")/5,\"\")","v":""},{"$f":"IF(Munkanaplo!AF71>0,Munkanaplo!AF71,\"\")","v":""},{"$f":"IF(Munkanaplo!V71>0,Munkanaplo!V71,\"\")","v":""},{"$f":"IF(Munkanaplo!W71>0,Munkanaplo!W71,\"\")","v":""},{"$f":"IF(Munkanaplo!X71>0,Munkanaplo!X71,\"\")","v":""},{"$f":"IF(Munkanaplo!Y71>0,Munkanaplo!Y71,\"\")","v":""},{"$f":"IF(Munkanaplo!Z71>0,Munkanaplo!Z71,\"\")","v":""},{"$f":"IF(Munkanaplo!AA71>0,Munkanaplo!AA71,\"\")","v":""},{"$f":"IF(Munkanaplo!AB71>0,Munkanaplo!AB71,\"\")","v":""},{"$f":"IF(Munkanaplo!AC71>0,Munkanaplo!AC71,\"\")","v":""},{"$f":"IF(Munkanaplo!AD71>0,Munkanaplo!AD71,\"\")","v":""},{"$f":"IF(Munkanaplo!AE71>0,Munkanaplo!AE71,\"\")","v":""},{"$f":"IF(Munkanaplo!AG71>0,Munkanaplo!AG71,\"\")","v":""}]
[{"$f":"IF(Munkanaplo!E72>0,Munkanaplo!E72,\"\")","v":""},{"$f":"IF(Munkanaplo!H72>0,Munkanaplo!H72,\"\")","v":""},{"$f":"IF(Munkanaplo!I72>0,Munkanaplo!I72,\"\")","v":""},{"$f":"IF(Munkanaplo!J72>0,Munkanaplo!J72,\"\")","v":""},{"$f":"IF(Munkanaplo!K72>0,Munkanaplo!K72,\"\")","v":""},{"$f":"IF(Munkanaplo!L72>0,Munkanaplo!L72,\"\")","v":""},{"$f":"IF(Munkanaplo!M72>0,Munkanaplo!M72,\"\")","v":""},{"$f":"IF(Munkanaplo!N72>0,Munkanaplo!N72,\"\")","v":""},{"$f":"IF(Munkanaplo!O72>0,Munkanaplo!O72,\"\")","v":""},{"$f":"IF(Munkanaplo!P72>0,Munkanaplo!P72,\"\")","v":""},{"$f":"IF(Munkanaplo!Q72>0,Munkanaplo!Q72,\"\")","v":""},{"$f":"IFERROR(IF(Munkanaplo!R72>0,Munkanaplo!R72,\"\")/5,\"\")","v":""},{"$f":"IF(Munkanaplo!AF72>0,Munkanaplo!AF72,\"\")","v":""},{"$f":"IF(Munkanaplo!V72>0,Munkanaplo!V72,\"\")","v":""},{"$f":"IF(Munkanaplo!W72>0,Munkanaplo!W72,\"\")","v":""},{"$f":"IF(Munkanaplo!X72>0,Munkanaplo!X72,\"\")","v":""},{"$f":"IF(Munkanaplo!Y72>0,Munkanaplo!Y72,\"\")","v":""},{"$f":"IF(Munkanaplo!Z72>0,Munkanaplo!Z72,\"\")","v":""},{"$f":"IF(Munkanaplo!AA72>0,Munkanaplo!AA72,\"\")","v":""},{"$f":"IF(Munkanaplo!AB72>0,Munkanaplo!AB72,\"\")","v":""},{"$f":"IF(Munkanaplo!AC72>0,Munkanaplo!AC72,\"\")","v":""},{"$f":"IF(Munkanaplo!AD72>0,Munkanaplo!AD72,\"\")","v":""},{"$f":"IF(Munkanaplo!AE72>0,Munkanaplo!AE72,\"\")","v":""},{"$f":"IF(Munkanaplo!AG72>0,Munkanaplo!AG72,\"\")","v":""}]
[{"$f":"IF(Munkanaplo!E73>0,Munkanaplo!E73,\"\")","v":""},{"$f":"IF(Munkanaplo!H73>0,Munkanaplo!H73,\"\")","v":""},{"$f":"IF(Munkanaplo!I73>0,Munkanaplo!I73,\"\")","v":""},{"$f":"IF(Munkanaplo!J73>0,Munkanaplo!J73,\"\")","v":""},{"$f":"IF(Munkanaplo!K73>0,Munkanaplo!K73,\"\")","v":""},{"$f":"IF(Munkanaplo!L73>0,Munkanaplo!L73,\"\")","v":""},{"$f":"IF(Munkanaplo!M73>0,Munkanaplo!M73,\"\")","v":""},{"$f":"IF(Munkanaplo!N73>0,Munkanaplo!N73,\"\")","v":""},{"$f":"IF(Munkanaplo!O73>0,Munkanaplo!O73,\"\")","v":""},{"$f":"IF(Munkanaplo!P73>0,Munkanaplo!P73,\"\")","v":""},{"$f":"IF(Munkanaplo!Q73>0,Munkanaplo!Q73,\"\")","v":""},{"$f":"IFERROR(IF(Munkanaplo!R73>0,Munkanaplo!R73,\"\")/5,\"\")","v":""},{"$f":"IF(Munkanaplo!AF73>0,Munkanaplo!AF73,\"\")","v":""},{"$f":"IF(Munkanaplo!V73>0,Munkanaplo!V73,\"\")","v":""},{"$f":"IF(Munkanaplo!W73>0,Munkanaplo!W73,\"\")","v":""},{"$f":"IF(Munkanaplo!X73>0,Munkanaplo!X73,\"\")","v":""},{"$f":"IF(Munkanaplo!Y73>0,Munkanaplo!Y73,\"\")","v":""},{"$f":"IF(Munkanaplo!Z73>0,Munkanaplo!Z73,\"\")","v":""},{"$f":"IF(Munkanaplo!AA73>0,Munkanaplo!AA73,\"\")","v":""},{"$f":"IF(Munkanaplo!AB73>0,Munkanaplo!AB73,\"\")","v":""},{"$f":"IF(Munkanaplo!AC73>0,Munkanaplo!AC73,\"\")","v":""},{"$f":"IF(Munkanaplo!AD73>0,Munkanaplo!AD73,\"\")","v":""},{"$f":"IF(Munkanaplo!AE73>0,Munkanaplo!AE73,\"\")","v":""},{"$f":"IF(Munkanaplo!AG73>0,Munkanaplo!AG73,\"\")","v":""}]
[{"$f":"IF(Munkanaplo!E74>0,Munkanaplo!E74,\"\")","v":""},{"$f":"IF(Munkanaplo!H74>0,Munkanaplo!H74,\"\")","v":""},{"$f":"IF(Munkanaplo!I74>0,Munkanaplo!I74,\"\")","v":""},{"$f":"IF(Munkanaplo!J74>0,Munkanaplo!J74,\"\")","v":""},{"$f":"IF(Munkanaplo!K74>0,Munkanaplo!K74,\"\")","v":""},{"$f":"IF(Munkanaplo!L74>0,Munkanaplo!L74,\"\")","v":""},{"$f":"IF(Munkanaplo!M74>0,Munkanaplo!M74,\"\")","v":""},{"$f":"IF(Munkanaplo!N74>0,Munkanaplo!N74,\"\")","v":""},{"$f":"IF(Munkanaplo!O74>0,Munkanaplo!O74,\"\")","v":""},{"$f":"IF(Munkanaplo!P74>0,Munkanaplo!P74,\"\")","v":""},{"$f":"IF(Munkanaplo!Q74>0,Munkanaplo!Q74,\"\")","v":""},{"$f":"IFERROR(IF(Munkanaplo!R74>0,Munkanaplo!R74,\"\")/5,\"\")","v":""},{"$f":"IF(Munkanaplo!AF74>0,Munkanaplo!AF74,\"\")","v":""},{"$f":"IF(Munkanaplo!V74>0,Munkanaplo!V74,\"\")","v":""},{"$f":"IF(Munkanaplo!W74>0,Munkanaplo!W74,\"\")","v":""},{"$f":"IF(Munkanaplo!X74>0,Munkanaplo!X74,\"\")","v":""},{"$f":"IF(Munkanaplo!Y74>0,Munkanaplo!Y74,\"\")","v":""},{"$f":"IF(Munkanaplo!Z74>0,Munkanaplo!Z74,\"\")","v":""},{"$f":"IF(Munkanaplo!AA74>0,Munkanaplo!AA74,\"\")","v":""},{"$f":"IF(Munkanaplo!AB74>0,Munkanaplo!AB74,\"\")","v":""},{"$f":"IF(Munkanaplo!AC74>0,Munkanaplo!AC74,\"\")","v":""},{"$f":"IF(Munkanaplo!AD74>0,Munkanaplo!AD74,\"\")","v":""},{"$f":"IF(Munkanaplo!AE74>0,Munkanaplo!AE74,\"\")","v":""},{"$f":"IF(Munkanaplo!AG74>0,Munkanaplo!AG74,\"\")","v":""}]
[{"$f":"IF(Munkanaplo!E75>0,Munkanaplo!E75,\"\")","v":""},{"$f":"IF(Munkanaplo!H75>0,Munkanaplo!H75,\"\")","v":""},{"$f":"IF(Munkanaplo!I75>0,Munkanaplo!I75,\"\")","v":""},{"$f":"IF(Munkanaplo!J75>0,Munkanaplo!J75,\"\")","v":""},{"$f":"IF(Munkanaplo!K75>0,Munkanaplo!K75,\"\")","v":""},{"$f":"IF(Munkanaplo!L75>0,Munkanaplo!L75,\"\")","v":""},{"$f":"IF(Munkanaplo!M75>0,Munkanaplo!M75,\"\")","v":""},{"$f":"IF(Munkanaplo!N75>0,Munkanaplo!N75,\"\")","v":""},{"$f":"IF(Munkanaplo!O75>0,Munkanaplo!O75,\"\")","v":""},{"$f":"IF(Munkanaplo!P75>0,Munkanaplo!P75,\"\")","v":""},{"$f":"IF(Munkanaplo!Q75>0,Munkanaplo!Q75,\"\")","v":""},{"$f":"IFERROR(IF(Munkanaplo!R75>0,Munkanaplo!R75,\"\")/5,\"\")","v":""},{"$f":"IF(Munkanaplo!AF75>0,Munkanaplo!AF75,\"\")","v":""},{"$f":"IF(Munkanaplo!V75>0,Munkanaplo!V75,\"\")","v":""},{"$f":"IF(Munkanaplo!W75>0,Munkanaplo!W75,\"\")","v":""},{"$f":"IF(Munkanaplo!X75>0,Munkanaplo!X75,\"\")","v":""},{"$f":"IF(Munkanaplo!Y75>0,Munkanaplo!Y75,\"\")","v":""},{"$f":"IF(Munkanaplo!Z75>0,Munkanaplo!Z75,\"\")","v":""},{"$f":"IF(Munkanaplo!AA75>0,Munkanaplo!AA75,\"\")","v":""},{"$f":"IF(Munkanaplo!AB75>0,Munkanaplo!AB75,\"\")","v":""},{"$f":"IF(Munkanaplo!AC75>0,Munkanaplo!AC75,\"\")","v":""},{"$f":"IF(Munkanaplo!AD75>0,Munkanaplo!AD75,\"\")","v":""},{"$f":"IF(Munkanaplo!AE75>0,Munkanaplo!AE75,\"\")","v":""},{"$f":"IF(Munkanaplo!AG75>0,Munkanaplo!AG75,\"\")","v":""}]
[{"$f":"IF(Munkanaplo!E76>0,Munkanaplo!E76,\"\")","v":""},{"$f":"IF(Munkanaplo!H76>0,Munkanaplo!H76,\"\")","v":""},{"$f":"IF(Munkanaplo!I76>0,Munkanaplo!I76,\"\")","v":""},{"$f":"IF(Munkanaplo!J76>0,Munkanaplo!J76,\"\")","v":""},{"$f":"IF(Munkanaplo!K76>0,Munkanaplo!K76,\"\")","v":""},{"$f":"IF(Munkanaplo!L76>0,Munkanaplo!L76,\"\")","v":""},{"$f":"IF(Munkanaplo!M76>0,Munkanaplo!M76,\"\")","v":""},{"$f":"IF(Munkanaplo!N76>0,Munkanaplo!N76,\"\")","v":""},{"$f":"IF(Munkanaplo!O76>0,Munkanaplo!O76,\"\")","v":""},{"$f":"IF(Munkanaplo!P76>0,Munkanaplo!P76,\"\")","v":""},{"$f":"IF(Munkanaplo!Q76>0,Munkanaplo!Q76,\"\")","v":""},{"$f":"IFERROR(IF(Munkanaplo!R76>0,Munkanaplo!R76,\"\")/5,\"\")","v":""},{"$f":"IF(Munkanaplo!AF76>0,Munkanaplo!AF76,\"\")","v":""},{"$f":"IF(Munkanaplo!V76>0,Munkanaplo!V76,\"\")","v":""},{"$f":"IF(Munkanaplo!W76>0,Munkanaplo!W76,\"\")","v":""},{"$f":"IF(Munkanaplo!X76>0,Munkanaplo!X76,\"\")","v":""},{"$f":"IF(Munkanaplo!Y76>0,Munkanaplo!Y76,\"\")","v":""},{"$f":"IF(Munkanaplo!Z76>0,Munkanaplo!Z76,\"\")","v":""},{"$f":"IF(Munkanaplo!AA76>0,Munkanaplo!AA76,\"\")","v":""},{"$f":"IF(Munkanaplo!AB76>0,Munkanaplo!AB76,\"\")","v":""},{"$f":"IF(Munkanaplo!AC76>0,Munkanaplo!AC76,\"\")","v":""},{"$f":"IF(Munkanaplo!AD76>0,Munkanaplo!AD76,\"\")","v":""},{"$f":"IF(Munkanaplo!AE76>0,Munkanaplo!AE76,\"\")","v":""},{"$f":"IF(Munkanaplo!AG76>0,Munkanaplo!AG76,\"\")","v":""}]
[{"$f":"IF(Munkanaplo!E77>0,Munkanaplo!E77,\"\")","v":""},{"$f":"IF(Munkanaplo!H77>0,Munkanaplo!H77,\"\")","v":""},{"$f":"IF(Munkanaplo!I77>0,Munkanaplo!I77,\"\")","v":""},{"$f":"IF(Munkanaplo!J77>0,Munkanaplo!J77,\"\")","v":""},{"$f":"IF(Munkanaplo!K77>0,Munkanaplo!K77,\"\")","v":""},{"$f":"IF(Munkanaplo!L77>0,Munkanaplo!L77,\"\")","v":""},{"$f":"IF(Munkanaplo!M77>0,Munkanaplo!M77,\"\")","v":""},{"$f":"IF(Munkanaplo!N77>0,Munkanaplo!N77,\"\")","v":""},{"$f":"IF(Munkanaplo!O77>0,Munkanaplo!O77,\"\")","v":""},{"$f":"IF(Munkanaplo!P77>0,Munkanaplo!P77,\"\")","v":""},{"$f":"IF(Munkanaplo!Q77>0,Munkanaplo!Q77,\"\")","v":""},{"$f":"IFERROR(IF(Munkanaplo!R77>0,Munkanaplo!R77,\"\")/5,\"\")","v":""},{"$f":"IF(Munkanaplo!AF77>0,Munkanaplo!AF77,\"\")","v":""},{"$f":"IF(Munkanaplo!V77>0,Munkanaplo!V77,\"\")","v":""},{"$f":"IF(Munkanaplo!W77>0,Munkanaplo!W77,\"\")","v":""},{"$f":"IF(Munkanaplo!X77>0,Munkanaplo!X77,\"\")","v":""},{"$f":"IF(Munkanaplo!Y77>0,Munkanaplo!Y77,\"\")","v":""},{"$f":"IF(Munkanaplo!Z77>0,Munkanaplo!Z77,\"\")","v":""},{"$f":"IF(Munkanaplo!AA77>0,Munkanaplo!AA77,\"\")","v":""},{"$f":"IF(Munkanaplo!AB77>0,Munkanaplo!AB77,\"\")","v":""},{"$f":"IF(Munkanaplo!AC77>0,Munkanaplo!AC77,\"\")","v":""},{"$f":"IF(Munkanaplo!AD77>0,Munkanaplo!AD77,\"\")","v":""},{"$f":"IF(Munkanaplo!AE77>0,Munkanaplo!AE77,\"\")","v":""},{"$f":"IF(Munkanaplo!AG77>0,Munkanaplo!AG77,\"\")","v":""}]
[{"$f":"IF(Munkanaplo!E78>0,Munkanaplo!E78,\"\")","v":""},{"$f":"IF(Munkanaplo!H78>0,Munkanaplo!H78,\"\")","v":""},{"$f":"IF(Munkanaplo!I78>0,Munkanaplo!I78,\"\")","v":""},{"$f":"IF(Munkanaplo!J78>0,Munkanaplo!J78,\"\")","v":""},{"$f":"IF(Munkanaplo!K78>0,Munkanaplo!K78,\"\")","v":""},{"$f":"IF(Munkanaplo!L78>0,Munkanaplo!L78,\"\")","v":""},{"$f":"IF(Munkanaplo!M78>0,Munkanaplo!M78,\"\")","v":""},{"$f":"IF(Munkanaplo!N78>0,Munkanaplo!N78,\"\")","v":""},{"$f":"IF(Munkanaplo!O78>0,Munkanaplo!O78,\"\")","v":""},{"$f":"IF(Munkanaplo!P78>0,Munkanaplo!P78,\"\")","v":""},{"$f":"IF(Munkanaplo!Q78>0,Munkanaplo!Q78,\"\")","v":""},{"$f":"IFERROR(IF(Munkanaplo!R78>0,Munkanaplo!R78,\"\")/5,\"\")","v":""},{"$f":"IF(Munkanaplo!AF78>0,Munkanaplo!AF78,\"\")","v":""},{"$f":"IF(Munkanaplo!V78>0,Munkanaplo!V78,\"\")","v":""},{"$f":"IF(Munkanaplo!W78>0,Munkanaplo!W78,\"\")","v":""},{"$f":"IF(Munkanaplo!X78>0,Munkanaplo!X78,\"\")","v":""},{"$f":"IF(Munkanaplo!Y78>0,Munkanaplo!Y78,\"\")","v":""},{"$f":"IF(Munkanaplo!Z78>0,Munkanaplo!Z78,\"\")","v":""},{"$f":"IF(Munkanaplo!AA78>0,Munkanaplo!AA78,\"\")","v":""},{"$f":"IF(Munkanaplo!AB78>0,Munkanaplo!AB78,\"\")","v":""},{"$f":"IF(Munkanaplo!AC78>0,Munkanaplo!AC78,\"\")","v":""},{"$f":"IF(Munkanaplo!AD78>0,Munkanaplo!AD78,\"\")","v":""},{"$f":"IF(Munkanaplo!AE78>0,Munkanaplo!AE78,\"\")","v":""},{"$f":"IF(Munkanaplo!AG78>0,Munkanaplo!AG78,\"\")","v":""}]
[{"$f":"IF(Munkanaplo!E79>0,Munkanaplo!E79,\"\")","v":""},{"$f":"IF(Munkanaplo!H79>0,Munkanaplo!H79,\"\")","v":""},{"$f":"IF(Munkanaplo!I79>0,Munkanaplo!I79,\"\")","v":""},{"$f":"IF(Munkanaplo!J79>0,Munkanaplo!J79,\"\")","v":""},{"$f":"IF(Munkanaplo!K79>0,Munkanaplo!K79,\"\")","v":""},{"$f":"IF(Munkanaplo!L79>0,Munkanaplo!L79,\"\")","v":""},{"$f":"IF(Munkanaplo!M79>0,Munkanaplo!M79,\"\")","v":""},{"$f":"IF(Munkanaplo!N79>0,Munkanaplo!N79,\"\")","v":""},{"$f":"IF(Munkanaplo!O79>0,Munkanaplo!O79,\"\")","v":""},{"$f":"IF(Munkanaplo!P79>0,Munkanaplo!P79,\"\")","v":""},{"$f":"IF(Munkanaplo!Q79>0,Munkanaplo!Q79,\"\")","v":""},{"$f":"IFERROR(IF(Munkanaplo!R79>0,Munkanaplo!R79,\"\")/5,\"\")","v":""},{"$f":"IF(Munkanaplo!AF79>0,Munkanaplo!AF79,\"\")","v":""},{"$f":"IF(Munkanaplo!V79>0,Munkanaplo!V79,\"\")","v":""},{"$f":"IF(Munkanaplo!W79>0,Munkanaplo!W79,\"\")","v":""},{"$f":"IF(Munkanaplo!X79>0,Munkanaplo!X79,\"\")","v":""},{"$f":"IF(Munkanaplo!Y79>0,Munkanaplo!Y79,\"\")","v":""},{"$f":"IF(Munkanaplo!Z79>0,Munkanaplo!Z79,\"\")","v":""},{"$f":"IF(Munkanaplo!AA79>0,Munkanaplo!AA79,\"\")","v":""},{"$f":"IF(Munkanaplo!AB79>0,Munkanaplo!AB79,\"\")","v":""},{"$f":"IF(Munkanaplo!AC79>0,Munkanaplo!AC79,\"\")","v":""},{"$f":"IF(Munkanaplo!AD79>0,Munkanaplo!AD79,\"\")","v":""},{"$f":"IF(Munkanaplo!AE79>0,Munkanaplo!AE79,\"\")","v":""},{"$f":"IF(Munkanaplo!AG79>0,Munkanaplo!AG79,\"\")","v":""}]
[{"$f":"IF(Munkanaplo!E80>0,Munkanaplo!E80,\"\")","v":""},{"$f":"IF(Munkanaplo!H80>0,Munkanaplo!H80,\"\")","v":""},{"$f":"IF(Munkanaplo!I80>0,Munkanaplo!I80,\"\")","v":""},{"$f":"IF(Munkanaplo!J80>0,Munkanaplo!J80,\"\")","v":""},{"$f":"IF(Munkanaplo!K80>0,Munkanaplo!K80,\"\")","v":""},{"$f":"IF(Munkanaplo!L80>0,Munkanaplo!L80,\"\")","v":""},{"$f":"IF(Munkanaplo!M80>0,Munkanaplo!M80,\"\")","v":""},{"$f":"IF(Munkanaplo!N80>0,Munkanaplo!N80,\"\")","v":""},{"$f":"IF(Munkanaplo!O80>0,Munkanaplo!O80,\"\")","v":""},{"$f":"IF(Munkanaplo!P80>0,Munkanaplo!P80,\"\")","v":""},{"$f":"IF(Munkanaplo!Q80>0,Munkanaplo!Q80,\"\")","v":""},{"$f":"IFERROR(IF(Munkanaplo!R80>0,Munkanaplo!R80,\"\")/5,\"\")","v":""},{"$f":"IF(Munkanaplo!AF80>0,Munkanaplo!AF80,\"\")","v":""},{"$f":"IF(Munkanaplo!V80>0,Munkanaplo!V80,\"\")","v":""},{"$f":"IF(Munkanaplo!W80>0,Munkanaplo!W80,\"\")","v":""},{"$f":"IF(Munkanaplo!X80>0,Munkanaplo!X80,\"\")","v":""},{"$f":"IF(Munkanaplo!Y80>0,Munkanaplo!Y80,\"\")","v":""},{"$f":"IF(Munkanaplo!Z80>0,Munkanaplo!Z80,\"\")","v":""},{"$f":"IF(Munkanaplo!AA80>0,Munkanaplo!AA80,\"\")","v":""},{"$f":"IF(Munkanaplo!AB80>0,Munkanaplo!AB80,\"\")","v":""},{"$f":"IF(Munkanaplo!AC80>0,Munkanaplo!AC80,\"\")","v":""},{"$f":"IF(Munkanaplo!AD80>0,Munkanaplo!AD80,\"\")","v":""},{"$f":"IF(Munkanaplo!AE80>0,Munkanaplo!AE80,\"\")","v":""},{"$f":"IF(Munkanaplo!AG80>0,Munkanaplo!AG80,\"\")","v":""}]
[{"$f":"IF(Munkanaplo!E81>0,Munkanaplo!E81,\"\")","v":""},{"$f":"IF(Munkanaplo!H81>0,Munkanaplo!H81,\"\")","v":""},{"$f":"IF(Munkanaplo!I81>0,Munkanaplo!I81,\"\")","v":""},{"$f":"IF(Munkanaplo!J81>0,Munkanaplo!J81,\"\")","v":""},{"$f":"IF(Munkanaplo!K81>0,Munkanaplo!K81,\"\")","v":""},{"$f":"IF(Munkanaplo!L81>0,Munkanaplo!L81,\"\")","v":""},{"$f":"IF(Munkanaplo!M81>0,Munkanaplo!M81,\"\")","v":""},{"$f":"IF(Munkanaplo!N81>0,Munkanaplo!N81,\"\")","v":""},{"$f":"IF(Munkanaplo!O81>0,Munkanaplo!O81,\"\")","v":""},{"$f":"IF(Munkanaplo!P81>0,Munkanaplo!P81,\"\")","v":""},{"$f":"IF(Munkanaplo!Q81>0,Munkanaplo!Q81,\"\")","v":""},{"$f":"IFERROR(IF(Munkanaplo!R81>0,Munkanaplo!R81,\"\")/5,\"\")","v":""},{"$f":"IF(Munkanaplo!AF81>0,Munkanaplo!AF81,\"\")","v":""},{"$f":"IF(Munkanaplo!V81>0,Munkanaplo!V81,\"\")","v":""},{"$f":"IF(Munkanaplo!W81>0,Munkanaplo!W81,\"\")","v":""},{"$f":"IF(Munkanaplo!X81>0,Munkanaplo!X81,\"\")","v":""},{"$f":"IF(Munkanaplo!Y81>0,Munkanaplo!Y81,\"\")","v":""},{"$f":"IF(Munkanaplo!Z81>0,Munkanaplo!Z81,\"\")","v":""},{"$f":"IF(Munkanaplo!AA81>0,Munkanaplo!AA81,\"\")","v":""},{"$f":"IF(Munkanaplo!AB81>0,Munkanaplo!AB81,\"\")","v":""},{"$f":"IF(Munkanaplo!AC81>0,Munkanaplo!AC81,\"\")","v":""},{"$f":"IF(Munkanaplo!AD81>0,Munkanaplo!AD81,\"\")","v":""},{"$f":"IF(Munkanaplo!AE81>0,Munkanaplo!AE81,\"\")","v":""},{"$f":"IF(Munkanaplo!AG81>0,Munkanaplo!AG81,\"\")","v":""}]
[{"$f":"IF(Munkanaplo!E82>0,Munkanaplo!E82,\"\")","v":""},{"$f":"IF(Munkanaplo!H82>0,Munkanaplo!H82,\"\")","v":""},{"$f":"IF(Munkanaplo!I82>0,Munkanaplo!I82,\"\")","v":""},{"$f":"IF(Munkanaplo!J82>0,Munkanaplo!J82,\"\")","v":""},{"$f":"IF(Munkanaplo!K82>0,Munkanaplo!K82,\"\")","v":""},{"$f":"IF(Munkanaplo!L82>0,Munkanaplo!L82,\"\")","v":""},{"$f":"IF(Munkanaplo!M82>0,Munkanaplo!M82,\"\")","v":""},{"$f":"IF(Munkanaplo!N82>0,Munkanaplo!N82,\"\")","v":""},{"$f":"IF(Munkanaplo!O82>0,Munkanaplo!O82,\"\")","v":""},{"$f":"IF(Munkanaplo!P82>0,Munkanaplo!P82,\"\")","v":""},{"$f":"IF(Munkanaplo!Q82>0,Munkanaplo!Q82,\"\")","v":""},{"$f":"IFERROR(IF(Munkanaplo!R82>0,Munkanaplo!R82,\"\")/5,\"\")","v":""},{"$f":"IF(Munkanaplo!AF82>0,Munkanaplo!AF82,\"\")","v":""},{"$f":"IF(Munkanaplo!V82>0,Munkanaplo!V82,\"\")","v":""},{"$f":"IF(Munkanaplo!W82>0,Munkanaplo!W82,\"\")","v":""},{"$f":"IF(Munkanaplo!X82>0,Munkanaplo!X82,\"\")","v":""},{"$f":"IF(Munkanaplo!Y82>0,Munkanaplo!Y82,\"\")","v":""},{"$f":"IF(Munkanaplo!Z82>0,Munkanaplo!Z82,\"\")","v":""},{"$f":"IF(Munkanaplo!AA82>0,Munkanaplo!AA82,\"\")","v":""},{"$f":"IF(Munkanaplo!AB82>0,Munkanaplo!AB82,\"\")","v":""},{"$f":"IF(Munkanaplo!AC82>0,Munkanaplo!AC82,\"\")","v":""},{"$f":"IF(Munkanaplo!AD82>0,Munkanaplo!AD82,\"\")","v":""},{"$f":"IF(Munkanaplo!AE82>0,Munkanaplo!AE82,\"\")","v":""},{"$f":"IF(Munkanaplo!AG82>0,Munkanaplo!AG82,\"\")","v":""}]
[{"$f":"IF(Munkanaplo!E83>0,Munkanaplo!E83,\"\")","v":""},{"$f":"IF(Munkanaplo!H83>0,Munkanaplo!H83,\"\")","v":""},{"$f":"IF(Munkanaplo!I83>0,Munkanaplo!I83,\"\")","v":""},{"$f":"IF(Munkanaplo!J83>0,Munkanaplo!J83,\"\")","v":""},{"$f":"IF(Munkanaplo!K83>0,Munkanaplo!K83,\"\")","v":""},{"$f":"IF(Munkanaplo!L83>0,Munkanaplo!L83,\"\")","v":""},{"$f":"IF(Munkanaplo!M83>0,Munkanaplo!M83,\"\")","v":""},{"$f":"IF(Munkanaplo!N83>0,Munkanaplo!N83,\"\")","v":""},{"$f":"IF(Munkanaplo!O83>0,Munkanaplo!O83,\"\")","v":""},{"$f":"IF(Munkanaplo!P83>0,Munkanaplo!P83,\"\")","v":""},{"$f":"IF(Munkanaplo!Q83>0,Munkanaplo!Q83,\"\")","v":""},{"$f":"IFERROR(IF(Munkanaplo!R83>0,Munkanaplo!R83,\"\")/5,\"\")","v":""},{"$f":"IF(Munkanaplo!AF83>0,Munkanaplo!AF83,\"\")","v":""},{"$f":"IF(Munkanaplo!V83>0,Munkanaplo!V83,\"\")","v":""},{"$f":"IF(Munkanaplo!W83>0,Munkanaplo!W83,\"\")","v":""},{"$f":"IF(Munkanaplo!X83>0,Munkanaplo!X83,\"\")","v":""},{"$f":"IF(Munkanaplo!Y83>0,Munkanaplo!Y83,\"\")","v":""},{"$f":"IF(Munkanaplo!Z83>0,Munkanaplo!Z83,\"\")","v":""},{"$f":"IF(Munkanaplo!AA83>0,Munkanaplo!AA83,\"\")","v":""},{"$f":"IF(Munkanaplo!AB83>0,Munkanaplo!AB83,\"\")","v":""},{"$f":"IF(Munkanaplo!AC83>0,Munkanaplo!AC83,\"\")","v":""},{"$f":"IF(Munkanaplo!AD83>0,Munkanaplo!AD83,\"\")","v":""},{"$f":"IF(Munkanaplo!AE83>0,Munkanaplo!AE83,\"\")","v":""},{"$f":"IF(Munkanaplo!AG83>0,Munkanaplo!AG83,\"\")","v":""}]
[{"$f":"IF(Munkanaplo!E84>0,Munkanaplo!E84,\"\")","v":""},{"$f":"IF(Munkanaplo!H84>0,Munkanaplo!H84,\"\")","v":""},{"$f":"IF(Munkanaplo!I84>0,Munkanaplo!I84,\"\")","v":""},{"$f":"IF(Munkanaplo!J84>0,Munkanaplo!J84,\"\")","v":""},{"$f":"IF(Munkanaplo!K84>0,Munkanaplo!K84,\"\")","v":""},{"$f":"IF(Munkanaplo!L84>0,Munkanaplo!L84,\"\")","v":""},{"$f":"IF(Munkanaplo!M84>0,Munkanaplo!M84,\"\")","v":""},{"$f":"IF(Munkanaplo!N84>0,Munkanaplo!N84,\"\")","v":""},{"$f":"IF(Munkanaplo!O84>0,Munkanaplo!O84,\"\")","v":""},{"$f":"IF(Munkanaplo!P84>0,Munkanaplo!P84,\"\")","v":""},{"$f":"IF(Munkanaplo!Q84>0,Munkanaplo!Q84,\"\")","v":""},{"$f":"IFERROR(IF(Munkanaplo!R84>0,Munkanaplo!R84,\"\")/5,\"\")","v":""},{"$f":"IF(Munkanaplo!AF84>0,Munkanaplo!AF84,\"\")","v":""},{"$f":"IF(Munkanaplo!V84>0,Munkanaplo!V84,\"\")","v":""},{"$f":"IF(Munkanaplo!W84>0,Munkanaplo!W84,\"\")","v":""},{"$f":"IF(Munkanaplo!X84>0,Munkanaplo!X84,\"\")","v":""},{"$f":"IF(Munkanaplo!Y84>0,Munkanaplo!Y84,\"\")","v":""},{"$f":"IF(Munkanaplo!Z84>0,Munkanaplo!Z84,\"\")","v":""},{"$f":"IF(Munkanaplo!AA84>0,Munkanaplo!AA84,\"\")","v":""},{"$f":"IF(Munkanaplo!AB84>0,Munkanaplo!AB84,\"\")","v":""},{"$f":"IF(Munkanaplo!AC84>0,Munkanaplo!AC84,\"\")","v":""},{"$f":"IF(Munkanaplo!AD84>0,Munkanaplo!AD84,\"\")","v":""},{"$f":"IF(Munkanaplo!AE84>0,Munkanaplo!AE84,\"\")","v":""},{"$f":"IF(Munkanaplo!AG84>0,Munkanaplo!AG84,\"\")","v":""}]
[{"$f":"IF(Munkanaplo!E85>0,Munkanaplo!E85,\"\")","v":""},{"$f":"IF(Munkanaplo!H85>0,Munkanaplo!H85,\"\")","v":""},{"$f":"IF(Munkanaplo!I85>0,Munkanaplo!I85,\"\")","v":""},{"$f":"IF(Munkanaplo!J85>0,Munkanaplo!J85,\"\")","v":""},{"$f":"IF(Munkanaplo!K85>0,Munkanaplo!K85,\"\")","v":""},{"$f":"IF(Munkanaplo!L85>0,Munkanaplo!L85,\"\")","v":""},{"$f":"IF(Munkanaplo!M85>0,Munkanaplo!M85,\"\")","v":""},{"$f":"IF(Munkanaplo!N85>0,Munkanaplo!N85,\"\")","v":""},{"$f":"IF(Munkanaplo!O85>0,Munkanaplo!O85,\"\")","v":""},{"$f":"IF(Munkanaplo!P85>0,Munkanaplo!P85,\"\")","v":""},{"$f":"IF(Munkanaplo!Q85>0,Munkanaplo!Q85,\"\")","v":""},{"$f":"IFERROR(IF(Munkanaplo!R85>0,Munkanaplo!R85,\"\")/5,\"\")","v":""},{"$f":"IF(Munkanaplo!AF85>0,Munkanaplo!AF85,\"\")","v":""},{"$f":"IF(Munkanaplo!V85>0,Munkanaplo!V85,\"\")","v":""},{"$f":"IF(Munkanaplo!W85>0,Munkanaplo!W85,\"\")","v":""},{"$f":"IF(Munkanaplo!X85>0,Munkanaplo!X85,\"\")","v":""},{"$f":"IF(Munkanaplo!Y85>0,Munkanaplo!Y85,\"\")","v":""},{"$f":"IF(Munkanaplo!Z85>0,Munkanaplo!Z85,\"\")","v":""},{"$f":"IF(Munkanaplo!AA85>0,Munkanaplo!AA85,\"\")","v":""},{"$f":"IF(Munkanaplo!AB85>0,Munkanaplo!AB85,\"\")","v":""},{"$f":"IF(Munkanaplo!AC85>0,Munkanaplo!AC85,\"\")","v":""},{"$f":"IF(Munkanaplo!AD85>0,Munkanaplo!AD85,\"\")","v":""},{"$f":"IF(Munkanaplo!AE85>0,Munkanaplo!AE85,\"\")","v":""},{"$f":"IF(Munkanaplo!AG85>0,Munkanaplo!AG85,\"\")","v":""}]
[{"$f":"IF(Munkanaplo!E86>0,Munkanaplo!E86,\"\")","v":""},{"$f":"IF(Munkanaplo!H86>0,Munkanaplo!H86,\"\")","v":""},{"$f":"IF(Munkanaplo!I86>0,Munkanaplo!I86,\"\")","v":""},{"$f":"IF(Munkanaplo!J86>0,Munkanaplo!J86,\"\")","v":""},{"$f":"IF(Munkanaplo!K86>0,Munkanaplo!K86,\"\")","v":""},{"$f":"IF(Munkanaplo!L86>0,Munkanaplo!L86,\"\")","v":""},{"$f":"IF(Munkanaplo!M86>0,Munkanaplo!M86,\"\")","v":""},{"$f":"IF(Munkanaplo!N86>0,Munkanaplo!N86,\"\")","v":""},{"$f":"IF(Munkanaplo!O86>0,Munkanaplo!O86,\"\")","v":""},{"$f":"IF(Munkanaplo!P86>0,Munkanaplo!P86,\"\")","v":""},{"$f":"IF(Munkanaplo!Q86>0,Munkanaplo!Q86,\"\")","v":""},{"$f":"IFERROR(IF(Munkanaplo!R86>0,Munkanaplo!R86,\"\")/5,\"\")","v":""},{"$f":"IF(Munkanaplo!AF86>0,Munkanaplo!AF86,\"\")","v":""},{"$f":"IF(Munkanaplo!V86>0,Munkanaplo!V86,\"\")","v":""},{"$f":"IF(Munkanaplo!W86>0,Munkanaplo!W86,\"\")","v":""},{"$f":"IF(Munkanaplo!X86>0,Munkanaplo!X86,\"\")","v":""},{"$f":"IF(Munkanaplo!Y86>0,Munkanaplo!Y86,\"\")","v":""},{"$f":"IF(Munkanaplo!Z86>0,Munkanaplo!Z86,\"\")","v":""},{"$f":"IF(Munkanaplo!AA86>0,Munkanaplo!AA86,\"\")","v":""},{"$f":"IF(Munkanaplo!AB86>0,Munkanaplo!AB86,\"\")","v":""},{"$f":"IF(Munkanaplo!AC86>0,Munkanaplo!AC86,\"\")","v":""},{"$f":"IF(Munkanaplo!AD86>0,Munkanaplo!AD86,\"\")","v":""},{"$f":"IF(Munkanaplo!AE86>0,Munkanaplo!AE86,\"\")","v":""},{"$f":"IF(Munkanaplo!AG86>0,Munkanaplo!AG86,\"\")","v":""}]
[{"$f":"IF(Munkanaplo!E87>0,Munkanaplo!E87,\"\")","v":""},{"$f":"IF(Munkanaplo!H87>0,Munkanaplo!H87,\"\")","v":""},{"$f":"IF(Munkanaplo!I87>0,Munkanaplo!I87,\"\")","v":""},{"$f":"IF(Munkanaplo!J87>0,Munkanaplo!J87,\"\")","v":""},{"$f":"IF(Munkanaplo!K87>0,Munkanaplo!K87,\"\")","v":""},{"$f":"IF(Munkanaplo!L87>0,Munkanaplo!L87,\"\")","v":""},{"$f":"IF(Munkanaplo!M87>0,Munkanaplo!M87,\"\")","v":""},{"$f":"IF(Munkanaplo!N87>0,Munkanaplo!N87,\"\")","v":""},{"$f":"IF(Munkanaplo!O87>0,Munkanaplo!O87,\"\")","v":""},{"$f":"IF(Munkanaplo!P87>0,Munkanaplo!P87,\"\")","v":""},{"$f":"IF(Munkanaplo!Q87>0,Munkanaplo!Q87,\"\")","v":""},{"$f":"IFERROR(IF(Munkanaplo!R87>0,Munkanaplo!R87,\"\")/5,\"\")","v":""},{"$f":"IF(Munkanaplo!AF87>0,Munkanaplo!AF87,\"\")","v":""},{"$f":"IF(Munkanaplo!V87>0,Munkanaplo!V87,\"\")","v":""},{"$f":"IF(Munkanaplo!W87>0,Munkanaplo!W87,\"\")","v":""},{"$f":"IF(Munkanaplo!X87>0,Munkanaplo!X87,\"\")","v":""},{"$f":"IF(Munkanaplo!Y87>0,Munkanaplo!Y87,\"\")","v":""},{"$f":"IF(Munkanaplo!Z87>0,Munkanaplo!Z87,\"\")","v":""},{"$f":"IF(Munkanaplo!AA87>0,Munkanaplo!AA87,\"\")","v":""},{"$f":"IF(Munkanaplo!AB87>0,Munkanaplo!AB87,\"\")","v":""},{"$f":"IF(Munkanaplo!AC87>0,Munkanaplo!AC87,\"\")","v":""},{"$f":"IF(Munkanaplo!AD87>0,Munkanaplo!AD87,\"\")","v":""},{"$f":"IF(Munkanaplo!AE87>0,Munkanaplo!AE87,\"\")","v":""},{"$f":"IF(Munkanaplo!AG87>0,Munkanaplo!AG87,\"\")","v":""}]
[{"$f":"IF(Munkanaplo!E88>0,Munkanaplo!E88,\"\")","v":""},{"$f":"IF(Munkanaplo!H88>0,Munkanaplo!H88,\"\")","v":""},{"$f":"IF(Munkanaplo!I88>0,Munkanaplo!I88,\"\")","v":""},{"$f":"IF(Munkanaplo!J88>0,Munkanaplo!J88,\"\")","v":""},{"$f":"IF(Munkanaplo!K88>0,Munkanaplo!K88,\"\")","v":""},{"$f":"IF(Munkanaplo!L88>0,Munkanaplo!L88,\"\")","v":""},{"$f":"IF(Munkanaplo!M88>0,Munkanaplo!M88,\"\")","v":""},{"$f":"IF(Munkanaplo!N88>0,Munkanaplo!N88,\"\")","v":""},{"$f":"IF(Munkanaplo!O88>0,Munkanaplo!O88,\"\")","v":""},{"$f":"IF(Munkanaplo!P88>0,Munkanaplo!P88,\"\")","v":""},{"$f":"IF(Munkanaplo!Q88>0,Munkanaplo!Q88,\"\")","v":""},{"$f":"IFERROR(IF(Munkanaplo!R88>0,Munkanaplo!R88,\"\")/5,\"\")","v":""},{"$f":"IF(Munkanaplo!AF88>0,Munkanaplo!AF88,\"\")","v":""},{"$f":"IF(Munkanaplo!V88>0,Munkanaplo!V88,\"\")","v":""},{"$f":"IF(Munkanaplo!W88>0,Munkanaplo!W88,\"\")","v":""},{"$f":"IF(Munkanaplo!X88>0,Munkanaplo!X88,\"\")","v":""},{"$f":"IF(Munkanaplo!Y88>0,Munkanaplo!Y88,\"\")","v":""},{"$f":"IF(Munkanaplo!Z88>0,Munkanaplo!Z88,\"\")","v":""},{"$f":"IF(Munkanaplo!AA88>0,Munkanaplo!AA88,\"\")","v":""},{"$f":"IF(Munkanaplo!AB88>0,Munkanaplo!AB88,\"\")","v":""},{"$f":"IF(Munkanaplo!AC88>0,Munkanaplo!AC88,\"\")","v":""},{"$f":"IF(Munkanaplo!AD88>0,Munkanaplo!AD88,\"\")","v":""},{"$f":"IF(Munkanaplo!AE88>0,Munkanaplo!AE88,\"\")","v":""},{"$f":"IF(Munkanaplo!AG88>0,Munkanaplo!AG88,\"\")","v":""}]
[{"$f":"IF(Munkanaplo!E89>0,Munkanaplo!E89,\"\")","v":""},{"$f":"IF(Munkanaplo!H89>0,Munkanaplo!H89,\"\")","v":""},{"$f":"IF(Munkanaplo!I89>0,Munkanaplo!I89,\"\")","v":""},{"$f":"IF(Munkanaplo!J89>0,Munkanaplo!J89,\"\")","v":""},{"$f":"IF(Munkanaplo!K89>0,Munkanaplo!K89,\"\")","v":""},{"$f":"IF(Munkanaplo!L89>0,Munkanaplo!L89,\"\")","v":""},{"$f":"IF(Munkanaplo!M89>0,Munkanaplo!M89,\"\")","v":""},{"$f":"IF(Munkanaplo!N89>0,Munkanaplo!N89,\"\")","v":""},{"$f":"IF(Munkanaplo!O89>0,Munkanaplo!O89,\"\")","v":""},{"$f":"IF(Munkanaplo!P89>0,Munkanaplo!P89,\"\")","v":""},{"$f":"IF(Munkanaplo!Q89>0,Munkanaplo!Q89,\"\")","v":""},{"$f":"IFERROR(IF(Munkanaplo!R89>0,Munkanaplo!R89,\"\")/5,\"\")","v":""},{"$f":"IF(Munkanaplo!AF89>0,Munkanaplo!AF89,\"\")","v":""},{"$f":"IF(Munkanaplo!V89>0,Munkanaplo!V89,\"\")","v":""},{"$f":"IF(Munkanaplo!W89>0,Munkanaplo!W89,\"\")","v":""},{"$f":"IF(Munkanaplo!X89>0,Munkanaplo!X89,\"\")","v":""},{"$f":"IF(Munkanaplo!Y89>0,Munkanaplo!Y89,\"\")","v":""},{"$f":"IF(Munkanaplo!Z89>0,Munkanaplo!Z89,\"\")","v":""},{"$f":"IF(Munkanaplo!AA89>0,Munkanaplo!AA89,\"\")","v":""},{"$f":"IF(Munkanaplo!AB89>0,Munkanaplo!AB89,\"\")","v":""},{"$f":"IF(Munkanaplo!AC89>0,Munkanaplo!AC89,\"\")","v":""},{"$f":"IF(Munkanaplo!AD89>0,Munkanaplo!AD89,\"\")","v":""},{"$f":"IF(Munkanaplo!AE89>0,Munkanaplo!AE89,\"\")","v":""},{"$f":"IF(Munkanaplo!AG89>0,Munkanaplo!AG89,\"\")","v":""}]
[{"$f":"IF(Munkanaplo!E90>0,Munkanaplo!E90,\"\")","v":""},{"$f":"IF(Munkanaplo!H90>0,Munkanaplo!H90,\"\")","v":""},{"$f":"IF(Munkanaplo!I90>0,Munkanaplo!I90,\"\")","v":""},{"$f":"IF(Munkanaplo!J90>0,Munkanaplo!J90,\"\")","v":""},{"$f":"IF(Munkanaplo!K90>0,Munkanaplo!K90,\"\")","v":""},{"$f":"IF(Munkanaplo!L90>0,Munkanaplo!L90,\"\")","v":""},{"$f":"IF(Munkanaplo!M90>0,Munkanaplo!M90,\"\")","v":""},{"$f":"IF(Munkanaplo!N90>0,Munkanaplo!N90,\"\")","v":""},{"$f":"IF(Munkanaplo!O90>0,Munkanaplo!O90,\"\")","v":""},{"$f":"IF(Munkanaplo!P90>0,Munkanaplo!P90,\"\")","v":""},{"$f":"IF(Munkanaplo!Q90>0,Munkanaplo!Q90,\"\")","v":""},{"$f":"IFERROR(IF(Munkanaplo!R90>0,Munkanaplo!R90,\"\")/5,\"\")","v":""},{"$f":"IF(Munkanaplo!AF90>0,Munkanaplo!AF90,\"\")","v":""},{"$f":"IF(Munkanaplo!V90>0,Munkanaplo!V90,\"\")","v":""},{"$f":"IF(Munkanaplo!W90>0,Munkanaplo!W90,\"\")","v":""},{"$f":"IF(Munkanaplo!X90>0,Munkanaplo!X90,\"\")","v":""},{"$f":"IF(Munkanaplo!Y90>0,Munkanaplo!Y90,\"\")","v":""},{"$f":"IF(Munkanaplo!Z90>0,Munkanaplo!Z90,\"\")","v":""},{"$f":"IF(Munkanaplo!AA90>0,Munkanaplo!AA90,\"\")","v":""},{"$f":"IF(Munkanaplo!AB90>0,Munkanaplo!AB90,\"\")","v":""},{"$f":"IF(Munkanaplo!AC90>0,Munkanaplo!AC90,\"\")","v":""},{"$f":"IF(Munkanaplo!AD90>0,Munkanaplo!AD90,\"\")","v":""},{"$f":"IF(Munkanaplo!AE90>0,Munkanaplo!AE90,\"\")","v":""},{"$f":"IF(Munkanaplo!AG90>0,Munkanaplo!AG90,\"\")","v":""}]
[{"$f":"IF(Munkanaplo!E91>0,Munkanaplo!E91,\"\")","v":""},{"$f":"IF(Munkanaplo!H91>0,Munkanaplo!H91,\"\")","v":""},{"$f":"IF(Munkanaplo!I91>0,Munkanaplo!I91,\"\")","v":""},{"$f":"IF(Munkanaplo!J91>0,Munkanaplo!J91,\"\")","v":""},{"$f":"IF(Munkanaplo!K91>0,Munkanaplo!K91,\"\")","v":""},{"$f":"IF(Munkanaplo!L91>0,Munkanaplo!L91,\"\")","v":""},{"$f":"IF(Munkanaplo!M91>0,Munkanaplo!M91,\"\")","v":""},{"$f":"IF(Munkanaplo!N91>0,Munkanaplo!N91,\"\")","v":""},{"$f":"IF(Munkanaplo!O91>0,Munkanaplo!O91,\"\")","v":""},{"$f":"IF(Munkanaplo!P91>0,Munkanaplo!P91,\"\")","v":""},{"$f":"IF(Munkanaplo!Q91>0,Munkanaplo!Q91,\"\")","v":""},{"$f":"IFERROR(IF(Munkanaplo!R91>0,Munkanaplo!R91,\"\")/5,\"\")","v":""},{"$f":"IF(Munkanaplo!AF91>0,Munkanaplo!AF91,\"\")","v":""},{"$f":"IF(Munkanaplo!V91>0,Munkanaplo!V91,\"\")","v":""},{"$f":"IF(Munkanaplo!W91>0,Munkanaplo!W91,\"\")","v":""},{"$f":"IF(Munkanaplo!X91>0,Munkanaplo!X91,\"\")","v":""},{"$f":"IF(Munkanaplo!Y91>0,Munkanaplo!Y91,\"\")","v":""},{"$f":"IF(Munkanaplo!Z91>0,Munkanaplo!Z91,\"\")","v":""},{"$f":"IF(Munkanaplo!AA91>0,Munkanaplo!AA91,\"\")","v":""},{"$f":"IF(Munkanaplo!AB91>0,Munkanaplo!AB91,\"\")","v":""},{"$f":"IF(Munkanaplo!AC91>0,Munkanaplo!AC91,\"\")","v":""},{"$f":"IF(Munkanaplo!AD91>0,Munkanaplo!AD91,\"\")","v":""},{"$f":"IF(Munkanaplo!AE91>0,Munkanaplo!AE91,\"\")","v":""},{"$f":"IF(Munkanaplo!AG91>0,Munkanaplo!AG91,\"\")","v":""}]
[{"$f":"IF(Munkanaplo!E92>0,Munkanaplo!E92,\"\")","v":""},{"$f":"IF(Munkanaplo!H92>0,Munkanaplo!H92,\"\")","v":""},{"$f":"IF(Munkanaplo!I92>0,Munkanaplo!I92,\"\")","v":""},{"$f":"IF(Munkanaplo!J92>0,Munkanaplo!J92,\"\")","v":""},{"$f":"IF(Munkanaplo!K92>0,Munkanaplo!K92,\"\")","v":""},{"$f":"IF(Munkanaplo!L92>0,Munkanaplo!L92,\"\")","v":""},{"$f":"IF(Munkanaplo!M92>0,Munkanaplo!M92,\"\")","v":""},{"$f":"IF(Munkanaplo!N92>0,Munkanaplo!N92,\"\")","v":""},{"$f":"IF(Munkanaplo!O92>0,Munkanaplo!O92,\"\")","v":""},{"$f":"IF(Munkanaplo!P92>0,Munkanaplo!P92,\"\")","v":""},{"$f":"IF(Munkanaplo!Q92>0,Munkanaplo!Q92,\"\")","v":""},{"$f":"IFERROR(IF(Munkanaplo!R92>0,Munkanaplo!R92,\"\")/5,\"\")","v":""},{"$f":"IF(Munkanaplo!AF92>0,Munkanaplo!AF92,\"\")","v":""},{"$f":"IF(Munkanaplo!V92>0,Munkanaplo!V92,\"\")","v":""},{"$f":"IF(Munkanaplo!W92>0,Munkanaplo!W92,\"\")","v":""},{"$f":"IF(Munkanaplo!X92>0,Munkanaplo!X92,\"\")","v":""},{"$f":"IF(Munkanaplo!Y92>0,Munkanaplo!Y92,\"\")","v":""},{"$f":"IF(Munkanaplo!Z92>0,Munkanaplo!Z92,\"\")","v":""},{"$f":"IF(Munkanaplo!AA92>0,Munkanaplo!AA92,\"\")","v":""},{"$f":"IF(Munkanaplo!AB92>0,Munkanaplo!AB92,\"\")","v":""},{"$f":"IF(Munkanaplo!AC92>0,Munkanaplo!AC92,\"\")","v":""},{"$f":"IF(Munkanaplo!AD92>0,Munkanaplo!AD92,\"\")","v":""},{"$f":"IF(Munkanaplo!AE92>0,Munkanaplo!AE92,\"\")","v":""},{"$f":"IF(Munkanaplo!AG92>0,Munkanaplo!AG92,\"\")","v":""}]
[{"$f":"IF(Munkanaplo!E93>0,Munkanaplo!E93,\"\")","v":""},{"$f":"IF(Munkanaplo!H93>0,Munkanaplo!H93,\"\")","v":""},{"$f":"IF(Munkanaplo!I93>0,Munkanaplo!I93,\"\")","v":""},{"$f":"IF(Munkanaplo!J93>0,Munkanaplo!J93,\"\")","v":""},{"$f":"IF(Munkanaplo!K93>0,Munkanaplo!K93,\"\")","v":""},{"$f":"IF(Munkanaplo!L93>0,Munkanaplo!L93,\"\")","v":""},{"$f":"IF(Munkanaplo!M93>0,Munkanaplo!M93,\"\")","v":""},{"$f":"IF(Munkanaplo!N93>0,Munkanaplo!N93,\"\")","v":""},{"$f":"IF(Munkanaplo!O93>0,Munkanaplo!O93,\"\")","v":""},{"$f":"IF(Munkanaplo!P93>0,Munkanaplo!P93,\"\")","v":""},{"$f":"IF(Munkanaplo!Q93>0,Munkanaplo!Q93,\"\")","v":""},{"$f":"IFERROR(IF(Munkanaplo!R93>0,Munkanaplo!R93,\"\")/5,\"\")","v":""},{"$f":"IF(Munkanaplo!AF93>0,Munkanaplo!AF93,\"\")","v":""},{"$f":"IF(Munkanaplo!V93>0,Munkanaplo!V93,\"\")","v":""},{"$f":"IF(Munkanaplo!W93>0,Munkanaplo!W93,\"\")","v":""},{"$f":"IF(Munkanaplo!X93>0,Munkanaplo!X93,\"\")","v":""},{"$f":"IF(Munkanaplo!Y93>0,Munkanaplo!Y93,\"\")","v":""},{"$f":"IF(Munkanaplo!Z93>0,Munkanaplo!Z93,\"\")","v":""},{"$f":"IF(Munkanaplo!AA93>0,Munkanaplo!AA93,\"\")","v":""},{"$f":"IF(Munkanaplo!AB93>0,Munkanaplo!AB93,\"\")","v":""},{"$f":"IF(Munkanaplo!AC93>0,Munkanaplo!AC93,\"\")","v":""},{"$f":"IF(Munkanaplo!AD93>0,Munkanaplo!AD93,\"\")","v":""},{"$f":"IF(Munkanaplo!AE93>0,Munkanaplo!AE93,\"\")","v":""},{"$f":"IF(Munkanaplo!AG93>0,Munkanaplo!AG93,\"\")","v":""}]
[{"$f":"IF(Munkanaplo!E94>0,Munkanaplo!E94,\"\")","v":""},{"$f":"IF(Munkanaplo!H94>0,Munkanaplo!H94,\"\")","v":""},{"$f":"IF(Munkanaplo!I94>0,Munkanaplo!I94,\"\")","v":""},{"$f":"IF(Munkanaplo!J94>0,Munkanaplo!J94,\"\")","v":""},{"$f":"IF(Munkanaplo!K94>0,Munkanaplo!K94,\"\")","v":""},{"$f":"IF(Munkanaplo!L94>0,Munkanaplo!L94,\"\")","v":""},{"$f":"IF(Munkanaplo!M94>0,Munkanaplo!M94,\"\")","v":""},{"$f":"IF(Munkanaplo!N94>0,Munkanaplo!N94,\"\")","v":""},{"$f":"IF(Munkanaplo!O94>0,Munkanaplo!O94,\"\")","v":""},{"$f":"IF(Munkanaplo!P94>0,Munkanaplo!P94,\"\")","v":""},{"$f":"IF(Munkanaplo!Q94>0,Munkanaplo!Q94,\"\")","v":""},{"$f":"IFERROR(IF(Munkanaplo!R94>0,Munkanaplo!R94,\"\")/5,\"\")","v":""},{"$f":"IF(Munkanaplo!AF94>0,Munkanaplo!AF94,\"\")","v":""},{"$f":"IF(Munkanaplo!V94>0,Munkanaplo!V94,\"\")","v":""},{"$f":"IF(Munkanaplo!W94>0,Munkanaplo!W94,\"\")","v":""},{"$f":"IF(Munkanaplo!X94>0,Munkanaplo!X94,\"\")","v":""},{"$f":"IF(Munkanaplo!Y94>0,Munkanaplo!Y94,\"\")","v":""},{"$f":"IF(Munkanaplo!Z94>0,Munkanaplo!Z94,\"\")","v":""},{"$f":"IF(Munkanaplo!AA94>0,Munkanaplo!AA94,\"\")","v":""},{"$f":"IF(Munkanaplo!AB94>0,Munkanaplo!AB94,\"\")","v":""},{"$f":"IF(Munkanaplo!AC94>0,Munkanaplo!AC94,\"\")","v":""},{"$f":"IF(Munkanaplo!AD94>0,Munkanaplo!AD94,\"\")","v":""},{"$f":"IF(Munkanaplo!AE94>0,Munkanaplo!AE94,\"\")","v":""},{"$f":"IF(Munkanaplo!AG94>0,Munkanaplo!AG94,\"\")","v":""}]
[{"$f":"IF(Munkanaplo!E95>0,Munkanaplo!E95,\"\")","v":""},{"$f":"IF(Munkanaplo!H95>0,Munkanaplo!H95,\"\")","v":""},{"$f":"IF(Munkanaplo!I95>0,Munkanaplo!I95,\"\")","v":""},{"$f":"IF(Munkanaplo!J95>0,Munkanaplo!J95,\"\")","v":""},{"$f":"IF(Munkanaplo!K95>0,Munkanaplo!K95,\"\")","v":""},{"$f":"IF(Munkanaplo!L95>0,Munkanaplo!L95,\"\")","v":""},{"$f":"IF(Munkanaplo!M95>0,Munkanaplo!M95,\"\")","v":""},{"$f":"IF(Munkanaplo!N95>0,Munkanaplo!N95,\"\")","v":""},{"$f":"IF(Munkanaplo!O95>0,Munkanaplo!O95,\"\")","v":""},{"$f":"IF(Munkanaplo!P95>0,Munkanaplo!P95,\"\")","v":""},{"$f":"IF(Munkanaplo!Q95>0,Munkanaplo!Q95,\"\")","v":""},{"$f":"IFERROR(IF(Munkanaplo!R95>0,Munkanaplo!R95,\"\")/5,\"\")","v":""},{"$f":"IF(Munkanaplo!AF95>0,Munkanaplo!AF95,\"\")","v":""},{"$f":"IF(Munkanaplo!V95>0,Munkanaplo!V95,\"\")","v":""},{"$f":"IF(Munkanaplo!W95>0,Munkanaplo!W95,\"\")","v":""},{"$f":"IF(Munkanaplo!X95>0,Munkanaplo!X95,\"\")","v":""},{"$f":"IF(Munkanaplo!Y95>0,Munkanaplo!Y95,\"\")","v":""},{"$f":"IF(Munkanaplo!Z95>0,Munkanaplo!Z95,\"\")","v":""},{"$f":"IF(Munkanaplo!AA95>0,Munkanaplo!AA95,\"\")","v":""},{"$f":"IF(Munkanaplo!AB95>0,Munkanaplo!AB95,\"\")","v":""},{"$f":"IF(Munkanaplo!AC95>0,Munkanaplo!AC95,\"\")","v":""},{"$f":"IF(Munkanaplo!AD95>0,Munkanaplo!AD95,\"\")","v":""},{"$f":"IF(Munkanaplo!AE95>0,Munkanaplo!AE95,\"\")","v":""},{"$f":"IF(Munkanaplo!AG95>0,Munkanaplo!AG95,\"\")","v":""}]
[{"$f":"IF(Munkanaplo!E96>0,Munkanaplo!E96,\"\")","v":""},{"$f":"IF(Munkanaplo!H96>0,Munkanaplo!H96,\"\")","v":""},{"$f":"IF(Munkanaplo!I96>0,Munkanaplo!I96,\"\")","v":""},{"$f":"IF(Munkanaplo!J96>0,Munkanaplo!J96,\"\")","v":""},{"$f":"IF(Munkanaplo!K96>0,Munkanaplo!K96,\"\")","v":""},{"$f":"IF(Munkanaplo!L96>0,Munkanaplo!L96,\"\")","v":""},{"$f":"IF(Munkanaplo!M96>0,Munkanaplo!M96,\"\")","v":""},{"$f":"IF(Munkanaplo!N96>0,Munkanaplo!N96,\"\")","v":""},{"$f":"IF(Munkanaplo!O96>0,Munkanaplo!O96,\"\")","v":""},{"$f":"IF(Munkanaplo!P96>0,Munkanaplo!P96,\"\")","v":""},{"$f":"IF(Munkanaplo!Q96>0,Munkanaplo!Q96,\"\")","v":""},{"$f":"IFERROR(IF(Munkanaplo!R96>0,Munkanaplo!R96,\"\")/5,\"\")","v":""},{"$f":"IF(Munkanaplo!AF96>0,Munkanaplo!AF96,\"\")","v":""},{"$f":"IF(Munkanaplo!V96>0,Munkanaplo!V96,\"\")","v":""},{"$f":"IF(Munkanaplo!W96>0,Munkanaplo!W96,\"\")","v":""},{"$f":"IF(Munkanaplo!X96>0,Munkanaplo!X96,\"\")","v":""},{"$f":"IF(Munkanaplo!Y96>0,Munkanaplo!Y96,\"\")","v":""},{"$f":"IF(Munkanaplo!Z96>0,Munkanaplo!Z96,\"\")","v":""},{"$f":"IF(Munkanaplo!AA96>0,Munkanaplo!AA96,\"\")","v":""},{"$f":"IF(Munkanaplo!AB96>0,Munkanaplo!AB96,\"\")","v":""},{"$f":"IF(Munkanaplo!AC96>0,Munkanaplo!AC96,\"\")","v":""},{"$f":"IF(Munkanaplo!AD96>0,Munkanaplo!AD96,\"\")","v":""},{"$f":"IF(Munkanaplo!AE96>0,Munkanaplo!AE96,\"\")","v":""},{"$f":"IF(Munkanaplo!AG96>0,Munkanaplo!AG96,\"\")","v":""}]
[{"$f":"IF(Munkanaplo!E97>0,Munkanaplo!E97,\"\")","v":""},{"$f":"IF(Munkanaplo!H97>0,Munkanaplo!H97,\"\")","v":""},{"$f":"IF(Munkanaplo!I97>0,Munkanaplo!I97,\"\")","v":""},{"$f":"IF(Munkanaplo!J97>0,Munkanaplo!J97,\"\")","v":""},{"$f":"IF(Munkanaplo!K97>0,Munkanaplo!K97,\"\")","v":""},{"$f":"IF(Munkanaplo!L97>0,Munkanaplo!L97,\"\")","v":""},{"$f":"IF(Munkanaplo!M97>0,Munkanaplo!M97,\"\")","v":""},{"$f":"IF(Munkanaplo!N97>0,Munkanaplo!N97,\"\")","v":""},{"$f":"IF(Munkanaplo!O97>0,Munkanaplo!O97,\"\")","v":""},{"$f":"IF(Munkanaplo!P97>0,Munkanaplo!P97,\"\")","v":""},{"$f":"IF(Munkanaplo!Q97>0,Munkanaplo!Q97,\"\")","v":""},{"$f":"IFERROR(IF(Munkanaplo!R97>0,Munkanaplo!R97,\"\")/5,\"\")","v":""},{"$f":"IF(Munkanaplo!AF97>0,Munkanaplo!AF97,\"\")","v":""},{"$f":"IF(Munkanaplo!V97>0,Munkanaplo!V97,\"\")","v":""},{"$f":"IF(Munkanaplo!W97>0,Munkanaplo!W97,\"\")","v":""},{"$f":"IF(Munkanaplo!X97>0,Munkanaplo!X97,\"\")","v":""},{"$f":"IF(Munkanaplo!Y97>0,Munkanaplo!Y97,\"\")","v":""},{"$f":"IF(Munkanaplo!Z97>0,Munkanaplo!Z97,\"\")","v":""},{"$f":"IF(Munkanaplo!AA97>0,Munkanaplo!AA97,\"\")","v":""},{"$f":"IF(Munkanaplo!AB97>0,Munkanaplo!AB97,\"\")","v":""},{"$f":"IF(Munkanaplo!AC97>0,Munkanaplo!AC97,\"\")","v":""},{"$f":"IF(Munkanaplo!AD97>0,Munkanaplo!AD97,\"\")","v":""},{"$f":"IF(Munkanaplo!AE97>0,Munkanaplo!AE97,\"\")","v":""},{"$f":"IF(Munkanaplo!AG97>0,Munkanaplo!AG97,\"\")","v":""}]
[{"$f":"IF(Munkanaplo!E98>0,Munkanaplo!E98,\"\")","v":""},{"$f":"IF(Munkanaplo!H98>0,Munkanaplo!H98,\"\")","v":""},{"$f":"IF(Munkanaplo!I98>0,Munkanaplo!I98,\"\")","v":""},{"$f":"IF(Munkanaplo!J98>0,Munkanaplo!J98,\"\")","v":""},{"$f":"IF(Munkanaplo!K98>0,Munkanaplo!K98,\"\")","v":""},{"$f":"IF(Munkanaplo!L98>0,Munkanaplo!L98,\"\")","v":""},{"$f":"IF(Munkanaplo!M98>0,Munkanaplo!M98,\"\")","v":""},{"$f":"IF(Munkanaplo!N98>0,Munkanaplo!N98,\"\")","v":""},{"$f":"IF(Munkanaplo!O98>0,Munkanaplo!O98,\"\")","v":""},{"$f":"IF(Munkanaplo!P98>0,Munkanaplo!P98,\"\")","v":""},{"$f":"IF(Munkanaplo!Q98>0,Munkanaplo!Q98,\"\")","v":""},{"$f":"IFERROR(IF(Munkanaplo!R98>0,Munkanaplo!R98,\"\")/5,\"\")","v":""},{"$f":"IF(Munkanaplo!AF98>0,Munkanaplo!AF98,\"\")","v":""},{"$f":"IF(Munkanaplo!V98>0,Munkanaplo!V98,\"\")","v":""},{"$f":"IF(Munkanaplo!W98>0,Munkanaplo!W98,\"\")","v":""},{"$f":"IF(Munkanaplo!X98>0,Munkanaplo!X98,\"\")","v":""},{"$f":"IF(Munkanaplo!Y98>0,Munkanaplo!Y98,\"\")","v":""},{"$f":"IF(Munkanaplo!Z98>0,Munkanaplo!Z98,\"\")","v":""},{"$f":"IF(Munkanaplo!AA98>0,Munkanaplo!AA98,\"\")","v":""},{"$f":"IF(Munkanaplo!AB98>0,Munkanaplo!AB98,\"\")","v":""},{"$f":"IF(Munkanaplo!AC98>0,Munkanaplo!AC98,\"\")","v":""},{"$f":"IF(Munkanaplo!AD98>0,Munkanaplo!AD98,\"\")","v":""},{"$f":"IF(Munkanaplo!AE98>0,Munkanaplo!AE98,\"\")","v":""},{"$f":"IF(Munkanaplo!AG98>0,Munkanaplo!AG98,\"\")","v":""}]
[{"$f":"IF(Munkanaplo!E99>0,Munkanaplo!E99,\"\")","v":""},{"$f":"IF(Munkanaplo!H99>0,Munkanaplo!H99,\"\")","v":""},{"$f":"IF(Munkanaplo!I99>0,Munkanaplo!I99,\"\")","v":""},{"$f":"IF(Munkanaplo!J99>0,Munkanaplo!J99,\"\")","v":""},{"$f":"IF(Munkanaplo!K99>0,Munkanaplo!K99,\"\")","v":""},{"$f":"IF(Munkanaplo!L99>0,Munkanaplo!L99,\"\")","v":""},{"$f":"IF(Munkanaplo!M99>0,Munkanaplo!M99,\"\")","v":""},{"$f":"IF(Munkanaplo!N99>0,Munkanaplo!N99,\"\")","v":""},{"$f":"IF(Munkanaplo!O99>0,Munkanaplo!O99,\"\")","v":""},{"$f":"IF(Munkanaplo!P99>0,Munkanaplo!P99,\"\")","v":""},{"$f":"IF(Munkanaplo!Q99>0,Munkanaplo!Q99,\"\")","v":""},{"$f":"IFERROR(IF(Munkanaplo!R99>0,Munkanaplo!R99,\"\")/5,\"\")","v":""},{"$f":"IF(Munkanaplo!AF99>0,Munkanaplo!AF99,\"\")","v":""},{"$f":"IF(Munkanaplo!V99>0,Munkanaplo!V99,\"\")","v":""},{"$f":"IF(Munkanaplo!W99>0,Munkanaplo!W99,\"\")","v":""},{"$f":"IF(Munkanaplo!X99>0,Munkanaplo!X99,\"\")","v":""},{"$f":"IF(Munkanaplo!Y99>0,Munkanaplo!Y99,\"\")","v":""},{"$f":"IF(Munkanaplo!Z99>0,Munkanaplo!Z99,\"\")","v":""},{"$f":"IF(Munkanaplo!AA99>0,Munkanaplo!AA99,\"\")","v":""},{"$f":"IF(Munkanaplo!AB99>0,Munkanaplo!AB99,\"\")","v":""},{"$f":"IF(Munkanaplo!AC99>0,Munkanaplo!AC99,\"\")","v":""},{"$f":"IF(Munkanaplo!AD99>0,Munkanaplo!AD99,\"\")","v":""},{"$f":"IF(Munkanaplo!AE99>0,Munkanaplo!AE99,\"\")","v":""},{"$f":"IF(Munkanaplo!AG99>0,Munkanaplo!AG99,\"\")","v":""}]
[{"$f":"IF(Munkanaplo!E100>0,Munkanaplo!E100,\"\")","v":""},{"$f":"IF(Munkanaplo!H100>0,Munkanaplo!H100,\"\")","v":""},{"$f":"IF(Munkanaplo!I100>0,Munkanaplo!I100,\"\")","v":""},{"$f":"IF(Munkanaplo!J100>0,Munkanaplo!J100,\"\")","v":""},{"$f":"IF(Munkanaplo!K100>0,Munkanaplo!K100,\"\")","v":""},{"$f":"IF(Munkanaplo!L100>0,Munkanaplo!L100,\"\")","v":""},{"$f":"IF(Munkanaplo!M100>0,Munkanaplo!M100,\"\")","v":""},{"$f":"IF(Munkanaplo!N100>0,Munkanaplo!N100,\"\")","v":""},{"$f":"IF(Munkanaplo!O100>0,Munkanaplo!O100,\"\")","v":""},{"$f":"IF(Munkanaplo!P100>0,Munkanaplo!P100,\"\")","v":""},{"$f":"IF(Munkanaplo!Q100>0,Munkanaplo!Q100,\"\")","v":""},{"$f":"IFERROR(IF(Munkanaplo!R100>0,Munkanaplo!R100,\"\")/5,\"\")","v":""},{"$f":"IF(Munkanaplo!AF100>0,Munkanaplo!AF100,\"\")","v":""},{"$f":"IF(Munkanaplo!V100>0,Munkanaplo!V100,\"\")","v":""},{"$f":"IF(Munkanaplo!W100>0,Munkanaplo!W100,\"\")","v":""},{"$f":"IF(Munkanaplo!X100>0,Munkanaplo!X100,\"\")","v":""},{"$f":"IF(Munkanaplo!Y100>0,Munkanaplo!Y100,\"\")","v":""},{"$f":"IF(Munkanaplo!Z100>0,Munkanaplo!Z100,\"\")","v":""},{"$f":"IF(Munkanaplo!AA100>0,Munkanaplo!AA100,\"\")","v":""},{"$f":"IF(Munkanaplo!AB100>0,Munkanaplo!AB100,\"\")","v":""},{"$f":"IF(Munkanaplo!AC100>0,Munkanaplo!AC100,\"\")","v":""},{"$f":"IF(Munkanaplo!AD100>0,Munkanaplo!AD100,\"\")","v":""},{"$f":"IF(Munkanaplo!AE100>0,Munkanaplo!AE100,\"\")","v":""},{"$f":"IF(Munkanaplo!AG100>0,Munkanaplo!AG100,\"\")","v":""}]
[{"$f":"IF(Munkanaplo!E101>0,Munkanaplo!E101,\"\")","v":""},{"$f":"IF(Munkanaplo!H101>0,Munkanaplo!H101,\"\")","v":""},{"$f":"IF(Munkanaplo!I101>0,Munkanaplo!I101,\"\")","v":""},{"$f":"IF(Munkanaplo!J101>0,Munkanaplo!J101,\"\")","v":""},{"$f":"IF(Munkanaplo!K101>0,Munkanaplo!K101,\"\")","v":""},{"$f":"IF(Munkanaplo!L101>0,Munkanaplo!L101,\"\")","v":""},{"$f":"IF(Munkanaplo!M101>0,Munkanaplo!M101,\"\")","v":""},{"$f":"IF(Munkanaplo!N101>0,Munkanaplo!N101,\"\")","v":""},{"$f":"IF(Munkanaplo!O101>0,Munkanaplo!O101,\"\")","v":""},{"$f":"IF(Munkanaplo!P101>0,Munkanaplo!P101,\"\")","v":""},{"$f":"IF(Munkanaplo!Q101>0,Munkanaplo!Q101,\"\")","v":""},{"$f":"IFERROR(IF(Munkanaplo!R101>0,Munkanaplo!R101,\"\")/5,\"\")","v":""},{"$f":"IF(Munkanaplo!AF101>0,Munkanaplo!AF101,\"\")","v":""},{"$f":"IF(Munkanaplo!V101>0,Munkanaplo!V101,\"\")","v":""},{"$f":"IF(Munkanaplo!W101>0,Munkanaplo!W101,\"\")","v":""},{"$f":"IF(Munkanaplo!X101>0,Munkanaplo!X101,\"\")","v":""},{"$f":"IF(Munkanaplo!Y101>0,Munkanaplo!Y101,\"\")","v":""},{"$f":"IF(Munkanaplo!Z101>0,Munkanaplo!Z101,\"\")","v":""},{"$f":"IF(Munkanaplo!AA101>0,Munkanaplo!AA101,\"\")","v":""},{"$f":"IF(Munkanaplo!AB101>0,Munkanaplo!AB101,\"\")","v":""},{"$f":"IF(Munkanaplo!AC101>0,Munkanaplo!AC101,\"\")","v":""},{"$f":"IF(Munkanaplo!AD101>0,Munkanaplo!AD101,\"\")","v":""},{"$f":"IF(Munkanaplo!AE101>0,Munkanaplo!AE101,\"\")","v":""},{"$f":"IF(Munkanaplo!AG101>0,Munkanaplo!AG101,\"\")","v":""}]

{"sheet":"Háttér","index":6,"n_rows":31,"n_cols":3,"rows_kept":31,"cut":false,"hidden":false,"merged":[]}
["Személyes szolgálatások","Megvalósítandó lépések","Szolgáltatás formája"]
["Beilleszkedés elősegítése","Akadálymentesítés","személyes egyéni"]
["Betanítás","Befogadó szervezeti kultúra kialakítása","telementorálás"]
["Értékelés","Beilleszkedés elősegítése","csoportos"]
["Képesség- és helyzetfelmérés","Betanítás","egyéb"]
["Kompetenciafejlesztés","CSR kommunikáció"]
["Kulturális és sport tevékenység szervezése","Családi kapcsolatok"]
["Mediáció, konfliktuskezelés","Értékelés"]
["Mentorált nyomonkövetése","Foglalkozási rehabilitációs tudásbővítés"]
["Mentori találkozó","FR szolgáltatás nyújtása mentoráltnak"]
["Munkahelyi adaptáció","Információ szerzés mentoráltról"]
["Munkakör módosítás előkészítése","Képesség- és helyzetfelmérés"]
["Orvosi rehabilitáció szervezése","Kiválasztás"]
["Rehabilitációs tervkészítés","Kompetenciafejlesztés"]
["Szemléletformálás, érzékenyítés","Kulturális és sport tevékenység szervezése"]
["Szervezeten belüli egyeztetés","Mediáció, konfliktuskezelés"]
["Szociális rehabilitáció szervezése","Mentorált nyomonkövetése"]
["Utókövetés","Mentori találkozó"]
["1. interjú","MMK Foglalkoztatás tervezése"]
["Foglalkozásoi rehabilitációs szolgáltatásnyújtás","Munkahelyi adaptáció"]
[null,"Munkakör elemzés"]
[null,"Munkakör módosítás előkészítése"]
[null,"Orvosi rehabilitáció szervezése"]
[null,"Rehabilitációs PR tevékenység"]
[null,"Rehabilitációs tervkészítés"]
[null,"Rehabilitációs foglalkoztatási tanácsadás szervezeten belül"]
[null,"Szemléletformálás, érzékenyítés"]
[null,"Szervezeten belüli egyeztetés"]
[null,"Szociális rehabilitáció szervezése"]
[null,"Toborzás"]
[null,"Utókövetés"]